Workbook

Sheet PENZTAR_ADAT
A1: KORALLSZIRT | F1: 2021 | H1: Január
A3: Összesítés: | C3: =SUM(C6:C67) -> 99200 | D3: 198400 | E3: 297600 | F3: 396800 | G3: 0 | H3: 0 | I3: 0 | J3: 0 | K3: 49600 | L3: 54560 | M3: 59520 | N3: 64480 | O3: -4 | P3: 763840 | Q3: 992000
R4: NYITÓ
A5: DÁTUM (NAP!) | B5: BIZONY-LAT | C5: 0.27 | D5: 0.05 | E5: 0.18 | F5: 0.27 | G5: =Beallitasok!$B$12&" "&C5*100&"%" -> Téves beütés 27% | H5: =Beallitasok!$B$12&" "&D5*100&"%" -> Téves beütés 5% | I5: =Beallitasok!$B$12&" "&E5*100&"%" -> Téves beütés 18% | J5: =Beallitasok!$B$12&" "&F5*100&"%" -> Téves beütés 27% | K5: BANKKÁRTYA | L5: Netpincér | M5: MKB SZÉP KÁRTYA | N5: Szép | O5: Kerekítés | P5: KP | Q5: NAPI ÖSSZESEN | R5: 50000
A6: 1 | B6: 1 | C6: 100 | D6: 200 | E6: 300 | F6: 400 | K6: 50 | L6: 55 | M6: 60 | N6: 65 | O6: -2 | P6: =Q6-SUM(K6:N6) -> 770 | Q6: =SUM(C6:F6)-SUM(G6:J6) -> 1000 | R6: =R5+Q6 -> 51000
A7: =A6+1 -> 2 | B7: =B6+1 -> 2 | C7: =$B7*C$6 -> 200 | D7: =$B7*D$6 -> 400 | E7: 600 | F7: 800 | K7: =$B7*K$6 -> 100 | L7: 110 | M7: 120 | N7: 130 | P7: =Q7-SUM(K7:N7) -> 1540 | Q7: =SUM(C7:F7)-SUM(G7:J7) -> 2000 | R7: 53000
A8: =A7+1 -> 3 | B8: 3 | C8: =$B8*C$6 -> 300 | D8: 600 | E8: 900 | F8: 1200 | K8: 150 | L8: 165 | M8: 180 | N8: 195 | P8: 2310 | Q8: 3000 | R8: 56000
A9: 4 | B9: 4 | C9: 400 | D9: 800 | E9: 1200 | F9: 1600 | K9: 200 | L9: 220 | M9: 240 | N9: 260 | P9: 3080 | Q9: 4000 | R9: 60000
A10: 5 | B10: 5 | C10: 500 | D10: 1000 | E10: 1500 | F10: 2000 | K10: 250 | L10: 275 | M10: 300 | N10: 325 | P10: 3850 | Q10: 5000 | R10: 65000
A11: 6 | B11: 6 | C11: 600 | D11: 1200 | E11: 1800 | F11: 2400 | K11: 300 | L11: 330 | M11: 360 | N11: 390 | P11: 4620 | Q11: 6000 | R11: 71000
A12: 7 | B12: 7 | C12: 700 | D12: 1400 | E12: 2100 | F12: 2800 | K12: 350 | L12: 385 | M12: 420 | N12: 455 | P12: 5390 | Q12: 7000 | R12: 78000
A13: 8 | B13: 8 | C13: 800 | D13: 1600 | E13: 2400 | F13: 3200 | K13: 400 | L13: 440 | M13: 480 | N13: 520 | P13: 6160 | Q13: 8000 | R13: 86000
A14: 9 | B14: 9 | C14: 900 | D14: 1800 | E14: 2700 | F14: 3600 | K14: 450 | L14: 495 | M14: 540 | N14: 585 | P14: 6930 | Q14: 9000 | R14: 95000
A15: 10 | B15: 10 | C15: 1000 | D15: 2000 | E15: 3000 | F15: 4000 | K15: 500 | L15: 550 | M15: 600 | N15: 650 | P15: 7700 | Q15: 10000 | R15: 105000
A16: 11 | B16: 11 | C16: 1100 | D16: 2200 | E16: 3300 | F16: 4400 | K16: 550 | L16: 605 | M16: 660 | N16: 715 | P16: 8470 | Q16: 11000 | R16: 116000
A17: 12 | B17: 12 | C17: 1200 | D17: 2400 | E17: 3600 | F17: 4800 | K17: 600 | L17: 660 | M17: 720 | N17: 780 | P17: 9240 | Q17: 12000 | R17: 128000
A18: =A17+1 -> 13 | B18: 13 | C18: 1300 | D18: 2600 | E18: 3900 | F18: 5200 | K18: 650 | L18: 715 | M18: 780 | N18: 845 | P18: 10010 | Q18: 13000 | R18: 141000
A19: =A18+1 -> 14 | B19: 14 | C19: 1400 | D19: 2800 | E19: 4200 | F19: 5600 | K19: 700 | L19: 770 | M19: 840 | N19: 910 | P19: 10780 | Q19: 14000 | R19: 155000
A20: =A19+1 -> 15 | B20: 15 | C20: 1500 | D20: 3000 | E20: 4500 | F20: 6000 | K20: 750 | L20: 825 | M20: 900 | N20: 975 | P20: 11550 | Q20: 15000 | R20: 170000
A21: =A20+1 -> 16 | B21: 16 | C21: 1600 | D21: 3200 | E21: 4800 | F21: 6400 | K21: 800 | L21: 880 | M21: 960 | N21: 1040 | P21: 12320 | Q21: 16000 | R21: 186000
A22: =A21+1 -> 17 | B22: 17 | C22: 1700 | D22: 3400 | E22: 5100 | F22: 6800 | K22: 850 | L22: 935 | M22: 1020 | N22: 1105 | P22: 13090 | Q22: 17000 | R22: 203000
A23: =A22+1 -> 18 | B23: 18 | C23: 1800 | D23: 3600 | E23: 5400 | F23: 7200 | K23: =$B23*K$6 -> 900 | L23: 990 | M23: 1080 | N23: 1170 | P23: 13860 | Q23: 18000 | R23: 221000
A24: =A23+1 -> 19 | B24: 19 | C24: 1900 | D24: 3800 | E24: 5700 | F24: 7600 | K24: 950 | L24: 1045 | M24: 1140 | N24: 1235 | P24: 14630 | Q24: 19000 | R24: 240000
A25: =A24+1 -> 20 | B25: 20 | C25: 2000 | D25: 4000 | E25: 6000 | F25: 8000 | K25: 1000 | L25: 1100 | M25: 1200 | N25: 1300 | P25: 15400 | Q25: 20000 | R25: 260000
A26: =A25+1 -> 21 | B26: 21 | C26: 2100 | D26: 4200 | E26: 6300 | F26: 8400 | K26: 1050 | L26: 1155 | M26: 1260 | N26: 1365 | P26: 16170 | Q26: 21000 | R26: =R25+Q26 -> 281000
A27: =A26+1 -> 22 | B27: 22 | C27: 2200 | D27: 4400 | E27: 6600 | F27: 8800 | K27: 1100 | L27: 1210 | M27: 1320 | N27: 1430 | P27: 16940 | Q27: 22000 | R27: 303000
A28: =A27+1 -> 23 | B28: 23 | C28: 2300 | D28: 4600 | E28: 6900 | F28: 9200 | K28: 1150 | L28: 1265 | M28: 1380 | N28: 1495 | P28: 17710 | Q28: 23000 | R28: 326000
A29: =A28+1 -> 24 | B29: 24 | C29: 2400 | D29: 4800 | E29: 7200 | F29: 9600 | K29: 1200 | L29: 1320 | M29: 1440 | N29: 1560 | P29: 18480 | Q29: 24000 | R29: 350000
A30: =A29+1 -> 25 | B30: 25 | C30: 2500 | D30: 5000 | E30: 7500 | F30: 10000 | K30: 1250 | L30: 1375 | M30: 1500 | N30: 1625 | P30: 19250 | Q30: 25000 | R30: 375000
A31: =A30+1 -> 26 | B31: 26 | C31: 2600 | D31: 5200 | E31: 7800 | F31: 10400 | K31: 1300 | L31: 1430 | M31: 1560 | N31: 1690 | P31: 20020 | Q31: 26000 | R31: 401000
A32: =A31+1 -> 27 | B32: 27 | C32: 2700 | D32: 5400 | E32: 8100 | F32: 10800 | K32: 1350 | L32: 1485 | M32: 1620 | N32: 1755 | P32: 20790 | Q32: 27000 | R32: 428000
A33: =A32+1 -> 28 | B33: 28 | C33: 2800 | D33: 5600 | E33: 8400 | F33: 11200 | K33: 1400 | L33: 1540 | M33: 1680 | N33: 1820 | P33: 21560 | Q33: 28000 | R33: 456000
A34: =A33+1 -> 29 | B34: 29 | C34: 2900 | D34: 5800 | E34: 8700 | F34: 11600 | K34: 1450 | L34: 1595 | M34: 1740 | N34: 1885 | P34: 22330 | Q34: 29000 | R34: 485000
A35: =A34+1 -> 30 | B35: 30 | C35: 3000 | D35: 6000 | E35: 9000 | F35: 12000 | K35: 1500 | L35: 1650 | M35: 1800 | N35: 1950 | P35: 23100 | Q35: 30000 | R35: 515000
A36: =A35+1 -> 31 | B36: 31 | C36: 3100 | D36: 6200 | E36: 9300 | F36: 12400 | K36: 1550 | L36: 1705 | M36: 1860 | N36: 2015 | P36: 23870 | Q36: 31000 | R36: 546000
A37: 1 | B37: 1 | C37: 100 | D37: 200 | E37: 300 | F37: 400 | K37: 50 | L37: 55 | M37: 60 | N37: 65 | O37: -2 | P37: =Q37-SUM(K37:N37) -> 770 | Q37: =SUM(C37:F37)-SUM(G37:J37) -> 1000 | R37: =R36+Q37 -> 547000
A38: =A37+1 -> 2 | B38: =B37+1 -> 2 | C38: =$B38*C$37 -> 200 | D38: 400 | E38: 600 | F38: 800 | K38: =$B38*K$37 -> 100 | L38: 110 | M38: 120 | N38: 130 | P38: 1540 | Q38: 2000 | R38: 549000
A39: 3 | B39: 3 | C39: 300 | D39: 600 | E39: 900 | F39: 1200 | K39: 150 | L39: 165 | M39: 180 | N39: 195 | P39: 2310 | Q39: 3000 | R39: 552000
A40: 4 | B40: 4 | C40: 400 | D40: 800 | E40: 1200 | F40: 1600 | K40: 200 | L40: 220 | M40: 240 | N40: 260 | P40: 3080 | Q40: 4000 | R40: 556000
A41: 5 | B41: 5 | C41: 500 | D41: 1000 | E41: 1500 | F41: 2000 | K41: 250 | L41: 275 | M41: 300 | N41: 325 | P41: 3850 | Q41: 5000 | R41: 561000
A42: 6 | B42: 6 | C42: 600 | D42: 1200 | E42: 1800 | F42: 2400 | K42: 300 | L42: 330 | M42: 360 | N42: 390 | P42: 4620 | Q42: 6000 | R42: 567000
A43: 7 | B43: 7 | C43: 700 | D43: 1400 | E43: 2100 | F43: 2800 | K43: 350 | L43: 385 | M43: 420 | N43: 455 | P43: 5390 | Q43: 7000 | R43: 574000
A44: 8 | B44: 8 | C44: 800 | D44: 1600 | E44: 2400 | F44: 3200 | K44: 400 | L44: 440 | M44: 480 | N44: 520 | P44: 6160 | Q44: 8000 | R44: 582000
A45: 9 | B45: 9 | C45: 900 | D45: 1800 | E45: 2700 | F45: 3600 | K45: 450 | L45: 495 | M45: 540 | N45: 585 | P45: 6930 | Q45: 9000 | R45: 591000
A46: 10 | B46: 10 | C46: 1000 | D46: 2000 | E46: 3000 | F46: 4000 | K46: 500 | L46: 550 | M46: 600 | N46: 650 | P46: 7700 | Q46: 10000 | R46: 601000
A47: 11 | B47: 11 | C47: 1100 | D47: 2200 | E47: 3300 | F47: 4400 | K47: 550 | L47: 605 | M47: 660 | N47: 715 | P47: 8470 | Q47: 11000 | R47: 612000
A48: 12 | B48: 12 | C48: 1200 | D48: 2400 | E48: 3600 | F48: 4800 | K48: 600 | L48: 660 | M48: 720 | N48: 780 | P48: 9240 | Q48: 12000 | R48: 624000
A49: 13 | B49: 13 | C49: 1300 | D49: 2600 | E49: 3900 | F49: 5200 | K49: 650 | L49: 715 | M49: 780 | N49: 845 | P49: 10010 | Q49: 13000 | R49: 637000
A50: 14 | B50: 14 | C50: 1400 | D50: 2800 | E50: 4200 | F50: 5600 | K50: 700 | L50: 770 | M50: 840 | N50: 910 | P50: 10780 | Q50: 14000 | R50: 651000
A51: 15 | B51: 15 | C51: 1500 | D51: 3000 | E51: 4500 | F51: 6000 | K51: 750 | L51: 825 | M51: 900 | N51: 975 | P51: 11550 | Q51: 15000 | R51: 666000
A52: 16 | B52: 16 | C52: 1600 | D52: 3200 | E52: 4800 | F52: 6400 | K52: 800 | L52: 880 | M52: 960 | N52: 1040 | P52: 12320 | Q52: 16000 | R52: 682000
A53: 17 | B53: 17 | C53: 1700 | D53: 3400 | E53: 5100 | F53: 6800 | K53: 850 | L53: 935 | M53: 1020 | N53: 1105 | P53: 13090 | Q53: 17000 | R53: 699000
A54: 18 | B54: 18 | C54: 1800 | D54: 3600 | E54: 5400 | F54: 7200 | K54: 900 | L54: 990 | M54: 1080 | N54: 1170 | P54: 13860 | Q54: 18000 | R54: 717000
A55: 19 | B55: 19 | C55: 1900 | D55: 3800 | E55: 5700 | F55: 7600 | K55: 950 | L55: 1045 | M55: 1140 | N55: 1235 | P55: 14630 | Q55: 19000 | R55: 736000
A56: 20 | B56: 20 | C56: 2000 | D56: 4000 | E56: 6000 | F56: 8000 | K56: 1000 | L56: 1100 | M56: 1200 | N56: 1300 | P56: 15400 | Q56: 20000 | R56: 756000
A57: 21 | B57: 21 | C57: 2100 | D57: 4200 | E57: 6300 | F57: 8400 | K57: 1050 | L57: 1155 | M57: 1260 | N57: 1365 | P57: 16170 | Q57: 21000 | R57: 777000
A58: 22 | B58: 22 | C58: 2200 | D58: 4400 | E58: 6600 | F58: 8800 | K58: 1100 | L58: 1210 | M58: 1320 | N58: 1430 | P58: 16940 | Q58: 22000 | R58: 799000
A59: 23 | B59: 23 | C59: 2300 | D59: 4600 | E59: 6900 | F59: 9200 | K59: 1150 | L59: 1265 | M59: 1380 | N59: 1495 | P59: 17710 | Q59: 23000 | R59: 822000
A60: 24 | B60: 24 | C60: 2400 | D60: 4800 | E60: 7200 | F60: 9600 | K60: 1200 | L60: 1320 | M60: 1440 | N60: 1560 | P60: 18480 | Q60: 24000 | R60: 846000
A61: 25 | B61: 25 | C61: 2500 | D61: 5000 | E61: 7500 | F61: 10000 | K61: 1250 | L61: 1375 | M61: 1500 | N61: 1625 | P61: 19250 | Q61: 25000 | R61: 871000
A62: 26 | B62: 26 | C62: 2600 | D62: 5200 | E62: 7800 | F62: 10400 | K62: 1300 | L62: 1430 | M62: 1560 | N62: 1690 | P62: 20020 | Q62: 26000 | R62: 897000
A63: 27 | B63: 27 | C63: 2700 | D63: 5400 | E63: 8100 | F63: 10800 | K63: 1350 | L63: 1485 | M63: 1620 | N63: 1755 | P63: 20790 | Q63: 27000 | R63: 924000
A64: 28 | B64: 28 | C64: 2800 | D64: 5600 | E64: 8400 | F64: 11200 | K64: 1400 | L64: 1540 | M64: 1680 | N64: 1820 | P64: 21560 | Q64: 28000 | R64: 952000
A65: 29 | B65: 29 | C65: 2900 | D65: 5800 | E65: 8700 | F65: 11600 | K65: 1450 | L65: 1595 | M65: 1740 | N65: 1885 | P65: 22330 | Q65: 29000 | R65: 981000
A66: 30 | B66: 30 | C66: 3000 | D66: 6000 | E66: 9000 | F66: 12000 | K66: 1500 | L66: 1650 | M66: 1800 | N66: 1950 | P66: 23100 | Q66: 30000 | R66: 1011000
A67: 31 | B67: 31 | C67: 3100 | D67: 6200 | E67: 9300 | F67: 12400 | K67: 1550 | L67: 1705 | M67: 1860 | N67: 2015 | P67: 23870 | Q67: 31000 | R67: 1042000
R68: ZÁRÓ
A69: Összesítés: | C69: =C3 -> 99200 | D69: =D3 -> 198400 | E69: 297600 | F69: 396800 | G69: 0 | H69: 0 | I69: 0 | J69: 0 | K69: 49600 | L69: 54560 | M69: 59520 | N69: 64480 | O69: -4 | P69: 763840 | Q69: 992000 | R69: =R36 -> 546000

Sheet BC_CSV
A1: Számlaszám | B1: Számla típus | C1: Hivatkozási számlaszám | D1: Számla kelte | E1: Telj. időpontja | F1: Fiz. határidő | G1: Fizetés módja | H1: Rendelésszám | I1: Nyelv | J1: Devizanem | K1: Árfolyam bank | L1: Árfolyam | M1: Vevő neve | N1: Vevő irsz. | O1: Vevő város | P1: Vevő utca | Q1: Vevő adószám | R1: Nettó összesen | S1: Áfa összesen | T1: Bruttó összesen | U1: Főkönyv vevő | V1: Főkönyv vevő azonosító | W1: Főkönyvi dátum | X1: Termék,szolgáltatás | Y1: Mennyiség | Z1: Mennyiségi egység | AA1: Nettó egységár | AB1: Áfakulcs | AC1: Tétel nettó érték | AD1: Tétel áfa érték | AE1: Tétel bruttó érték | AF1: Tétel árbevétel főkönyv | AG1: Tétel árbevétel áfa | AH1: Tétel gazdasági esemény | AI1: Tétel áfa gazdasági esemény | AJ1: Tétel megjegyzés | AK1: Tétel árrés áfaalap
A2: =Beallitasok!$B$2&PENZTAR_ADAT!B6 -> AAA-1 | B2: SZ | D2: =DATE(PENZTAR_ADAT!$F$1,VLOOKUP(PENZTAR_ADAT!$H$1,Beallitasok!$K$2:$L$13,2,FALSE),PENZTAR_ADAT!A6) -> 2021-01-01 | E2: =D2 -> 2021-01-01 | F2: =E2 -> 2021-01-01 | G2: =Beallitasok!$B$4 -> Készpénz | I2: hu | J2: HUF | M2: =Beallitasok!$B$6 -> AP_TESZT2 | R2: =SUMIF($A:$A,$A2,AC:AC) -> 1676 | S2: =SUMIF($A:$A,$A2,AD:AD) -> 168 | T2: =SUMIF($A:$A,$A2,AE:AE) -> 2000 | U2: =Beallitasok!$B$9 -> 381000 | Y2: 1 | Z2: db | AA2: =AC2 -> 79 | AB2: =IFERROR(VLOOKUP(PENZTAR_ADAT!$C$5,Beallitasok!$F$2:$G$6,2,FALSE),2) -> 13.1 | AC2: =ROUND(AE2/(1+PENZTAR_ADAT!$C$5),0) -> 79 | AD2: =AE2-AC2 -> 21 | AE2: =PENZTAR_ADAT!C6 -> 100 | AF2: =Beallitasok!$B$8 -> 911000 | AJ2: =Beallitasok!$B$11 -> PTG árbevétel
A3: =A2 -> AAA-1 | B3: =B2 -> SZ | D3: 2021-01-01 | E3: 2021-01-01 | F3: 2021-01-01 | G3: Készpénz | I3: hu | J3: HUF | M3: AP_TESZT2 | R3: 1676 | S3: 168 | T3: 2000 | U3: 381000 | Y3: 1 | Z3: db | AA3: =AC3 -> 190 | AB3: =IFERROR(VLOOKUP(PENZTAR_ADAT!$D$5,Beallitasok!$F$2:$G$6,2,FALSE),2) -> 5.28 | AC3: =ROUND(AE3/(1+PENZTAR_ADAT!$D$5),0) -> 190 | AD3: 21 | AE3: =PENZTAR_ADAT!D6 -> 200 | AF3: 911000 | AJ3: PTG árbevétel
A4: =A3 -> AAA-1 | B4: =B3 -> SZ | D4: =D3 -> 2021-01-01 | E4: =E3 -> 2021-01-01 | F4: =F3 -> 2021-01-01 | G4: =G3 -> Készpénz | I4: =I3 -> hu | J4: =J3 -> HUF | M4: =M3 -> AP_TESZT2 | R4: 1676 | S4: 168 | T4: 2000 | U4: =U3 -> 381000 | Y4: =Y3 -> 1 | Z4: =Z3 -> db | AA4: 254 | AB4: =IFERROR(VLOOKUP(PENZTAR_ADAT!$E$5,Beallitasok!$F$2:$G$6,2,FALSE),2) -> 12.26 | AC4: =ROUND(AE4/(1+PENZTAR_ADAT!$E$5),0) -> 254 | AD4: =AD3 -> 21 | AE4: =PENZTAR_ADAT!E6 -> 300 | AF4: =AF3 -> 911000 | AJ4: =AJ3 -> PTG árbevétel
A5: =A4 -> AAA-1 | B5: SZ | D5: 2021-01-01 | E5: 2021-01-01 | F5: 2021-01-01 | G5: Készpénz | I5: hu | J5: HUF | M5: AP_TESZT2 | R5: 1676 | S5: 168 | T5: 2000 | U5: 381000 | Y5: 1 | Z5: db | AA5: 315 | AB5: =IFERROR(VLOOKUP(PENZTAR_ADAT!$F$5,Beallitasok!$F$2:$G$6,2,FALSE),2) -> 13.1 | AC5: =ROUND(AE5/(1+PENZTAR_ADAT!$F$5),0) -> 315 | AD5: 21 | AE5: =PENZTAR_ADAT!F6 -> 400 | AF5: 911000 | AJ5: PTG árbevétel
A6: =Beallitasok!$B$2&PENZTAR_ADAT!B7 -> AAA-2 | B6: SZ | D6: =DATE(PENZTAR_ADAT!$F$1,VLOOKUP(PENZTAR_ADAT!$H$1,Beallitasok!$K$2:$L$13,2,FALSE),PENZTAR_ADAT!A7) -> 2021-01-02 | E6: =D6 -> 2021-01-02 | F6: =E6 -> 2021-01-02 | G6: =Beallitasok!$B$4 -> Készpénz | I6: hu | J6: HUF | M6: =Beallitasok!$B$6 -> AP_TESZT2 | R6: 3352 | S6: 344 | T6: 4000 | U6: =Beallitasok!$B$9 -> 381000 | Y6: 1 | Z6: db | AA6: 157 | AB6: =IFERROR(VLOOKUP(PENZTAR_ADAT!$C$5,Beallitasok!$F$2:$G$6,2,FALSE),2) -> 13.1 | AC6: =ROUND(AE6/(1+PENZTAR_ADAT!$C$5),0) -> 157 | AD6: =AE6-AC6 -> 43 | AE6: =PENZTAR_ADAT!C7 -> 200 | AF6: =Beallitasok!$B$8 -> 911000 | AJ6: =Beallitasok!$B$11 -> PTG árbevétel
A7: =A6 -> AAA-2 | B7: =B6 -> SZ | D7: =D6 -> 2021-01-02 | E7: =E6 -> 2021-01-02 | F7: =F6 -> 2021-01-02 | G7: =G6 -> Készpénz | I7: =I6 -> hu | J7: =J6 -> HUF | M7: =M6 -> AP_TESZT2 | R7: 3352 | S7: 344 | T7: 4000 | U7: =U6 -> 381000 | Y7: =Y6 -> 1 | Z7: =Z6 -> db | AA7: 381 | AB7: =IFERROR(VLOOKUP(PENZTAR_ADAT!$D$5,Beallitasok!$F$2:$G$6,2,FALSE),2) -> 5.28 | AC7: =ROUND(AE7/(1+PENZTAR_ADAT!$D$5),0) -> 381 | AD7: =AD6 -> 43 | AE7: =PENZTAR_ADAT!D7 -> 400 | AF7: =AF6 -> 911000 | AJ7: =AJ6 -> PTG árbevétel
A8: =A7 -> AAA-2 | B8: SZ | D8: 2021-01-02 | E8: 2021-01-02 | F8: 2021-01-02 | G8: Készpénz | I8: hu | J8: HUF | M8: AP_TESZT2 | R8: 3352 | S8: 344 | T8: 4000 | U8: 381000 | Y8: 1 | Z8: db | AA8: 508 | AB8: =IFERROR(VLOOKUP(PENZTAR_ADAT!$E$5,Beallitasok!$F$2:$G$6,2,FALSE),2) -> 12.26 | AC8: =ROUND(AE8/(1+PENZTAR_ADAT!$E$5),0) -> 508 | AD8: 43 | AE8: =PENZTAR_ADAT!E7 -> 600 | AF8: 911000 | AJ8: PTG árbevétel
A9: =A8 -> AAA-2 | B9: SZ | D9: 2021-01-02 | E9: 2021-01-02 | F9: 2021-01-02 | G9: Készpénz | I9: hu | J9: HUF | M9: AP_TESZT2 | R9: 3352 | S9: 344 | T9: 4000 | U9: 381000 | Y9: 1 | Z9: db | AA9: 630 | AB9: =IFERROR(VLOOKUP(PENZTAR_ADAT!$F$5,Beallitasok!$F$2:$G$6,2,FALSE),2) -> 13.1 | AC9: =ROUND(AE9/(1+PENZTAR_ADAT!$F$5),0) -> 630 | AD9: 43 | AE9: =PENZTAR_ADAT!F7 -> 800 | AF9: 911000 | AJ9: PTG árbevétel
A10: =Beallitasok!$B$2&PENZTAR_ADAT!B8 -> AAA-3 | B10: SZ | D10: =DATE(PENZTAR_ADAT!$F$1,VLOOKUP(PENZTAR_ADAT!$H$1,Beallitasok!$K$2:$L$13,2,FALSE),PENZTAR_ADAT!A8) -> 2021-01-03 | E10: =D10 -> 2021-01-03 | F10: =E10 -> 2021-01-03 | G10: =Beallitasok!$B$4 -> Készpénz | I10: hu | J10: HUF | M10: =Beallitasok!$B$6 -> AP_TESZT2 | R10: 5030 | S10: 512 | T10: 6000 | U10: =Beallitasok!$B$9 -> 381000 | Y10: 1 | Z10: db | AA10: 236 | AB10: =IFERROR(VLOOKUP(PENZTAR_ADAT!$C$5,Beallitasok!$F$2:$G$6,2,FALSE),2) -> 13.1 | AC10: =ROUND(AE10/(1+PENZTAR_ADAT!$C$5),0) -> 236 | AD10: =AE10-AC10 -> 64 | AE10: =PENZTAR_ADAT!C8 -> 300 | AF10: =Beallitasok!$B$8 -> 911000 | AJ10: =Beallitasok!$B$11 -> PTG árbevétel
A11: =A10 -> AAA-3 | B11: =B10 -> SZ | D11: 2021-01-03 | E11: =E10 -> 2021-01-03 | F11: =F10 -> 2021-01-03 | G11: =G10 -> Készpénz | I11: =I10 -> hu | J11: =J10 -> HUF | M11: =M10 -> AP_TESZT2 | R11: 5030 | S11: 512 | T11: 6000 | U11: =U10 -> 381000 | Y11: =Y10 -> 1 | Z11: =Z10 -> db | AA11: 571 | AB11: =IFERROR(VLOOKUP(PENZTAR_ADAT!$D$5,Beallitasok!$F$2:$G$6,2,FALSE),2) -> 5.28 | AC11: =ROUND(AE11/(1+PENZTAR_ADAT!$D$5),0) -> 571 | AD11: =AD10 -> 64 | AE11: =PENZTAR_ADAT!D8 -> 600 | AF11: =AF10 -> 911000 | AJ11: =AJ10 -> PTG árbevétel
A12: =A11 -> AAA-3 | B12: SZ | D12: 2021-01-03 | E12: 2021-01-03 | F12: 2021-01-03 | G12: Készpénz | I12: hu | J12: HUF | M12: AP_TESZT2 | R12: 5030 | S12: 512 | T12: 6000 | U12: 381000 | Y12: 1 | Z12: db | AA12: 763 | AB12: =IFERROR(VLOOKUP(PENZTAR_ADAT!$E$5,Beallitasok!$F$2:$G$6,2,FALSE),2) -> 12.26 | AC12: =ROUND(AE12/(1+PENZTAR_ADAT!$E$5),0) -> 763 | AD12: 64 | AE12: =PENZTAR_ADAT!E8 -> 900 | AF12: 911000 | AJ12: PTG árbevétel
A13: =A12 -> AAA-3 | B13: SZ | D13: 2021-01-03 | E13: 2021-01-03 | F13: 2021-01-03 | G13: Készpénz | I13: hu | J13: HUF | M13: AP_TESZT2 | R13: 5030 | S13: 512 | T13: 6000 | U13: 381000 | Y13: 1 | Z13: db | AA13: 945 | AB13: =IFERROR(VLOOKUP(PENZTAR_ADAT!$F$5,Beallitasok!$F$2:$G$6,2,FALSE),2) -> 13.1 | AC13: =ROUND(AE13/(1+PENZTAR_ADAT!$F$5),0) -> 945 | AD13: 64 | AE13: =PENZTAR_ADAT!F8 -> 1200 | AF13: 911000 | AJ13: PTG árbevétel
A14: =Beallitasok!$B$2&PENZTAR_ADAT!B9 -> AAA-4 | B14: SZ | D14: =DATE(PENZTAR_ADAT!$F$1,VLOOKUP(PENZTAR_ADAT!$H$1,Beallitasok!$K$2:$L$13,2,FALSE),PENZTAR_ADAT!A9) -> 2021-01-04 | E14: =D14 -> 2021-01-04 | F14: =E14 -> 2021-01-04 | G14: =Beallitasok!$B$4 -> Készpénz | I14: hu | J14: HUF | M14: =Beallitasok!$B$6 -> AP_TESZT2 | R14: 6708 | S14: 680 | T14: 8000 | U14: =Beallitasok!$B$9 -> 381000 | Y14: 1 | Z14: db | AA14: 315 | AB14: =IFERROR(VLOOKUP(PENZTAR_ADAT!$C$5,Beallitasok!$F$2:$G$6,2,FALSE),2) -> 13.1 | AC14: =ROUND(AE14/(1+PENZTAR_ADAT!$C$5),0) -> 315 | AD14: =AE14-AC14 -> 85 | AE14: =PENZTAR_ADAT!C9 -> 400 | AF14: =Beallitasok!$B$8 -> 911000 | AJ14: =Beallitasok!$B$11 -> PTG árbevétel
A15: =A14 -> AAA-4 | B15: =B14 -> SZ | D15: 2021-01-04 | E15: =E14 -> 2021-01-04 | F15: =F14 -> 2021-01-04 | G15: =G14 -> Készpénz | I15: =I14 -> hu | J15: =J14 -> HUF | M15: =M14 -> AP_TESZT2 | R15: 6708 | S15: 680 | T15: 8000 | U15: =U14 -> 381000 | Y15: =Y14 -> 1 | Z15: =Z14 -> db | AA15: 762 | AB15: =IFERROR(VLOOKUP(PENZTAR_ADAT!$D$5,Beallitasok!$F$2:$G$6,2,FALSE),2) -> 5.28 | AC15: =ROUND(AE15/(1+PENZTAR_ADAT!$D$5),0) -> 762 | AD15: =AD14 -> 85 | AE15: =PENZTAR_ADAT!D9 -> 800 | AF15: =AF14 -> 911000 | AJ15: =AJ14 -> PTG árbevétel
A16: =A15 -> AAA-4 | B16: SZ | D16: 2021-01-04 | E16: 2021-01-04 | F16: 2021-01-04 | G16: Készpénz | I16: hu | J16: HUF | M16: AP_TESZT2 | R16: 6708 | S16: 680 | T16: 8000 | U16: 381000 | Y16: 1 | Z16: db | AA16: 1017 | AB16: =IFERROR(VLOOKUP(PENZTAR_ADAT!$E$5,Beallitasok!$F$2:$G$6,2,FALSE),2) -> 12.26 | AC16: =ROUND(AE16/(1+PENZTAR_ADAT!$E$5),0) -> 1017 | AD16: 85 | AE16: =PENZTAR_ADAT!E9 -> 1200 | AF16: 911000 | AJ16: PTG árbevétel
A17: =A16 -> AAA-4 | B17: SZ | D17: 2021-01-04 | E17: 2021-01-04 | F17: 2021-01-04 | G17: Készpénz | I17: hu | J17: HUF | M17: AP_TESZT2 | R17: 6708 | S17: 680 | T17: 8000 | U17: 381000 | Y17: 1 | Z17: db | AA17: 1260 | AB17: =IFERROR(VLOOKUP(PENZTAR_ADAT!$F$5,Beallitasok!$F$2:$G$6,2,FALSE),2) -> 13.1 | AC17: =ROUND(AE17/(1+PENZTAR_ADAT!$F$5),0) -> 1260 | AD17: 85 | AE17: =PENZTAR_ADAT!F9 -> 1600 | AF17: 911000 | AJ17: PTG árbevétel
A18: =Beallitasok!$B$2&PENZTAR_ADAT!B10 -> AAA-5 | B18: SZ | D18: =DATE(PENZTAR_ADAT!$F$1,VLOOKUP(PENZTAR_ADAT!$H$1,Beallitasok!$K$2:$L$13,2,FALSE),PENZTAR_ADAT!A10) -> 2021-01-05 | E18: =D18 -> 2021-01-05 | F18: 2021-01-05 | G18: =Beallitasok!$B$4 -> Készpénz | I18: hu | J18: HUF | M18: =Beallitasok!$B$6 -> AP_TESZT2 | R18: 8384 | S18: 848 | T18: 10000 | U18: =Beallitasok!$B$9 -> 381000 | Y18: 1 | Z18: db | AA18: 394 | AB18: =IFERROR(VLOOKUP(PENZTAR_ADAT!$C$5,Beallitasok!$F$2:$G$6,2,FALSE),2) -> 13.1 | AC18: =ROUND(AE18/(1+PENZTAR_ADAT!$C$5),0) -> 394 | AD18: =AE18-AC18 -> 106 | AE18: =PENZTAR_ADAT!C10 -> 500 | AF18: =Beallitasok!$B$8 -> 911000 | AJ18: =Beallitasok!$B$11 -> PTG árbevétel
A19: =A18 -> AAA-5 | B19: =B18 -> SZ | D19: 2021-01-05 | E19: =E18 -> 2021-01-05 | F19: =F18 -> 2021-01-05 | G19: =G18 -> Készpénz | I19: =I18 -> hu | J19: =J18 -> HUF | M19: =M18 -> AP_TESZT2 | R19: 8384 | S19: 848 | T19: 10000 | U19: =U18 -> 381000 | Y19: =Y18 -> 1 | Z19: =Z18 -> db | AA19: 952 | AB19: =IFERROR(VLOOKUP(PENZTAR_ADAT!$D$5,Beallitasok!$F$2:$G$6,2,FALSE),2) -> 5.28 | AC19: =ROUND(AE19/(1+PENZTAR_ADAT!$D$5),0) -> 952 | AD19: =AD18 -> 106 | AE19: =PENZTAR_ADAT!D10 -> 1000 | AF19: =AF18 -> 911000 | AJ19: =AJ18 -> PTG árbevétel
A20: AAA-5 | B20: SZ | D20: 2021-01-05 | E20: 2021-01-05 | F20: 2021-01-05 | G20: Készpénz | I20: hu | J20: HUF | M20: AP_TESZT2 | R20: 8384 | S20: 848 | T20: 10000 | U20: 381000 | Y20: 1 | Z20: db | AA20: 1271 | AB20: =IFERROR(VLOOKUP(PENZTAR_ADAT!$E$5,Beallitasok!$F$2:$G$6,2,FALSE),2) -> 12.26 | AC20: =ROUND(AE20/(1+PENZTAR_ADAT!$E$5),0) -> 1271 | AD20: 106 | AE20: =PENZTAR_ADAT!E10 -> 1500 | AF20: 911000 | AJ20: PTG árbevétel
A21: AAA-5 | B21: SZ | D21: 2021-01-05 | E21: 2021-01-05 | F21: 2021-01-05 | G21: Készpénz | I21: hu | J21: HUF | M21: AP_TESZT2 | R21: 8384 | S21: 848 | T21: 10000 | U21: 381000 | Y21: 1 | Z21: db | AA21: 1575 | AB21: =IFERROR(VLOOKUP(PENZTAR_ADAT!$F$5,Beallitasok!$F$2:$G$6,2,FALSE),2) -> 13.1 | AC21: =ROUND(AE21/(1+PENZTAR_ADAT!$F$5),0) -> 1575 | AD21: 106 | AE21: =PENZTAR_ADAT!F10 -> 2000 | AF21: 911000 | AJ21: PTG árbevétel
A22: =Beallitasok!$B$2&PENZTAR_ADAT!B11 -> AAA-6 | B22: SZ | D22: =DATE(PENZTAR_ADAT!$F$1,VLOOKUP(PENZTAR_ADAT!$H$1,Beallitasok!$K$2:$L$13,2,FALSE),PENZTAR_ADAT!A11) -> 2021-01-06 | E22: =D22 -> 2021-01-06 | F22: 2021-01-06 | G22: =Beallitasok!$B$4 -> Készpénz | I22: hu | J22: HUF | M22: =Beallitasok!$B$6 -> AP_TESZT2 | R22: 10060 | S22: 1024 | T22: 12000 | U22: =Beallitasok!$B$9 -> 381000 | Y22: 1 | Z22: db | AA22: 472 | AB22: =IFERROR(VLOOKUP(PENZTAR_ADAT!$C$5,Beallitasok!$F$2:$G$6,2,FALSE),2) -> 13.1 | AC22: =ROUND(AE22/(1+PENZTAR_ADAT!$C$5),0) -> 472 | AD22: =AE22-AC22 -> 128 | AE22: =PENZTAR_ADAT!C11 -> 600 | AF22: =Beallitasok!$B$8 -> 911000 | AJ22: =Beallitasok!$B$11 -> PTG árbevétel
A23: =A22 -> AAA-6 | B23: =B22 -> SZ | D23: 2021-01-06 | E23: =E22 -> 2021-01-06 | F23: =F22 -> 2021-01-06 | G23: =G22 -> Készpénz | I23: =I22 -> hu | J23: =J22 -> HUF | M23: =M22 -> AP_TESZT2 | R23: 10060 | S23: 1024 | T23: 12000 | U23: =U22 -> 381000 | Y23: =Y22 -> 1 | Z23: =Z22 -> db | AA23: 1143 | AB23: =IFERROR(VLOOKUP(PENZTAR_ADAT!$D$5,Beallitasok!$F$2:$G$6,2,FALSE),2) -> 5.28 | AC23: =ROUND(AE23/(1+PENZTAR_ADAT!$D$5),0) -> 1143 | AD23: =AD22 -> 128 | AE23: =PENZTAR_ADAT!D11 -> 1200 | AF23: =AF22 -> 911000 | AJ23: =AJ22 -> PTG árbevétel
A24: AAA-6 | B24: SZ | D24: 2021-01-06 | E24: 2021-01-06 | F24: 2021-01-06 | G24: Készpénz | I24: hu | J24: HUF | M24: AP_TESZT2 | R24: 10060 | S24: 1024 | T24: 12000 | U24: 381000 | Y24: 1 | Z24: db | AA24: 1525 | AB24: =IFERROR(VLOOKUP(PENZTAR_ADAT!$E$5,Beallitasok!$F$2:$G$6,2,FALSE),2) -> 12.26 | AC24: =ROUND(AE24/(1+PENZTAR_ADAT!$E$5),0) -> 1525 | AD24: 128 | AE24: =PENZTAR_ADAT!E11 -> 1800 | AF24: 911000 | AJ24: PTG árbevétel
A25: AAA-6 | B25: SZ | D25: 2021-01-06 | E25: 2021-01-06 | F25: 2021-01-06 | G25: Készpénz | I25: hu | J25: HUF | M25: AP_TESZT2 | R25: 10060 | S25: 1024 | T25: 12000 | U25: 381000 | Y25: 1 | Z25: db | AA25: 1890 | AB25: =IFERROR(VLOOKUP(PENZTAR_ADAT!$F$5,Beallitasok!$F$2:$G$6,2,FALSE),2) -> 13.1 | AC25: =ROUND(AE25/(1+PENZTAR_ADAT!$F$5),0) -> 1890 | AD25: 128 | AE25: =PENZTAR_ADAT!F11 -> 2400 | AF25: 911000 | AJ25: PTG árbevétel
A26: =Beallitasok!$B$2&PENZTAR_ADAT!B12 -> AAA-7 | B26: SZ | D26: =DATE(PENZTAR_ADAT!$F$1,VLOOKUP(PENZTAR_ADAT!$H$1,Beallitasok!$K$2:$L$13,2,FALSE),PENZTAR_ADAT!A12) -> 2021-01-07 | E26: =D26 -> 2021-01-07 | F26: 2021-01-07 | G26: =Beallitasok!$B$4 -> Készpénz | I26: hu | J26: HUF | M26: =Beallitasok!$B$6 -> AP_TESZT2 | R26: 11738 | S26: 1192 | T26: 14000 | U26: =Beallitasok!$B$9 -> 381000 | Y26: 1 | Z26: db | AA26: 551 | AB26: =IFERROR(VLOOKUP(PENZTAR_ADAT!$C$5,Beallitasok!$F$2:$G$6,2,FALSE),2) -> 13.1 | AC26: =ROUND(AE26/(1+PENZTAR_ADAT!$C$5),0) -> 551 | AD26: =AE26-AC26 -> 149 | AE26: =PENZTAR_ADAT!C12 -> 700 | AF26: =Beallitasok!$B$8 -> 911000 | AJ26: =Beallitasok!$B$11 -> PTG árbevétel
A27: =A26 -> AAA-7 | B27: =B26 -> SZ | D27: 2021-01-07 | E27: =E26 -> 2021-01-07 | F27: =F26 -> 2021-01-07 | G27: =G26 -> Készpénz | I27: =I26 -> hu | J27: =J26 -> HUF | M27: =M26 -> AP_TESZT2 | R27: 11738 | S27: 1192 | T27: 14000 | U27: =U26 -> 381000 | Y27: =Y26 -> 1 | Z27: =Z26 -> db | AA27: 1333 | AB27: =IFERROR(VLOOKUP(PENZTAR_ADAT!$D$5,Beallitasok!$F$2:$G$6,2,FALSE),2) -> 5.28 | AC27: =ROUND(AE27/(1+PENZTAR_ADAT!$D$5),0) -> 1333 | AD27: =AD26 -> 149 | AE27: =PENZTAR_ADAT!D12 -> 1400 | AF27: =AF26 -> 911000 | AJ27: =AJ26 -> PTG árbevétel
A28: AAA-7 | B28: SZ | D28: 2021-01-07 | E28: 2021-01-07 | F28: 2021-01-07 | G28: Készpénz | I28: hu | J28: HUF | M28: AP_TESZT2 | R28: 11738 | S28: 1192 | T28: 14000 | U28: 381000 | Y28: 1 | Z28: db | AA28: 1780 | AB28: =IFERROR(VLOOKUP(PENZTAR_ADAT!$E$5,Beallitasok!$F$2:$G$6,2,FALSE),2) -> 12.26 | AC28: =ROUND(AE28/(1+PENZTAR_ADAT!$E$5),0) -> 1780 | AD28: 149 | AE28: =PENZTAR_ADAT!E12 -> 2100 | AF28: 911000 | AJ28: PTG árbevétel
A29: AAA-7 | B29: SZ | D29: 2021-01-07 | E29: 2021-01-07 | F29: 2021-01-07 | G29: Készpénz | I29: hu | J29: HUF | M29: AP_TESZT2 | R29: 11738 | S29: 1192 | T29: 14000 | U29: 381000 | Y29: 1 | Z29: db | AA29: 2205 | AB29: =IFERROR(VLOOKUP(PENZTAR_ADAT!$F$5,Beallitasok!$F$2:$G$6,2,FALSE),2) -> 13.1 | AC29: =ROUND(AE29/(1+PENZTAR_ADAT!$F$5),0) -> 2205 | AD29: 149 | AE29: =PENZTAR_ADAT!F12 -> 2800 | AF29: 911000 | AJ29: PTG árbevétel
A30: =Beallitasok!$B$2&PENZTAR_ADAT!B13 -> AAA-8 | B30: SZ | D30: =DATE(PENZTAR_ADAT!$F$1,VLOOKUP(PENZTAR_ADAT!$H$1,Beallitasok!$K$2:$L$13,2,FALSE),PENZTAR_ADAT!A13) -> 2021-01-08 | E30: =D30 -> 2021-01-08 | F30: 2021-01-08 | G30: =Beallitasok!$B$4 -> Készpénz | I30: hu | J30: HUF | M30: =Beallitasok!$B$6 -> AP_TESZT2 | R30: 13416 | S30: 1360 | T30: 16000 | U30: =Beallitasok!$B$9 -> 381000 | Y30: 1 | Z30: db | AA30: 630 | AB30: =IFERROR(VLOOKUP(PENZTAR_ADAT!$C$5,Beallitasok!$F$2:$G$6,2,FALSE),2) -> 13.1 | AC30: =ROUND(AE30/(1+PENZTAR_ADAT!$C$5),0) -> 630 | AD30: =AE30-AC30 -> 170 | AE30: =PENZTAR_ADAT!C13 -> 800 | AF30: =Beallitasok!$B$8 -> 911000 | AJ30: =Beallitasok!$B$11 -> PTG árbevétel
A31: =A30 -> AAA-8 | B31: =B30 -> SZ | D31: 2021-01-08 | E31: =E30 -> 2021-01-08 | F31: =F30 -> 2021-01-08 | G31: =G30 -> Készpénz | I31: =I30 -> hu | J31: =J30 -> HUF | M31: =M30 -> AP_TESZT2 | R31: 13416 | S31: 1360 | T31: 16000 | U31: =U30 -> 381000 | Y31: =Y30 -> 1 | Z31: =Z30 -> db | AA31: 1524 | AB31: =IFERROR(VLOOKUP(PENZTAR_ADAT!$D$5,Beallitasok!$F$2:$G$6,2,FALSE),2) -> 5.28 | AC31: =ROUND(AE31/(1+PENZTAR_ADAT!$D$5),0) -> 1524 | AD31: =AD30 -> 170 | AE31: =PENZTAR_ADAT!D13 -> 1600 | AF31: =AF30 -> 911000 | AJ31: =AJ30 -> PTG árbevétel
A32: AAA-8 | B32: SZ | D32: 2021-01-08 | E32: 2021-01-08 | F32: 2021-01-08 | G32: Készpénz | I32: hu | J32: HUF | M32: AP_TESZT2 | R32: 13416 | S32: 1360 | T32: 16000 | U32: 381000 | Y32: 1 | Z32: db | AA32: 2034 | AB32: =IFERROR(VLOOKUP(PENZTAR_ADAT!$E$5,Beallitasok!$F$2:$G$6,2,FALSE),2) -> 12.26 | AC32: =ROUND(AE32/(1+PENZTAR_ADAT!$E$5),0) -> 2034 | AD32: 170 | AE32: =PENZTAR_ADAT!E13 -> 2400 | AF32: 911000 | AJ32: PTG árbevétel
A33: AAA-8 | B33: SZ | D33: 2021-01-08 | E33: 2021-01-08 | F33: 2021-01-08 | G33: Készpénz | I33: hu | J33: HUF | M33: AP_TESZT2 | R33: 13416 | S33: 1360 | T33: 16000 | U33: 381000 | Y33: 1 | Z33: db | AA33: 2520 | AB33: =IFERROR(VLOOKUP(PENZTAR_ADAT!$F$5,Beallitasok!$F$2:$G$6,2,FALSE),2) -> 13.1 | AC33: =ROUND(AE33/(1+PENZTAR_ADAT!$F$5),0) -> 2520 | AD33: 170 | AE33: =PENZTAR_ADAT!F13 -> 3200 | AF33: 911000 | AJ33: PTG árbevétel
A34: =Beallitasok!$B$2&PENZTAR_ADAT!B14 -> AAA-9 | B34: SZ | D34: =DATE(PENZTAR_ADAT!$F$1,VLOOKUP(PENZTAR_ADAT!$H$1,Beallitasok!$K$2:$L$13,2,FALSE),PENZTAR_ADAT!A14) -> 2021-01-09 | E34: =D34 -> 2021-01-09 | F34: 2021-01-09 | G34: =Beallitasok!$B$4 -> Készpénz | I34: hu | J34: HUF | M34: =Beallitasok!$B$6 -> AP_TESZT2 | R34: =SUMIF($A:$A,$A34,AC:AC) -> 15092 | S34: =SUMIF($A:$A,$A34,AD:AD) -> 1528 | T34: =SUMIF($A:$A,$A34,AE:AE) -> 18000 | U34: =Beallitasok!$B$9 -> 381000 | Y34: 1 | Z34: db | AA34: 709 | AB34: =IFERROR(VLOOKUP(PENZTAR_ADAT!$C$5,Beallitasok!$F$2:$G$6,2,FALSE),2) -> 13.1 | AC34: =ROUND(AE34/(1+PENZTAR_ADAT!$C$5),0) -> 709 | AD34: =AE34-AC34 -> 191 | AE34: =PENZTAR_ADAT!C14 -> 900 | AF34: =Beallitasok!$B$8 -> 911000 | AJ34: =Beallitasok!$B$11 -> PTG árbevétel
A35: =A34 -> AAA-9 | B35: =B34 -> SZ | D35: 2021-01-09 | E35: =E34 -> 2021-01-09 | F35: =F34 -> 2021-01-09 | G35: =G34 -> Készpénz | I35: =I34 -> hu | J35: =J34 -> HUF | M35: =M34 -> AP_TESZT2 | R35: 15092 | S35: 1528 | T35: 18000 | U35: =U34 -> 381000 | Y35: =Y34 -> 1 | Z35: =Z34 -> db | AA35: 1714 | AB35: =IFERROR(VLOOKUP(PENZTAR_ADAT!$D$5,Beallitasok!$F$2:$G$6,2,FALSE),2) -> 5.28 | AC35: =ROUND(AE35/(1+PENZTAR_ADAT!$D$5),0) -> 1714 | AD35: =AD34 -> 191 | AE35: =PENZTAR_ADAT!D14 -> 1800 | AF35: =AF34 -> 911000 | AJ35: =AJ34 -> PTG árbevétel
A36: AAA-9 | B36: SZ | D36: 2021-01-09 | E36: 2021-01-09 | F36: 2021-01-09 | G36: Készpénz | I36: hu | J36: HUF | M36: AP_TESZT2 | R36: 15092 | S36: 1528 | T36: 18000 | U36: 381000 | Y36: 1 | Z36: db | AA36: 2288 | AB36: =IFERROR(VLOOKUP(PENZTAR_ADAT!$E$5,Beallitasok!$F$2:$G$6,2,FALSE),2) -> 12.26 | AC36: =ROUND(AE36/(1+PENZTAR_ADAT!$E$5),0) -> 2288 | AD36: 191 | AE36: =PENZTAR_ADAT!E14 -> 2700 | AF36: 911000 | AJ36: PTG árbevétel
A37: AAA-9 | B37: SZ | D37: 2021-01-09 | E37: 2021-01-09 | F37: 2021-01-09 | G37: Készpénz | I37: hu | J37: HUF | M37: AP_TESZT2 | R37: 15092 | S37: 1528 | T37: 18000 | U37: 381000 | Y37: 1 | Z37: db | AA37: 2835 | AB37: =IFERROR(VLOOKUP(PENZTAR_ADAT!$F$5,Beallitasok!$F$2:$G$6,2,FALSE),2) -> 13.1 | AC37: =ROUND(AE37/(1+PENZTAR_ADAT!$F$5),0) -> 2835 | AD37: 191 | AE37: =PENZTAR_ADAT!F14 -> 3600 | AF37: 911000 | AJ37: PTG árbevétel
A38: =Beallitasok!$B$2&PENZTAR_ADAT!B15 -> AAA-10 | B38: SZ | D38: =DATE(PENZTAR_ADAT!$F$1,VLOOKUP(PENZTAR_ADAT!$H$1,Beallitasok!$K$2:$L$13,2,FALSE),PENZTAR_ADAT!A15) -> 2021-01-10 | E38: =D38 -> 2021-01-10 | F38: 2021-01-10 | G38: =Beallitasok!$B$4 -> Készpénz | I38: hu | J38: HUF | M38: =Beallitasok!$B$6 -> AP_TESZT2 | R38: 16768 | S38: 1704 | T38: 20000 | U38: =Beallitasok!$B$9 -> 381000 | Y38: 1 | Z38: db | AA38: 787 | AB38: =IFERROR(VLOOKUP(PENZTAR_ADAT!$C$5,Beallitasok!$F$2:$G$6,2,FALSE),2) -> 13.1 | AC38: =ROUND(AE38/(1+PENZTAR_ADAT!$C$5),0) -> 787 | AD38: =AE38-AC38 -> 213 | AE38: =PENZTAR_ADAT!C15 -> 1000 | AF38: =Beallitasok!$B$8 -> 911000 | AJ38: =Beallitasok!$B$11 -> PTG árbevétel
A39: =A38 -> AAA-10 | B39: =B38 -> SZ | D39: 2021-01-10 | E39: =E38 -> 2021-01-10 | F39: =F38 -> 2021-01-10 | G39: =G38 -> Készpénz | I39: =I38 -> hu | J39: =J38 -> HUF | M39: =M38 -> AP_TESZT2 | R39: 16768 | S39: 1704 | T39: 20000 | U39: =U38 -> 381000 | Y39: =Y38 -> 1 | Z39: =Z38 -> db | AA39: 1905 | AB39: =IFERROR(VLOOKUP(PENZTAR_ADAT!$D$5,Beallitasok!$F$2:$G$6,2,FALSE),2) -> 5.28 | AC39: =ROUND(AE39/(1+PENZTAR_ADAT!$D$5),0) -> 1905 | AD39: =AD38 -> 213 | AE39: =PENZTAR_ADAT!D15 -> 2000 | AF39: =AF38 -> 911000 | AJ39: =AJ38 -> PTG árbevétel
A40: AAA-10 | B40: SZ | D40: 2021-01-10 | E40: 2021-01-10 | F40: 2021-01-10 | G40: Készpénz | I40: hu | J40: HUF | M40: AP_TESZT2 | R40: 16768 | S40: 1704 | T40: 20000 | U40: 381000 | Y40: 1 | Z40: db | AA40: 2542 | AB40: =IFERROR(VLOOKUP(PENZTAR_ADAT!$E$5,Beallitasok!$F$2:$G$6,2,FALSE),2) -> 12.26 | AC40: =ROUND(AE40/(1+PENZTAR_ADAT!$E$5),0) -> 2542 | AD40: 213 | AE40: =PENZTAR_ADAT!E15 -> 3000 | AF40: 911000 | AJ40: PTG árbevétel
A41: AAA-10 | B41: SZ | D41: 2021-01-10 | E41: 2021-01-10 | F41: 2021-01-10 | G41: Készpénz | I41: hu | J41: HUF | M41: AP_TESZT2 | R41: 16768 | S41: 1704 | T41: 20000 | U41: 381000 | Y41: 1 | Z41: db | AA41: 3150 | AB41: =IFERROR(VLOOKUP(PENZTAR_ADAT!$F$5,Beallitasok!$F$2:$G$6,2,FALSE),2) -> 13.1 | AC41: =ROUND(AE41/(1+PENZTAR_ADAT!$F$5),0) -> 3150 | AD41: 213 | AE41: =PENZTAR_ADAT!F15 -> 4000 | AF41: 911000 | AJ41: PTG árbevétel
A42: =Beallitasok!$B$2&PENZTAR_ADAT!B16 -> AAA-11 | B42: SZ | D42: =DATE(PENZTAR_ADAT!$F$1,VLOOKUP(PENZTAR_ADAT!$H$1,Beallitasok!$K$2:$L$13,2,FALSE),PENZTAR_ADAT!A16) -> 2021-01-11 | E42: =D42 -> 2021-01-11 | F42: 2021-01-11 | G42: =Beallitasok!$B$4 -> Készpénz | I42: hu | J42: HUF | M42: =Beallitasok!$B$6 -> AP_TESZT2 | R42: 18446 | S42: 1872 | T42: 22000 | U42: =Beallitasok!$B$9 -> 381000 | Y42: 1 | Z42: db | AA42: 866 | AB42: =IFERROR(VLOOKUP(PENZTAR_ADAT!$C$5,Beallitasok!$F$2:$G$6,2,FALSE),2) -> 13.1 | AC42: =ROUND(AE42/(1+PENZTAR_ADAT!$C$5),0) -> 866 | AD42: =AE42-AC42 -> 234 | AE42: =PENZTAR_ADAT!C16 -> 1100 | AF42: =Beallitasok!$B$8 -> 911000 | AJ42: =Beallitasok!$B$11 -> PTG árbevétel
A43: =A42 -> AAA-11 | B43: =B42 -> SZ | D43: 2021-01-11 | E43: =E42 -> 2021-01-11 | F43: =F42 -> 2021-01-11 | G43: =G42 -> Készpénz | I43: =I42 -> hu | J43: =J42 -> HUF | M43: =M42 -> AP_TESZT2 | R43: 18446 | S43: 1872 | T43: 22000 | U43: =U42 -> 381000 | Y43: =Y42 -> 1 | Z43: =Z42 -> db | AA43: 2095 | AB43: =IFERROR(VLOOKUP(PENZTAR_ADAT!$D$5,Beallitasok!$F$2:$G$6,2,FALSE),2) -> 5.28 | AC43: =ROUND(AE43/(1+PENZTAR_ADAT!$D$5),0) -> 2095 | AD43: =AD42 -> 234 | AE43: =PENZTAR_ADAT!D16 -> 2200 | AF43: =AF42 -> 911000 | AJ43: =AJ42 -> PTG árbevétel
A44: AAA-11 | B44: SZ | D44: 2021-01-11 | E44: 2021-01-11 | F44: 2021-01-11 | G44: Készpénz | I44: hu | J44: HUF | M44: AP_TESZT2 | R44: 18446 | S44: 1872 | T44: 22000 | U44: 381000 | Y44: 1 | Z44: db | AA44: 2797 | AB44: =IFERROR(VLOOKUP(PENZTAR_ADAT!$E$5,Beallitasok!$F$2:$G$6,2,FALSE),2) -> 12.26 | AC44: =ROUND(AE44/(1+PENZTAR_ADAT!$E$5),0) -> 2797 | AD44: 234 | AE44: =PENZTAR_ADAT!E16 -> 3300 | AF44: 911000 | AJ44: PTG árbevétel
A45: AAA-11 | B45: SZ | D45: 2021-01-11 | E45: 2021-01-11 | F45: 2021-01-11 | G45: Készpénz | I45: hu | J45: HUF | M45: AP_TESZT2 | R45: 18446 | S45: 1872 | T45: 22000 | U45: 381000 | Y45: 1 | Z45: db | AA45: 3465 | AB45: =IFERROR(VLOOKUP(PENZTAR_ADAT!$F$5,Beallitasok!$F$2:$G$6,2,FALSE),2) -> 13.1 | AC45: =ROUND(AE45/(1+PENZTAR_ADAT!$F$5),0) -> 3465 | AD45: 234 | AE45: =PENZTAR_ADAT!F16 -> 4400 | AF45: 911000 | AJ45: PTG árbevétel
A46: =Beallitasok!$B$2&PENZTAR_ADAT!B17 -> AAA-12 | B46: SZ | D46: =DATE(PENZTAR_ADAT!$F$1,VLOOKUP(PENZTAR_ADAT!$H$1,Beallitasok!$K$2:$L$13,2,FALSE),PENZTAR_ADAT!A17) -> 2021-01-12 | E46: =D46 -> 2021-01-12 | F46: 2021-01-12 | G46: =Beallitasok!$B$4 -> Készpénz | I46: hu | J46: HUF | M46: =Beallitasok!$B$6 -> AP_TESZT2 | R46: 20124 | S46: 2040 | T46: 24000 | U46: =Beallitasok!$B$9 -> 381000 | Y46: 1 | Z46: db | AA46: 945 | AB46: =IFERROR(VLOOKUP(PENZTAR_ADAT!$C$5,Beallitasok!$F$2:$G$6,2,FALSE),2) -> 13.1 | AC46: =ROUND(AE46/(1+PENZTAR_ADAT!$C$5),0) -> 945 | AD46: =AE46-AC46 -> 255 | AE46: =PENZTAR_ADAT!C17 -> 1200 | AF46: =Beallitasok!$B$8 -> 911000 | AJ46: =Beallitasok!$B$11 -> PTG árbevétel
A47: =A46 -> AAA-12 | B47: =B46 -> SZ | D47: 2021-01-12 | E47: =E46 -> 2021-01-12 | F47: =F46 -> 2021-01-12 | G47: =G46 -> Készpénz | I47: =I46 -> hu | J47: =J46 -> HUF | M47: =M46 -> AP_TESZT2 | R47: 20124 | S47: 2040 | T47: 24000 | U47: =U46 -> 381000 | Y47: =Y46 -> 1 | Z47: =Z46 -> db | AA47: 2286 | AB47: =IFERROR(VLOOKUP(PENZTAR_ADAT!$D$5,Beallitasok!$F$2:$G$6,2,FALSE),2) -> 5.28 | AC47: =ROUND(AE47/(1+PENZTAR_ADAT!$D$5),0) -> 2286 | AD47: =AD46 -> 255 | AE47: =PENZTAR_ADAT!D17 -> 2400 | AF47: =AF46 -> 911000 | AJ47: =AJ46 -> PTG árbevétel
A48: AAA-12 | B48: SZ | D48: 2021-01-12 | E48: 2021-01-12 | F48: 2021-01-12 | G48: Készpénz | I48: hu | J48: HUF | M48: AP_TESZT2 | R48: 20124 | S48: 2040 | T48: 24000 | U48: 381000 | Y48: 1 | Z48: db | AA48: 3051 | AB48: =IFERROR(VLOOKUP(PENZTAR_ADAT!$E$5,Beallitasok!$F$2:$G$6,2,FALSE),2) -> 12.26 | AC48: =ROUND(AE48/(1+PENZTAR_ADAT!$E$5),0) -> 3051 | AD48: 255 | AE48: =PENZTAR_ADAT!E17 -> 3600 | AF48: 911000 | AJ48: PTG árbevétel
A49: AAA-12 | B49: SZ | D49: 2021-01-12 | E49: 2021-01-12 | F49: 2021-01-12 | G49: Készpénz | I49: hu | J49: HUF | M49: AP_TESZT2 | R49: 20124 | S49: 2040 | T49: 24000 | U49: 381000 | Y49: 1 | Z49: db | AA49: 3780 | AB49: =IFERROR(VLOOKUP(PENZTAR_ADAT!$F$5,Beallitasok!$F$2:$G$6,2,FALSE),2) -> 13.1 | AC49: =ROUND(AE49/(1+PENZTAR_ADAT!$F$5),0) -> 3780 | AD49: 255 | AE49: =PENZTAR_ADAT!F17 -> 4800 | AF49: 911000 | AJ49: PTG árbevétel
A50: =Beallitasok!$B$2&PENZTAR_ADAT!B18 -> AAA-13 | B50: SZ | D50: =DATE(PENZTAR_ADAT!$F$1,VLOOKUP(PENZTAR_ADAT!$H$1,Beallitasok!$K$2:$L$13,2,FALSE),PENZTAR_ADAT!A18) -> 2021-01-13 | E50: =D50 -> 2021-01-13 | F50: 2021-01-13 | G50: =Beallitasok!$B$4 -> Készpénz | I50: hu | J50: HUF | M50: =Beallitasok!$B$6 -> AP_TESZT2 | R50: 21798 | S50: 2208 | T50: 26000 | U50: =Beallitasok!$B$9 -> 381000 | Y50: 1 | Z50: db | AA50: 1024 | AB50: =IFERROR(VLOOKUP(PENZTAR_ADAT!$C$5,Beallitasok!$F$2:$G$6,2,FALSE),2) -> 13.1 | AC50: =ROUND(AE50/(1+PENZTAR_ADAT!$C$5),0) -> 1024 | AD50: =AE50-AC50 -> 276 | AE50: =PENZTAR_ADAT!C18 -> 1300 | AF50: =Beallitasok!$B$8 -> 911000 | AJ50: =Beallitasok!$B$11 -> PTG árbevétel
A51: =A50 -> AAA-13 | B51: =B50 -> SZ | D51: 2021-01-13 | E51: =E50 -> 2021-01-13 | F51: =F50 -> 2021-01-13 | G51: =G50 -> Készpénz | I51: =I50 -> hu | J51: =J50 -> HUF | M51: =M50 -> AP_TESZT2 | R51: 21798 | S51: 2208 | T51: 26000 | U51: =U50 -> 381000 | Y51: =Y50 -> 1 | Z51: =Z50 -> db | AA51: 2476 | AB51: =IFERROR(VLOOKUP(PENZTAR_ADAT!$D$5,Beallitasok!$F$2:$G$6,2,FALSE),2) -> 5.28 | AC51: =ROUND(AE51/(1+PENZTAR_ADAT!$D$5),0) -> 2476 | AD51: =AD50 -> 276 | AE51: =PENZTAR_ADAT!D18 -> 2600 | AF51: =AF50 -> 911000 | AJ51: =AJ50 -> PTG árbevétel
A52: AAA-13 | B52: SZ | D52: 2021-01-13 | E52: 2021-01-13 | F52: 2021-01-13 | G52: Készpénz | I52: hu | J52: HUF | M52: AP_TESZT2 | R52: 21798 | S52: 2208 | T52: 26000 | U52: 381000 | Y52: 1 | Z52: db | AA52: 3305 | AB52: =IFERROR(VLOOKUP(PENZTAR_ADAT!$E$5,Beallitasok!$F$2:$G$6,2,FALSE),2) -> 12.26 | AC52: =ROUND(AE52/(1+PENZTAR_ADAT!$E$5),0) -> 3305 | AD52: 276 | AE52: =PENZTAR_ADAT!E18 -> 3900 | AF52: 911000 | AJ52: PTG árbevétel
A53: AAA-13 | B53: SZ | D53: 2021-01-13 | E53: 2021-01-13 | F53: 2021-01-13 | G53: Készpénz | I53: hu | J53: HUF | M53: AP_TESZT2 | R53: 21798 | S53: 2208 | T53: 26000 | U53: 381000 | Y53: 1 | Z53: db | AA53: 4094 | AB53: =IFERROR(VLOOKUP(PENZTAR_ADAT!$F$5,Beallitasok!$F$2:$G$6,2,FALSE),2) -> 13.1 | AC53: =ROUND(AE53/(1+PENZTAR_ADAT!$F$5),0) -> 4094 | AD53: 276 | AE53: =PENZTAR_ADAT!F18 -> 5200 | AF53: 911000 | AJ53: PTG árbevétel
A54: =Beallitasok!$B$2&PENZTAR_ADAT!B19 -> AAA-14 | B54: SZ | D54: =DATE(PENZTAR_ADAT!$F$1,VLOOKUP(PENZTAR_ADAT!$H$1,Beallitasok!$K$2:$L$13,2,FALSE),PENZTAR_ADAT!A19) -> 2021-01-14 | E54: =D54 -> 2021-01-14 | F54: 2021-01-14 | G54: =Beallitasok!$B$4 -> Készpénz | I54: hu | J54: HUF | M54: =Beallitasok!$B$6 -> AP_TESZT2 | R54: 23474 | S54: 2384 | T54: 28000 | U54: =Beallitasok!$B$9 -> 381000 | Y54: 1 | Z54: db | AA54: 1102 | AB54: =IFERROR(VLOOKUP(PENZTAR_ADAT!$C$5,Beallitasok!$F$2:$G$6,2,FALSE),2) -> 13.1 | AC54: =ROUND(AE54/(1+PENZTAR_ADAT!$C$5),0) -> 1102 | AD54: =AE54-AC54 -> 298 | AE54: =PENZTAR_ADAT!C19 -> 1400 | AF54: =Beallitasok!$B$8 -> 911000 | AJ54: =Beallitasok!$B$11 -> PTG árbevétel
A55: =A54 -> AAA-14 | B55: =B54 -> SZ | D55: 2021-01-14 | E55: =E54 -> 2021-01-14 | F55: =F54 -> 2021-01-14 | G55: =G54 -> Készpénz | I55: =I54 -> hu | J55: =J54 -> HUF | M55: =M54 -> AP_TESZT2 | R55: 23474 | S55: 2384 | T55: 28000 | U55: =U54 -> 381000 | Y55: =Y54 -> 1 | Z55: =Z54 -> db | AA55: 2667 | AB55: =IFERROR(VLOOKUP(PENZTAR_ADAT!$D$5,Beallitasok!$F$2:$G$6,2,FALSE),2) -> 5.28 | AC55: =ROUND(AE55/(1+PENZTAR_ADAT!$D$5),0) -> 2667 | AD55: =AD54 -> 298 | AE55: =PENZTAR_ADAT!D19 -> 2800 | AF55: =AF54 -> 911000 | AJ55: =AJ54 -> PTG árbevétel
A56: AAA-14 | B56: SZ | D56: 2021-01-14 | E56: 2021-01-14 | F56: 2021-01-14 | G56: Készpénz | I56: hu | J56: HUF | M56: AP_TESZT2 | R56: 23474 | S56: 2384 | T56: 28000 | U56: 381000 | Y56: 1 | Z56: db | AA56: 3559 | AB56: =IFERROR(VLOOKUP(PENZTAR_ADAT!$E$5,Beallitasok!$F$2:$G$6,2,FALSE),2) -> 12.26 | AC56: =ROUND(AE56/(1+PENZTAR_ADAT!$E$5),0) -> 3559 | AD56: 298 | AE56: =PENZTAR_ADAT!E19 -> 4200 | AF56: 911000 | AJ56: PTG árbevétel
A57: AAA-14 | B57: SZ | D57: 2021-01-14 | E57: 2021-01-14 | F57: 2021-01-14 | G57: Készpénz | I57: hu | J57: HUF | M57: AP_TESZT2 | R57: 23474 | S57: 2384 | T57: 28000 | U57: 381000 | Y57: 1 | Z57: db | AA57: 4409 | AB57: =IFERROR(VLOOKUP(PENZTAR_ADAT!$F$5,Beallitasok!$F$2:$G$6,2,FALSE),2) -> 13.1 | AC57: =ROUND(AE57/(1+PENZTAR_ADAT!$F$5),0) -> 4409 | AD57: 298 | AE57: =PENZTAR_ADAT!F19 -> 5600 | AF57: 911000 | AJ57: PTG árbevétel
A58: =Beallitasok!$B$2&PENZTAR_ADAT!B20 -> AAA-15 | B58: SZ | D58: =DATE(PENZTAR_ADAT!$F$1,VLOOKUP(PENZTAR_ADAT!$H$1,Beallitasok!$K$2:$L$13,2,FALSE),PENZTAR_ADAT!A20) -> 2021-01-15 | E58: =D58 -> 2021-01-15 | F58: 2021-01-15 | G58: =Beallitasok!$B$4 -> Készpénz | I58: hu | J58: HUF | M58: =Beallitasok!$B$6 -> AP_TESZT2 | R58: 25152 | S58: 2552 | T58: 30000 | U58: =Beallitasok!$B$9 -> 381000 | Y58: 1 | Z58: db | AA58: 1181 | AB58: =IFERROR(VLOOKUP(PENZTAR_ADAT!$C$5,Beallitasok!$F$2:$G$6,2,FALSE),2) -> 13.1 | AC58: =ROUND(AE58/(1+PENZTAR_ADAT!$C$5),0) -> 1181 | AD58: =AE58-AC58 -> 319 | AE58: =PENZTAR_ADAT!C20 -> 1500 | AF58: =Beallitasok!$B$8 -> 911000 | AJ58: =Beallitasok!$B$11 -> PTG árbevétel
A59: =A58 -> AAA-15 | B59: =B58 -> SZ | D59: 2021-01-15 | E59: =E58 -> 2021-01-15 | F59: =F58 -> 2021-01-15 | G59: =G58 -> Készpénz | I59: =I58 -> hu | J59: =J58 -> HUF | M59: =M58 -> AP_TESZT2 | R59: 25152 | S59: 2552 | T59: 30000 | U59: =U58 -> 381000 | Y59: =Y58 -> 1 | Z59: =Z58 -> db | AA59: 2857 | AB59: =IFERROR(VLOOKUP(PENZTAR_ADAT!$D$5,Beallitasok!$F$2:$G$6,2,FALSE),2) -> 5.28 | AC59: =ROUND(AE59/(1+PENZTAR_ADAT!$D$5),0) -> 2857 | AD59: =AD58 -> 319 | AE59: =PENZTAR_ADAT!D20 -> 3000 | AF59: =AF58 -> 911000 | AJ59: =AJ58 -> PTG árbevétel
A60: AAA-15 | B60: SZ | D60: 2021-01-15 | E60: 2021-01-15 | F60: 2021-01-15 | G60: Készpénz | I60: hu | J60: HUF | M60: AP_TESZT2 | R60: 25152 | S60: 2552 | T60: 30000 | U60: 381000 | Y60: 1 | Z60: db | AA60: 3814 | AB60: =IFERROR(VLOOKUP(PENZTAR_ADAT!$E$5,Beallitasok!$F$2:$G$6,2,FALSE),2) -> 12.26 | AC60: =ROUND(AE60/(1+PENZTAR_ADAT!$E$5),0) -> 3814 | AD60: 319 | AE60: =PENZTAR_ADAT!E20 -> 4500 | AF60: 911000 | AJ60: PTG árbevétel
A61: AAA-15 | B61: SZ | D61: 2021-01-15 | E61: 2021-01-15 | F61: 2021-01-15 | G61: Készpénz | I61: hu | J61: HUF | M61: AP_TESZT2 | R61: 25152 | S61: 2552 | T61: 30000 | U61: 381000 | Y61: 1 | Z61: db | AA61: 4724 | AB61: =IFERROR(VLOOKUP(PENZTAR_ADAT!$F$5,Beallitasok!$F$2:$G$6,2,FALSE),2) -> 13.1 | AC61: =ROUND(AE61/(1+PENZTAR_ADAT!$F$5),0) -> 4724 | AD61: 319 | AE61: =PENZTAR_ADAT!F20 -> 6000 | AF61: 911000 | AJ61: PTG árbevétel
A62: =Beallitasok!$B$2&PENZTAR_ADAT!B21 -> AAA-16 | B62: SZ | D62: =DATE(PENZTAR_ADAT!$F$1,VLOOKUP(PENZTAR_ADAT!$H$1,Beallitasok!$K$2:$L$13,2,FALSE),PENZTAR_ADAT!A21) -> 2021-01-16 | E62: =D62 -> 2021-01-16 | F62: 2021-01-16 | G62: =Beallitasok!$B$4 -> Készpénz | I62: hu | J62: HUF | M62: =Beallitasok!$B$6 -> AP_TESZT2 | R62: 26830 | S62: 2720 | T62: 32000 | U62: =Beallitasok!$B$9 -> 381000 | Y62: 1 | Z62: db | AA62: 1260 | AB62: =IFERROR(VLOOKUP(PENZTAR_ADAT!$C$5,Beallitasok!$F$2:$G$6,2,FALSE),2) -> 13.1 | AC62: =ROUND(AE62/(1+PENZTAR_ADAT!$C$5),0) -> 1260 | AD62: =AE62-AC62 -> 340 | AE62: =PENZTAR_ADAT!C21 -> 1600 | AF62: =Beallitasok!$B$8 -> 911000 | AJ62: =Beallitasok!$B$11 -> PTG árbevétel
A63: =A62 -> AAA-16 | B63: =B62 -> SZ | D63: 2021-01-16 | E63: =E62 -> 2021-01-16 | F63: =F62 -> 2021-01-16 | G63: =G62 -> Készpénz | I63: =I62 -> hu | J63: =J62 -> HUF | M63: =M62 -> AP_TESZT2 | R63: 26830 | S63: 2720 | T63: 32000 | U63: =U62 -> 381000 | Y63: =Y62 -> 1 | Z63: =Z62 -> db | AA63: 3048 | AB63: =IFERROR(VLOOKUP(PENZTAR_ADAT!$D$5,Beallitasok!$F$2:$G$6,2,FALSE),2) -> 5.28 | AC63: =ROUND(AE63/(1+PENZTAR_ADAT!$D$5),0) -> 3048 | AD63: =AD62 -> 340 | AE63: =PENZTAR_ADAT!D21 -> 3200 | AF63: =AF62 -> 911000 | AJ63: =AJ62 -> PTG árbevétel
A64: AAA-16 | B64: SZ | D64: 2021-01-16 | E64: 2021-01-16 | F64: 2021-01-16 | G64: Készpénz | I64: hu | J64: HUF | M64: AP_TESZT2 | R64: 26830 | S64: 2720 | T64: 32000 | U64: 381000 | Y64: 1 | Z64: db | AA64: 4068 | AB64: =IFERROR(VLOOKUP(PENZTAR_ADAT!$E$5,Beallitasok!$F$2:$G$6,2,FALSE),2) -> 12.26 | AC64: =ROUND(AE64/(1+PENZTAR_ADAT!$E$5),0) -> 4068 | AD64: 340 | AE64: =PENZTAR_ADAT!E21 -> 4800 | AF64: 911000 | AJ64: PTG árbevétel
A65: AAA-16 | B65: SZ | D65: 2021-01-16 | E65: 2021-01-16 | F65: 2021-01-16 | G65: Készpénz | I65: hu | J65: HUF | M65: AP_TESZT2 | R65: 26830 | S65: 2720 | T65: 32000 | U65: 381000 | Y65: 1 | Z65: db | AA65: 5039 | AB65: =IFERROR(VLOOKUP(PENZTAR_ADAT!$F$5,Beallitasok!$F$2:$G$6,2,FALSE),2) -> 13.1 | AC65: =ROUND(AE65/(1+PENZTAR_ADAT!$F$5),0) -> 5039 | AD65: 340 | AE65: =PENZTAR_ADAT!F21 -> 6400 | AF65: 911000 | AJ65: PTG árbevétel
A66: =Beallitasok!$B$2&PENZTAR_ADAT!B22 -> AAA-17 | B66: SZ | D66: =DATE(PENZTAR_ADAT!$F$1,VLOOKUP(PENZTAR_ADAT!$H$1,Beallitasok!$K$2:$L$13,2,FALSE),PENZTAR_ADAT!A22) -> 2021-01-17 | E66: =D66 -> 2021-01-17 | F66: 2021-01-17 | G66: =Beallitasok!$B$4 -> Készpénz | I66: hu | J66: HUF | M66: =Beallitasok!$B$6 -> AP_TESZT2 | R66: =SUMIF($A:$A,$A66,AC:AC) -> 28506 | S66: =SUMIF($A:$A,$A66,AD:AD) -> 2888 | T66: =SUMIF($A:$A,$A66,AE:AE) -> 34000 | U66: =Beallitasok!$B$9 -> 381000 | Y66: 1 | Z66: db | AA66: 1339 | AB66: =IFERROR(VLOOKUP(PENZTAR_ADAT!$C$5,Beallitasok!$F$2:$G$6,2,FALSE),2) -> 13.1 | AC66: =ROUND(AE66/(1+PENZTAR_ADAT!$C$5),0) -> 1339 | AD66: =AE66-AC66 -> 361 | AE66: =PENZTAR_ADAT!C22 -> 1700 | AF66: =Beallitasok!$B$8 -> 911000 | AJ66: =Beallitasok!$B$11 -> PTG árbevétel
A67: =A66 -> AAA-17 | B67: =B66 -> SZ | D67: 2021-01-17 | E67: =E66 -> 2021-01-17 | F67: =F66 -> 2021-01-17 | G67: =G66 -> Készpénz | I67: =I66 -> hu | J67: =J66 -> HUF | M67: =M66 -> AP_TESZT2 | R67: 28506 | S67: 2888 | T67: 34000 | U67: =U66 -> 381000 | Y67: =Y66 -> 1 | Z67: =Z66 -> db | AA67: =AC67 -> 3238 | AB67: =IFERROR(VLOOKUP(PENZTAR_ADAT!$D$5,Beallitasok!$F$2:$G$6,2,FALSE),2) -> 5.28 | AC67: =ROUND(AE67/(1+PENZTAR_ADAT!$D$5),0) -> 3238 | AD67: =AD66 -> 361 | AE67: =PENZTAR_ADAT!D22 -> 3400 | AF67: =AF66 -> 911000 | AJ67: =AJ66 -> PTG árbevétel
A68: AAA-17 | B68: SZ | D68: 2021-01-17 | E68: 2021-01-17 | F68: 2021-01-17 | G68: Készpénz | I68: hu | J68: HUF | M68: AP_TESZT2 | R68: 28506 | S68: 2888 | T68: 34000 | U68: 381000 | Y68: 1 | Z68: db | AA68: 4322 | AB68: =IFERROR(VLOOKUP(PENZTAR_ADAT!$E$5,Beallitasok!$F$2:$G$6,2,FALSE),2) -> 12.26 | AC68: =ROUND(AE68/(1+PENZTAR_ADAT!$E$5),0) -> 4322 | AD68: 361 | AE68: =PENZTAR_ADAT!E22 -> 5100 | AF68: 911000 | AJ68: PTG árbevétel
A69: AAA-17 | B69: SZ | D69: 2021-01-17 | E69: 2021-01-17 | F69: 2021-01-17 | G69: Készpénz | I69: hu | J69: HUF | M69: AP_TESZT2 | R69: 28506 | S69: 2888 | T69: 34000 | U69: 381000 | Y69: 1 | Z69: db | AA69: 5354 | AB69: =IFERROR(VLOOKUP(PENZTAR_ADAT!$F$5,Beallitasok!$F$2:$G$6,2,FALSE),2) -> 13.1 | AC69: =ROUND(AE69/(1+PENZTAR_ADAT!$F$5),0) -> 5354 | AD69: 361 | AE69: =PENZTAR_ADAT!F22 -> 6800 | AF69: 911000 | AJ69: PTG árbevétel
A70: =Beallitasok!$B$2&PENZTAR_ADAT!B23 -> AAA-18 | B70: SZ | D70: =DATE(PENZTAR_ADAT!$F$1,VLOOKUP(PENZTAR_ADAT!$H$1,Beallitasok!$K$2:$L$13,2,FALSE),PENZTAR_ADAT!A23) -> 2021-01-18 | E70: =D70 -> 2021-01-18 | F70: 2021-01-18 | G70: =Beallitasok!$B$4 -> Készpénz | I70: hu | J70: HUF | M70: =Beallitasok!$B$6 -> AP_TESZT2 | R70: 30182 | S70: 3064 | T70: 36000 | U70: =Beallitasok!$B$9 -> 381000 | Y70: 1 | Z70: db | AA70: 1417 | AB70: =IFERROR(VLOOKUP(PENZTAR_ADAT!$C$5,Beallitasok!$F$2:$G$6,2,FALSE),2) -> 13.1 | AC70: =ROUND(AE70/(1+PENZTAR_ADAT!$C$5),0) -> 1417 | AD70: =AE70-AC70 -> 383 | AE70: =PENZTAR_ADAT!C23 -> 1800 | AF70: =Beallitasok!$B$8 -> 911000 | AJ70: =Beallitasok!$B$11 -> PTG árbevétel
A71: =A70 -> AAA-18 | B71: =B70 -> SZ | D71: =D70 -> 2021-01-18 | E71: =E70 -> 2021-01-18 | F71: =F70 -> 2021-01-18 | G71: =G70 -> Készpénz | I71: =I70 -> hu | J71: =J70 -> HUF | M71: =M70 -> AP_TESZT2 | R71: 30182 | S71: 3064 | T71: 36000 | U71: =U70 -> 381000 | Y71: =Y70 -> 1 | Z71: =Z70 -> db | AA71: 3429 | AB71: =IFERROR(VLOOKUP(PENZTAR_ADAT!$D$5,Beallitasok!$F$2:$G$6,2,FALSE),2) -> 5.28 | AC71: =ROUND(AE71/(1+PENZTAR_ADAT!$D$5),0) -> 3429 | AD71: =AD70 -> 383 | AE71: =PENZTAR_ADAT!D23 -> 3600 | AF71: =AF70 -> 911000 | AJ71: =AJ70 -> PTG árbevétel
A72: AAA-18 | B72: SZ | D72: 2021-01-18 | E72: 2021-01-18 | F72: 2021-01-18 | G72: Készpénz | I72: hu | J72: HUF | M72: AP_TESZT2 | R72: 30182 | S72: 3064 | T72: 36000 | U72: 381000 | Y72: 1 | Z72: db | AA72: 4576 | AB72: =IFERROR(VLOOKUP(PENZTAR_ADAT!$E$5,Beallitasok!$F$2:$G$6,2,FALSE),2) -> 12.26 | AC72: =ROUND(AE72/(1+PENZTAR_ADAT!$E$5),0) -> 4576 | AD72: 383 | AE72: =PENZTAR_ADAT!E23 -> 5400 | AF72: 911000 | AJ72: PTG árbevétel
A73: AAA-18 | B73: SZ | D73: 2021-01-18 | E73: 2021-01-18 | F73: 2021-01-18 | G73: Készpénz | I73: hu | J73: HUF | M73: AP_TESZT2 | R73: 30182 | S73: 3064 | T73: 36000 | U73: 381000 | Y73: 1 | Z73: db | AA73: 5669 | AB73: =IFERROR(VLOOKUP(PENZTAR_ADAT!$F$5,Beallitasok!$F$2:$G$6,2,FALSE),2) -> 13.1 | AC73: =ROUND(AE73/(1+PENZTAR_ADAT!$F$5),0) -> 5669 | AD73: 383 | AE73: =PENZTAR_ADAT!F23 -> 7200 | AF73: 911000 | AJ73: PTG árbevétel
A74: =Beallitasok!$B$2&PENZTAR_ADAT!B24 -> AAA-19 | B74: SZ | D74: =DATE(PENZTAR_ADAT!$F$1,VLOOKUP(PENZTAR_ADAT!$H$1,Beallitasok!$K$2:$L$13,2,FALSE),PENZTAR_ADAT!A24) -> 2021-01-19 | E74: =D74 -> 2021-01-19 | F74: 2021-01-19 | G74: =Beallitasok!$B$4 -> Készpénz | I74: hu | J74: HUF | M74: =Beallitasok!$B$6 -> AP_TESZT2 | R74: 31860 | S74: 3232 | T74: 38000 | U74: =Beallitasok!$B$9 -> 381000 | Y74: 1 | Z74: db | AA74: 1496 | AB74: =IFERROR(VLOOKUP(PENZTAR_ADAT!$C$5,Beallitasok!$F$2:$G$6,2,FALSE),2) -> 13.1 | AC74: =ROUND(AE74/(1+PENZTAR_ADAT!$C$5),0) -> 1496 | AD74: =AE74-AC74 -> 404 | AE74: =PENZTAR_ADAT!C24 -> 1900 | AF74: =Beallitasok!$B$8 -> 911000 | AJ74: =Beallitasok!$B$11 -> PTG árbevétel
A75: =A74 -> AAA-19 | B75: =B74 -> SZ | D75: 2021-01-19 | E75: =E74 -> 2021-01-19 | F75: =F74 -> 2021-01-19 | G75: =G74 -> Készpénz | I75: =I74 -> hu | J75: =J74 -> HUF | M75: =M74 -> AP_TESZT2 | R75: 31860 | S75: 3232 | T75: 38000 | U75: =U74 -> 381000 | Y75: =Y74 -> 1 | Z75: =Z74 -> db | AA75: 3619 | AB75: =IFERROR(VLOOKUP(PENZTAR_ADAT!$D$5,Beallitasok!$F$2:$G$6,2,FALSE),2) -> 5.28 | AC75: =ROUND(AE75/(1+PENZTAR_ADAT!$D$5),0) -> 3619 | AD75: =AD74 -> 404 | AE75: =PENZTAR_ADAT!D24 -> 3800 | AF75: =AF74 -> 911000 | AJ75: =AJ74 -> PTG árbevétel
A76: AAA-19 | B76: SZ | D76: 2021-01-19 | E76: 2021-01-19 | F76: 2021-01-19 | G76: Készpénz | I76: hu | J76: HUF | M76: AP_TESZT2 | R76: 31860 | S76: 3232 | T76: 38000 | U76: 381000 | Y76: 1 | Z76: db | AA76: 4831 | AB76: =IFERROR(VLOOKUP(PENZTAR_ADAT!$E$5,Beallitasok!$F$2:$G$6,2,FALSE),2) -> 12.26 | AC76: =ROUND(AE76/(1+PENZTAR_ADAT!$E$5),0) -> 4831 | AD76: 404 | AE76: =PENZTAR_ADAT!E24 -> 5700 | AF76: 911000 | AJ76: PTG árbevétel
A77: AAA-19 | B77: SZ | D77: 2021-01-19 | E77: 2021-01-19 | F77: 2021-01-19 | G77: Készpénz | I77: hu | J77: HUF | M77: AP_TESZT2 | R77: 31860 | S77: 3232 | T77: 38000 | U77: 381000 | Y77: 1 | Z77: db | AA77: 5984 | AB77: =IFERROR(VLOOKUP(PENZTAR_ADAT!$F$5,Beallitasok!$F$2:$G$6,2,FALSE),2) -> 13.1 | AC77: =ROUND(AE77/(1+PENZTAR_ADAT!$F$5),0) -> 5984 | AD77: 404 | AE77: =PENZTAR_ADAT!F24 -> 7600 | AF77: 911000 | AJ77: PTG árbevétel
A78: =Beallitasok!$B$2&PENZTAR_ADAT!B25 -> AAA-20 | B78: SZ | D78: =DATE(PENZTAR_ADAT!$F$1,VLOOKUP(PENZTAR_ADAT!$H$1,Beallitasok!$K$2:$L$13,2,FALSE),PENZTAR_ADAT!A25) -> 2021-01-20 | E78: =D78 -> 2021-01-20 | F78: 2021-01-20 | G78: =Beallitasok!$B$4 -> Készpénz | I78: hu | J78: HUF | M78: =Beallitasok!$B$6 -> AP_TESZT2 | R78: 33538 | S78: 3400 | T78: 40000 | U78: =Beallitasok!$B$9 -> 381000 | Y78: 1 | Z78: db | AA78: 1575 | AB78: =IFERROR(VLOOKUP(PENZTAR_ADAT!$C$5,Beallitasok!$F$2:$G$6,2,FALSE),2) -> 13.1 | AC78: =ROUND(AE78/(1+PENZTAR_ADAT!$C$5),0) -> 1575 | AD78: =AE78-AC78 -> 425 | AE78: =PENZTAR_ADAT!C25 -> 2000 | AF78: =Beallitasok!$B$8 -> 911000 | AJ78: =Beallitasok!$B$11 -> PTG árbevétel
A79: =A78 -> AAA-20 | B79: =B78 -> SZ | D79: 2021-01-20 | E79: =E78 -> 2021-01-20 | F79: =F78 -> 2021-01-20 | G79: =G78 -> Készpénz | I79: =I78 -> hu | J79: =J78 -> HUF | M79: =M78 -> AP_TESZT2 | R79: 33538 | S79: 3400 | T79: 40000 | U79: =U78 -> 381000 | Y79: =Y78 -> 1 | Z79: =Z78 -> db | AA79: 3810 | AB79: =IFERROR(VLOOKUP(PENZTAR_ADAT!$D$5,Beallitasok!$F$2:$G$6,2,FALSE),2) -> 5.28 | AC79: =ROUND(AE79/(1+PENZTAR_ADAT!$D$5),0) -> 3810 | AD79: =AD78 -> 425 | AE79: =PENZTAR_ADAT!D25 -> 4000 | AF79: =AF78 -> 911000 | AJ79: =AJ78 -> PTG árbevétel
A80: AAA-20 | B80: SZ | D80: 2021-01-20 | E80: 2021-01-20 | F80: 2021-01-20 | G80: Készpénz | I80: hu | J80: HUF | M80: AP_TESZT2 | R80: 33538 | S80: 3400 | T80: 40000 | U80: 381000 | Y80: 1 | Z80: db | AA80: 5085 | AB80: =IFERROR(VLOOKUP(PENZTAR_ADAT!$E$5,Beallitasok!$F$2:$G$6,2,FALSE),2) -> 12.26 | AC80: =ROUND(AE80/(1+PENZTAR_ADAT!$E$5),0) -> 5085 | AD80: 425 | AE80: =PENZTAR_ADAT!E25 -> 6000 | AF80: 911000 | AJ80: PTG árbevétel
A81: AAA-20 | B81: SZ | D81: 2021-01-20 | E81: 2021-01-20 | F81: 2021-01-20 | G81: Készpénz | I81: hu | J81: HUF | M81: AP_TESZT2 | R81: 33538 | S81: 3400 | T81: 40000 | U81: 381000 | Y81: 1 | Z81: db | AA81: 6299 | AB81: =IFERROR(VLOOKUP(PENZTAR_ADAT!$F$5,Beallitasok!$F$2:$G$6,2,FALSE),2) -> 13.1 | AC81: =ROUND(AE81/(1+PENZTAR_ADAT!$F$5),0) -> 6299 | AD81: 425 | AE81: =PENZTAR_ADAT!F25 -> 8000 | AF81: 911000 | AJ81: PTG árbevétel
A82: =Beallitasok!$B$2&PENZTAR_ADAT!B26 -> AAA-21 | B82: SZ | D82: =DATE(PENZTAR_ADAT!$F$1,VLOOKUP(PENZTAR_ADAT!$H$1,Beallitasok!$K$2:$L$13,2,FALSE),PENZTAR_ADAT!A26) -> 2021-01-21 | E82: =D82 -> 2021-01-21 | F82: 2021-01-21 | G82: =Beallitasok!$B$4 -> Készpénz | I82: hu | J82: HUF | M82: =Beallitasok!$B$6 -> AP_TESZT2 | R82: 35214 | S82: 3568 | T82: 42000 | U82: =Beallitasok!$B$9 -> 381000 | Y82: 1 | Z82: db | AA82: 1654 | AB82: =IFERROR(VLOOKUP(PENZTAR_ADAT!$C$5,Beallitasok!$F$2:$G$6,2,FALSE),2) -> 13.1 | AC82: =ROUND(AE82/(1+PENZTAR_ADAT!$C$5),0) -> 1654 | AD82: =AE82-AC82 -> 446 | AE82: =PENZTAR_ADAT!C26 -> 2100 | AF82: =Beallitasok!$B$8 -> 911000 | AJ82: =Beallitasok!$B$11 -> PTG árbevétel
A83: =A82 -> AAA-21 | B83: =B82 -> SZ | D83: 2021-01-21 | E83: =E82 -> 2021-01-21 | F83: =F82 -> 2021-01-21 | G83: =G82 -> Készpénz | I83: =I82 -> hu | J83: =J82 -> HUF | M83: =M82 -> AP_TESZT2 | R83: 35214 | S83: 3568 | T83: 42000 | U83: =U82 -> 381000 | Y83: =Y82 -> 1 | Z83: =Z82 -> db | AA83: 4000 | AB83: =IFERROR(VLOOKUP(PENZTAR_ADAT!$D$5,Beallitasok!$F$2:$G$6,2,FALSE),2) -> 5.28 | AC83: =ROUND(AE83/(1+PENZTAR_ADAT!$D$5),0) -> 4000 | AD83: =AD82 -> 446 | AE83: =PENZTAR_ADAT!D26 -> 4200 | AF83: =AF82 -> 911000 | AJ83: =AJ82 -> PTG árbevétel
A84: AAA-21 | B84: SZ | D84: 2021-01-21 | E84: 2021-01-21 | F84: 2021-01-21 | G84: Készpénz | I84: hu | J84: HUF | M84: AP_TESZT2 | R84: 35214 | S84: 3568 | T84: 42000 | U84: 381000 | Y84: 1 | Z84: db | AA84: 5339 | AB84: =IFERROR(VLOOKUP(PENZTAR_ADAT!$E$5,Beallitasok!$F$2:$G$6,2,FALSE),2) -> 12.26 | AC84: =ROUND(AE84/(1+PENZTAR_ADAT!$E$5),0) -> 5339 | AD84: 446 | AE84: =PENZTAR_ADAT!E26 -> 6300 | AF84: 911000 | AJ84: PTG árbevétel
A85: AAA-21 | B85: SZ | D85: 2021-01-21 | E85: 2021-01-21 | F85: 2021-01-21 | G85: Készpénz | I85: hu | J85: HUF | M85: AP_TESZT2 | R85: 35214 | S85: 3568 | T85: 42000 | U85: 381000 | Y85: 1 | Z85: db | AA85: 6614 | AB85: =IFERROR(VLOOKUP(PENZTAR_ADAT!$F$5,Beallitasok!$F$2:$G$6,2,FALSE),2) -> 13.1 | AC85: =ROUND(AE85/(1+PENZTAR_ADAT!$F$5),0) -> 6614 | AD85: 446 | AE85: =PENZTAR_ADAT!F26 -> 8400 | AF85: 911000 | AJ85: PTG árbevétel
A86: =Beallitasok!$B$2&PENZTAR_ADAT!B27 -> AAA-22 | B86: SZ | D86: =DATE(PENZTAR_ADAT!$F$1,VLOOKUP(PENZTAR_ADAT!$H$1,Beallitasok!$K$2:$L$13,2,FALSE),PENZTAR_ADAT!A27) -> 2021-01-22 | E86: =D86 -> 2021-01-22 | F86: 2021-01-22 | G86: =Beallitasok!$B$4 -> Készpénz | I86: hu | J86: HUF | M86: =Beallitasok!$B$6 -> AP_TESZT2 | R86: 36888 | S86: 3744 | T86: 44000 | U86: =Beallitasok!$B$9 -> 381000 | Y86: 1 | Z86: db | AA86: 1732 | AB86: =IFERROR(VLOOKUP(PENZTAR_ADAT!$C$5,Beallitasok!$F$2:$G$6,2,FALSE),2) -> 13.1 | AC86: =ROUND(AE86/(1+PENZTAR_ADAT!$C$5),0) -> 1732 | AD86: =AE86-AC86 -> 468 | AE86: =PENZTAR_ADAT!C27 -> 2200 | AF86: =Beallitasok!$B$8 -> 911000 | AJ86: =Beallitasok!$B$11 -> PTG árbevétel
A87: =A86 -> AAA-22 | B87: =B86 -> SZ | D87: 2021-01-22 | E87: =E86 -> 2021-01-22 | F87: =F86 -> 2021-01-22 | G87: =G86 -> Készpénz | I87: =I86 -> hu | J87: =J86 -> HUF | M87: =M86 -> AP_TESZT2 | R87: 36888 | S87: 3744 | T87: 44000 | U87: =U86 -> 381000 | Y87: =Y86 -> 1 | Z87: =Z86 -> db | AA87: 4190 | AB87: =IFERROR(VLOOKUP(PENZTAR_ADAT!$D$5,Beallitasok!$F$2:$G$6,2,FALSE),2) -> 5.28 | AC87: =ROUND(AE87/(1+PENZTAR_ADAT!$D$5),0) -> 4190 | AD87: =AD86 -> 468 | AE87: =PENZTAR_ADAT!D27 -> 4400 | AF87: =AF86 -> 911000 | AJ87: =AJ86 -> PTG árbevétel
A88: AAA-22 | B88: SZ | D88: 2021-01-22 | E88: 2021-01-22 | F88: 2021-01-22 | G88: Készpénz | I88: hu | J88: HUF | M88: AP_TESZT2 | R88: 36888 | S88: 3744 | T88: 44000 | U88: 381000 | Y88: 1 | Z88: db | AA88: 5593 | AB88: =IFERROR(VLOOKUP(PENZTAR_ADAT!$E$5,Beallitasok!$F$2:$G$6,2,FALSE),2) -> 12.26 | AC88: =ROUND(AE88/(1+PENZTAR_ADAT!$E$5),0) -> 5593 | AD88: 468 | AE88: =PENZTAR_ADAT!E27 -> 6600 | AF88: 911000 | AJ88: PTG árbevétel
A89: AAA-22 | B89: SZ | D89: 2021-01-22 | E89: 2021-01-22 | F89: 2021-01-22 | G89: Készpénz | I89: hu | J89: HUF | M89: AP_TESZT2 | R89: 36888 | S89: 3744 | T89: 44000 | U89: 381000 | Y89: 1 | Z89: db | AA89: 6929 | AB89: =IFERROR(VLOOKUP(PENZTAR_ADAT!$F$5,Beallitasok!$F$2:$G$6,2,FALSE),2) -> 13.1 | AC89: =ROUND(AE89/(1+PENZTAR_ADAT!$F$5),0) -> 6929 | AD89: 468 | AE89: =PENZTAR_ADAT!F27 -> 8800 | AF89: 911000 | AJ89: PTG árbevétel
A90: =Beallitasok!$B$2&PENZTAR_ADAT!B28 -> AAA-23 | B90: SZ | D90: =DATE(PENZTAR_ADAT!$F$1,VLOOKUP(PENZTAR_ADAT!$H$1,Beallitasok!$K$2:$L$13,2,FALSE),PENZTAR_ADAT!A28) -> 2021-01-23 | E90: =D90 -> 2021-01-23 | F90: 2021-01-23 | G90: =Beallitasok!$B$4 -> Készpénz | I90: hu | J90: HUF | M90: =Beallitasok!$B$6 -> AP_TESZT2 | R90: 38566 | S90: 3912 | T90: 46000 | U90: =Beallitasok!$B$9 -> 381000 | Y90: 1 | Z90: db | AA90: 1811 | AB90: =IFERROR(VLOOKUP(PENZTAR_ADAT!$C$5,Beallitasok!$F$2:$G$6,2,FALSE),2) -> 13.1 | AC90: =ROUND(AE90/(1+PENZTAR_ADAT!$C$5),0) -> 1811 | AD90: =AE90-AC90 -> 489 | AE90: =PENZTAR_ADAT!C28 -> 2300 | AF90: =Beallitasok!$B$8 -> 911000 | AJ90: =Beallitasok!$B$11 -> PTG árbevétel
A91: =A90 -> AAA-23 | B91: =B90 -> SZ | D91: 2021-01-23 | E91: =E90 -> 2021-01-23 | F91: =F90 -> 2021-01-23 | G91: =G90 -> Készpénz | I91: =I90 -> hu | J91: =J90 -> HUF | M91: =M90 -> AP_TESZT2 | R91: 38566 | S91: 3912 | T91: 46000 | U91: =U90 -> 381000 | Y91: =Y90 -> 1 | Z91: =Z90 -> db | AA91: 4381 | AB91: =IFERROR(VLOOKUP(PENZTAR_ADAT!$D$5,Beallitasok!$F$2:$G$6,2,FALSE),2) -> 5.28 | AC91: =ROUND(AE91/(1+PENZTAR_ADAT!$D$5),0) -> 4381 | AD91: =AD90 -> 489 | AE91: =PENZTAR_ADAT!D28 -> 4600 | AF91: =AF90 -> 911000 | AJ91: =AJ90 -> PTG árbevétel
A92: AAA-23 | B92: SZ | D92: 2021-01-23 | E92: 2021-01-23 | F92: 2021-01-23 | G92: Készpénz | I92: hu | J92: HUF | M92: AP_TESZT2 | R92: 38566 | S92: 3912 | T92: 46000 | U92: 381000 | Y92: 1 | Z92: db | AA92: 5847 | AB92: =IFERROR(VLOOKUP(PENZTAR_ADAT!$E$5,Beallitasok!$F$2:$G$6,2,FALSE),2) -> 12.26 | AC92: =ROUND(AE92/(1+PENZTAR_ADAT!$E$5),0) -> 5847 | AD92: 489 | AE92: =PENZTAR_ADAT!E28 -> 6900 | AF92: 911000 | AJ92: PTG árbevétel
A93: AAA-23 | B93: SZ | D93: 2021-01-23 | E93: 2021-01-23 | F93: 2021-01-23 | G93: Készpénz | I93: hu | J93: HUF | M93: AP_TESZT2 | R93: 38566 | S93: 3912 | T93: 46000 | U93: 381000 | Y93: 1 | Z93: db | AA93: 7244 | AB93: =IFERROR(VLOOKUP(PENZTAR_ADAT!$F$5,Beallitasok!$F$2:$G$6,2,FALSE),2) -> 13.1 | AC93: =ROUND(AE93/(1+PENZTAR_ADAT!$F$5),0) -> 7244 | AD93: 489 | AE93: =PENZTAR_ADAT!F28 -> 9200 | AF93: 911000 | AJ93: PTG árbevétel
A94: =Beallitasok!$B$2&PENZTAR_ADAT!B29 -> AAA-24 | B94: SZ | D94: =DATE(PENZTAR_ADAT!$F$1,VLOOKUP(PENZTAR_ADAT!$H$1,Beallitasok!$K$2:$L$13,2,FALSE),PENZTAR_ADAT!A29) -> 2021-01-24 | E94: =D94 -> 2021-01-24 | F94: 2021-01-24 | G94: =Beallitasok!$B$4 -> Készpénz | I94: hu | J94: HUF | M94: =Beallitasok!$B$6 -> AP_TESZT2 | R94: 40244 | S94: 4080 | T94: 48000 | U94: =Beallitasok!$B$9 -> 381000 | Y94: 1 | Z94: db | AA94: 1890 | AB94: =IFERROR(VLOOKUP(PENZTAR_ADAT!$C$5,Beallitasok!$F$2:$G$6,2,FALSE),2) -> 13.1 | AC94: =ROUND(AE94/(1+PENZTAR_ADAT!$C$5),0) -> 1890 | AD94: =AE94-AC94 -> 510 | AE94: =PENZTAR_ADAT!C29 -> 2400 | AF94: =Beallitasok!$B$8 -> 911000 | AJ94: =Beallitasok!$B$11 -> PTG árbevétel
A95: =A94 -> AAA-24 | B95: =B94 -> SZ | D95: 2021-01-24 | E95: =E94 -> 2021-01-24 | F95: =F94 -> 2021-01-24 | G95: =G94 -> Készpénz | I95: =I94 -> hu | J95: =J94 -> HUF | M95: =M94 -> AP_TESZT2 | R95: 40244 | S95: 4080 | T95: 48000 | U95: =U94 -> 381000 | Y95: =Y94 -> 1 | Z95: =Z94 -> db | AA95: 4571 | AB95: =IFERROR(VLOOKUP(PENZTAR_ADAT!$D$5,Beallitasok!$F$2:$G$6,2,FALSE),2) -> 5.28 | AC95: =ROUND(AE95/(1+PENZTAR_ADAT!$D$5),0) -> 4571 | AD95: =AD94 -> 510 | AE95: =PENZTAR_ADAT!D29 -> 4800 | AF95: =AF94 -> 911000 | AJ95: =AJ94 -> PTG árbevétel
A96: AAA-24 | B96: SZ | D96: 2021-01-24 | E96: 2021-01-24 | F96: 2021-01-24 | G96: Készpénz | I96: hu | J96: HUF | M96: AP_TESZT2 | R96: 40244 | S96: 4080 | T96: 48000 | U96: 381000 | Y96: 1 | Z96: db | AA96: 6102 | AB96: =IFERROR(VLOOKUP(PENZTAR_ADAT!$E$5,Beallitasok!$F$2:$G$6,2,FALSE),2) -> 12.26 | AC96: =ROUND(AE96/(1+PENZTAR_ADAT!$E$5),0) -> 6102 | AD96: 510 | AE96: =PENZTAR_ADAT!E29 -> 7200 | AF96: 911000 | AJ96: PTG árbevétel
A97: AAA-24 | B97: SZ | D97: 2021-01-24 | E97: 2021-01-24 | F97: 2021-01-24 | G97: Készpénz | I97: hu | J97: HUF | M97: AP_TESZT2 | R97: 40244 | S97: 4080 | T97: 48000 | U97: 381000 | Y97: 1 | Z97: db | AA97: 7559 | AB97: =IFERROR(VLOOKUP(PENZTAR_ADAT!$F$5,Beallitasok!$F$2:$G$6,2,FALSE),2) -> 13.1 | AC97: =ROUND(AE97/(1+PENZTAR_ADAT!$F$5),0) -> 7559 | AD97: 510 | AE97: =PENZTAR_ADAT!F29 -> 9600 | AF97: 911000 | AJ97: PTG árbevétel
A98: =Beallitasok!$B$2&PENZTAR_ADAT!B30 -> AAA-25 | B98: SZ | D98: =DATE(PENZTAR_ADAT!$F$1,VLOOKUP(PENZTAR_ADAT!$H$1,Beallitasok!$K$2:$L$13,2,FALSE),PENZTAR_ADAT!A30) -> 2021-01-25 | E98: =D98 -> 2021-01-25 | F98: 2021-01-25 | G98: =Beallitasok!$B$4 -> Készpénz | I98: hu | J98: HUF | M98: =Beallitasok!$B$6 -> AP_TESZT2 | R98: =SUMIF($A:$A,$A98,AC:AC) -> 41922 | S98: =SUMIF($A:$A,$A98,AD:AD) -> 4248 | T98: =SUMIF($A:$A,$A98,AE:AE) -> 50000 | U98: =Beallitasok!$B$9 -> 381000 | Y98: 1 | Z98: db | AA98: 1969 | AB98: =IFERROR(VLOOKUP(PENZTAR_ADAT!$C$5,Beallitasok!$F$2:$G$6,2,FALSE),2) -> 13.1 | AC98: =ROUND(AE98/(1+PENZTAR_ADAT!$C$5),0) -> 1969 | AD98: =AE98-AC98 -> 531 | AE98: =PENZTAR_ADAT!C30 -> 2500 | AF98: =Beallitasok!$B$8 -> 911000 | AJ98: =Beallitasok!$B$11 -> PTG árbevétel
A99: =A98 -> AAA-25 | B99: =B98 -> SZ | D99: 2021-01-25 | E99: =E98 -> 2021-01-25 | F99: =F98 -> 2021-01-25 | G99: =G98 -> Készpénz | I99: =I98 -> hu | J99: =J98 -> HUF | M99: =M98 -> AP_TESZT2 | R99: 41922 | S99: 4248 | T99: 50000 | U99: =U98 -> 381000 | Y99: =Y98 -> 1 | Z99: =Z98 -> db | AA99: 4762 | AB99: =IFERROR(VLOOKUP(PENZTAR_ADAT!$D$5,Beallitasok!$F$2:$G$6,2,FALSE),2) -> 5.28 | AC99: =ROUND(AE99/(1+PENZTAR_ADAT!$D$5),0) -> 4762 | AD99: =AD98 -> 531 | AE99: =PENZTAR_ADAT!D30 -> 5000 | AF99: =AF98 -> 911000 | AJ99: =AJ98 -> PTG árbevétel
A100: AAA-25 | B100: SZ | D100: 2021-01-25 | E100: 2021-01-25 | F100: 2021-01-25 | G100: Készpénz | I100: hu | J100: HUF | M100: AP_TESZT2 | R100: 41922 | S100: 4248 | T100: 50000 | U100: 381000 | Y100: 1 | Z100: db | AA100: 6356 | AB100: =IFERROR(VLOOKUP(PENZTAR_ADAT!$E$5,Beallitasok!$F$2:$G$6,2,FALSE),2) -> 12.26 | AC100: =ROUND(AE100/(1+PENZTAR_ADAT!$E$5),0) -> 6356 | AD100: 531 | AE100: =PENZTAR_ADAT!E30 -> 7500 | AF100: 911000 | AJ100: PTG árbevétel
A101: AAA-25 | B101: SZ | D101: 2021-01-25 | E101: 2021-01-25 | F101: 2021-01-25 | G101: Készpénz | I101: hu | J101: HUF | M101: AP_TESZT2 | R101: 41922 | S101: 4248 | T101: 50000 | U101: 381000 | Y101: 1 | Z101: db | AA101: 7874 | AB101: =IFERROR(VLOOKUP(PENZTAR_ADAT!$F$5,Beallitasok!$F$2:$G$6,2,FALSE),2) -> 13.1 | AC101: =ROUND(AE101/(1+PENZTAR_ADAT!$F$5),0) -> 7874 | AD101: 531 | AE101: =PENZTAR_ADAT!F30 -> 10000 | AF101: 911000 | AJ101: PTG árbevétel
A102: =Beallitasok!$B$2&PENZTAR_ADAT!B31 -> AAA-26 | B102: SZ | D102: =DATE(PENZTAR_ADAT!$F$1,VLOOKUP(PENZTAR_ADAT!$H$1,Beallitasok!$K$2:$L$13,2,FALSE),PENZTAR_ADAT!A31) -> 2021-01-26 | E102: =D102 -> 2021-01-26 | F102: 2021-01-26 | G102: =Beallitasok!$B$4 -> Készpénz | I102: hu | J102: HUF | M102: =Beallitasok!$B$6 -> AP_TESZT2 | R102: 43596 | S102: 4424 | T102: 52000 | U102: =Beallitasok!$B$9 -> 381000 | Y102: 1 | Z102: db | AA102: 2047 | AB102: =IFERROR(VLOOKUP(PENZTAR_ADAT!$C$5,Beallitasok!$F$2:$G$6,2,FALSE),2) -> 13.1 | AC102: =ROUND(AE102/(1+PENZTAR_ADAT!$C$5),0) -> 2047 | AD102: =AE102-AC102 -> 553 | AE102: =PENZTAR_ADAT!C31 -> 2600 | AF102: =Beallitasok!$B$8 -> 911000 | AJ102: =Beallitasok!$B$11 -> PTG árbevétel
A103: =A102 -> AAA-26 | B103: =B102 -> SZ | D103: 2021-01-26 | E103: =E102 -> 2021-01-26 | F103: =F102 -> 2021-01-26 | G103: =G102 -> Készpénz | I103: =I102 -> hu | J103: =J102 -> HUF | M103: =M102 -> AP_TESZT2 | R103: 43596 | S103: 4424 | T103: 52000 | U103: =U102 -> 381000 | Y103: =Y102 -> 1 | Z103: =Z102 -> db | AA103: 4952 | AB103: =IFERROR(VLOOKUP(PENZTAR_ADAT!$D$5,Beallitasok!$F$2:$G$6,2,FALSE),2) -> 5.28 | AC103: =ROUND(AE103/(1+PENZTAR_ADAT!$D$5),0) -> 4952 | AD103: =AD102 -> 553 | AE103: =PENZTAR_ADAT!D31 -> 5200 | AF103: =AF102 -> 911000 | AJ103: =AJ102 -> PTG árbevétel
A104: AAA-26 | B104: SZ | D104: 2021-01-26 | E104: 2021-01-26 | F104: 2021-01-26 | G104: Készpénz | I104: hu | J104: HUF | M104: AP_TESZT2 | R104: 43596 | S104: 4424 | T104: 52000 | U104: 381000 | Y104: 1 | Z104: db | AA104: 6610 | AB104: =IFERROR(VLOOKUP(PENZTAR_ADAT!$E$5,Beallitasok!$F$2:$G$6,2,FALSE),2) -> 12.26 | AC104: =ROUND(AE104/(1+PENZTAR_ADAT!$E$5),0) -> 6610 | AD104: 553 | AE104: =PENZTAR_ADAT!E31 -> 7800 | AF104: 911000 | AJ104: PTG árbevétel
A105: AAA-26 | B105: SZ | D105: 2021-01-26 | E105: 2021-01-26 | F105: 2021-01-26 | G105: Készpénz | I105: hu | J105: HUF | M105: AP_TESZT2 | R105: 43596 | S105: 4424 | T105: 52000 | U105: 381000 | Y105: 1 | Z105: db | AA105: 8189 | AB105: =IFERROR(VLOOKUP(PENZTAR_ADAT!$F$5,Beallitasok!$F$2:$G$6,2,FALSE),2) -> 13.1 | AC105: =ROUND(AE105/(1+PENZTAR_ADAT!$F$5),0) -> 8189 | AD105: 553 | AE105: =PENZTAR_ADAT!F31 -> 10400 | AF105: 911000 | AJ105: PTG árbevétel
A106: =Beallitasok!$B$2&PENZTAR_ADAT!B32 -> AAA-27 | B106: SZ | D106: =DATE(PENZTAR_ADAT!$F$1,VLOOKUP(PENZTAR_ADAT!$H$1,Beallitasok!$K$2:$L$13,2,FALSE),PENZTAR_ADAT!A32) -> 2021-01-27 | E106: =D106 -> 2021-01-27 | F106: 2021-01-27 | G106: =Beallitasok!$B$4 -> Készpénz | I106: hu | J106: HUF | M106: =Beallitasok!$B$6 -> AP_TESZT2 | R106: 45274 | S106: 4592 | T106: 54000 | U106: =Beallitasok!$B$9 -> 381000 | Y106: 1 | Z106: db | AA106: 2126 | AB106: =IFERROR(VLOOKUP(PENZTAR_ADAT!$C$5,Beallitasok!$F$2:$G$6,2,FALSE),2) -> 13.1 | AC106: =ROUND(AE106/(1+PENZTAR_ADAT!$C$5),0) -> 2126 | AD106: =AE106-AC106 -> 574 | AE106: =PENZTAR_ADAT!C32 -> 2700 | AF106: =Beallitasok!$B$8 -> 911000 | AJ106: =Beallitasok!$B$11 -> PTG árbevétel
A107: =A106 -> AAA-27 | B107: =B106 -> SZ | D107: 2021-01-27 | E107: =E106 -> 2021-01-27 | F107: =F106 -> 2021-01-27 | G107: =G106 -> Készpénz | I107: =I106 -> hu | J107: =J106 -> HUF | M107: =M106 -> AP_TESZT2 | R107: 45274 | S107: 4592 | T107: 54000 | U107: =U106 -> 381000 | Y107: =Y106 -> 1 | Z107: =Z106 -> db | AA107: 5143 | AB107: =IFERROR(VLOOKUP(PENZTAR_ADAT!$D$5,Beallitasok!$F$2:$G$6,2,FALSE),2) -> 5.28 | AC107: =ROUND(AE107/(1+PENZTAR_ADAT!$D$5),0) -> 5143 | AD107: =AD106 -> 574 | AE107: =PENZTAR_ADAT!D32 -> 5400 | AF107: =AF106 -> 911000 | AJ107: =AJ106 -> PTG árbevétel
A108: AAA-27 | B108: SZ | D108: 2021-01-27 | E108: 2021-01-27 | F108: 2021-01-27 | G108: Készpénz | I108: hu | J108: HUF | M108: AP_TESZT2 | R108: 45274 | S108: 4592 | T108: 54000 | U108: 381000 | Y108: 1 | Z108: db | AA108: 6864 | AB108: =IFERROR(VLOOKUP(PENZTAR_ADAT!$E$5,Beallitasok!$F$2:$G$6,2,FALSE),2) -> 12.26 | AC108: =ROUND(AE108/(1+PENZTAR_ADAT!$E$5),0) -> 6864 | AD108: 574 | AE108: =PENZTAR_ADAT!E32 -> 8100 | AF108: 911000 | AJ108: PTG árbevétel
A109: AAA-27 | B109: SZ | D109: 2021-01-27 | E109: 2021-01-27 | F109: 2021-01-27 | G109: Készpénz | I109: hu | J109: HUF | M109: AP_TESZT2 | R109: 45274 | S109: 4592 | T109: 54000 | U109: 381000 | Y109: 1 | Z109: db | AA109: 8504 | AB109: =IFERROR(VLOOKUP(PENZTAR_ADAT!$F$5,Beallitasok!$F$2:$G$6,2,FALSE),2) -> 13.1 | AC109: =ROUND(AE109/(1+PENZTAR_ADAT!$F$5),0) -> 8504 | AD109: 574 | AE109: =PENZTAR_ADAT!F32 -> 10800 | AF109: 911000 | AJ109: PTG árbevétel
A110: =Beallitasok!$B$2&PENZTAR_ADAT!B33 -> AAA-28 | B110: SZ | D110: =DATE(PENZTAR_ADAT!$F$1,VLOOKUP(PENZTAR_ADAT!$H$1,Beallitasok!$K$2:$L$13,2,FALSE),PENZTAR_ADAT!A33) -> 2021-01-28 | E110: =D110 -> 2021-01-28 | F110: 2021-01-28 | G110: =Beallitasok!$B$4 -> Készpénz | I110: hu | J110: HUF | M110: =Beallitasok!$B$6 -> AP_TESZT2 | R110: 46952 | S110: 4760 | T110: 56000 | U110: =Beallitasok!$B$9 -> 381000 | Y110: 1 | Z110: db | AA110: 2205 | AB110: =IFERROR(VLOOKUP(PENZTAR_ADAT!$C$5,Beallitasok!$F$2:$G$6,2,FALSE),2) -> 13.1 | AC110: =ROUND(AE110/(1+PENZTAR_ADAT!$C$5),0) -> 2205 | AD110: =AE110-AC110 -> 595 | AE110: =PENZTAR_ADAT!C33 -> 2800 | AF110: =Beallitasok!$B$8 -> 911000 | AJ110: =Beallitasok!$B$11 -> PTG árbevétel
A111: =A110 -> AAA-28 | B111: =B110 -> SZ | D111: 2021-01-28 | E111: =E110 -> 2021-01-28 | F111: =F110 -> 2021-01-28 | G111: =G110 -> Készpénz | I111: =I110 -> hu | J111: =J110 -> HUF | M111: =M110 -> AP_TESZT2 | R111: 46952 | S111: 4760 | T111: 56000 | U111: =U110 -> 381000 | Y111: =Y110 -> 1 | Z111: =Z110 -> db | AA111: 5333 | AB111: =IFERROR(VLOOKUP(PENZTAR_ADAT!$D$5,Beallitasok!$F$2:$G$6,2,FALSE),2) -> 5.28 | AC111: =ROUND(AE111/(1+PENZTAR_ADAT!$D$5),0) -> 5333 | AD111: =AD110 -> 595 | AE111: =PENZTAR_ADAT!D33 -> 5600 | AF111: =AF110 -> 911000 | AJ111: =AJ110 -> PTG árbevétel
A112: AAA-28 | B112: SZ | D112: 2021-01-28 | E112: 2021-01-28 | F112: 2021-01-28 | G112: Készpénz | I112: hu | J112: HUF | M112: AP_TESZT2 | R112: 46952 | S112: 4760 | T112: 56000 | U112: 381000 | Y112: 1 | Z112: db | AA112: 7119 | AB112: =IFERROR(VLOOKUP(PENZTAR_ADAT!$E$5,Beallitasok!$F$2:$G$6,2,FALSE),2) -> 12.26 | AC112: =ROUND(AE112/(1+PENZTAR_ADAT!$E$5),0) -> 7119 | AD112: 595 | AE112: =PENZTAR_ADAT!E33 -> 8400 | AF112: 911000 | AJ112: PTG árbevétel
A113: AAA-28 | B113: SZ | D113: 2021-01-28 | E113: 2021-01-28 | F113: 2021-01-28 | G113: Készpénz | I113: hu | J113: HUF | M113: AP_TESZT2 | R113: 46952 | S113: 4760 | T113: 56000 | U113: 381000 | Y113: 1 | Z113: db | AA113: 8819 | AB113: =IFERROR(VLOOKUP(PENZTAR_ADAT!$F$5,Beallitasok!$F$2:$G$6,2,FALSE),2) -> 13.1 | AC113: =ROUND(AE113/(1+PENZTAR_ADAT!$F$5),0) -> 8819 | AD113: 595 | AE113: =PENZTAR_ADAT!F33 -> 11200 | AF113: 911000 | AJ113: PTG árbevétel
A114: =Beallitasok!$B$2&PENZTAR_ADAT!B34 -> AAA-29 | B114: SZ | D114: =DATE(PENZTAR_ADAT!$F$1,VLOOKUP(PENZTAR_ADAT!$H$1,Beallitasok!$K$2:$L$13,2,FALSE),PENZTAR_ADAT!A34) -> 2021-01-29 | E114: =D114 -> 2021-01-29 | F114: 2021-01-29 | G114: =Beallitasok!$B$4 -> Készpénz | I114: hu | J114: HUF | M114: =Beallitasok!$B$6 -> AP_TESZT2 | R114: 48628 | S114: 4936 | T114: 58000 | U114: =Beallitasok!$B$9 -> 381000 | Y114: 1 | Z114: db | AA114: 2283 | AB114: =IFERROR(VLOOKUP(PENZTAR_ADAT!$C$5,Beallitasok!$F$2:$G$6,2,FALSE),2) -> 13.1 | AC114: =ROUND(AE114/(1+PENZTAR_ADAT!$C$5),0) -> 2283 | AD114: =AE114-AC114 -> 617 | AE114: =PENZTAR_ADAT!C34 -> 2900 | AF114: =Beallitasok!$B$8 -> 911000 | AJ114: =Beallitasok!$B$11 -> PTG árbevétel
A115: =A114 -> AAA-29 | B115: =B114 -> SZ | D115: 2021-01-29 | E115: =E114 -> 2021-01-29 | F115: =F114 -> 2021-01-29 | G115: =G114 -> Készpénz | I115: =I114 -> hu | J115: =J114 -> HUF | M115: =M114 -> AP_TESZT2 | R115: 48628 | S115: 4936 | T115: 58000 | U115: =U114 -> 381000 | Y115: =Y114 -> 1 | Z115: =Z114 -> db | AA115: 5524 | AB115: =IFERROR(VLOOKUP(PENZTAR_ADAT!$D$5,Beallitasok!$F$2:$G$6,2,FALSE),2) -> 5.28 | AC115: =ROUND(AE115/(1+PENZTAR_ADAT!$D$5),0) -> 5524 | AD115: =AD114 -> 617 | AE115: =PENZTAR_ADAT!D34 -> 5800 | AF115: =AF114 -> 911000 | AJ115: =AJ114 -> PTG árbevétel
A116: AAA-29 | B116: SZ | D116: 2021-01-29 | E116: 2021-01-29 | F116: 2021-01-29 | G116: Készpénz | I116: hu | J116: HUF | M116: AP_TESZT2 | R116: 48628 | S116: 4936 | T116: 58000 | U116: 381000 | Y116: 1 | Z116: db | AA116: 7373 | AB116: =IFERROR(VLOOKUP(PENZTAR_ADAT!$E$5,Beallitasok!$F$2:$G$6,2,FALSE),2) -> 12.26 | AC116: =ROUND(AE116/(1+PENZTAR_ADAT!$E$5),0) -> 7373 | AD116: 617 | AE116: =PENZTAR_ADAT!E34 -> 8700 | AF116: 911000 | AJ116: PTG árbevétel
A117: AAA-29 | B117: SZ | D117: 2021-01-29 | E117: 2021-01-29 | F117: 2021-01-29 | G117: Készpénz | I117: hu | J117: HUF | M117: AP_TESZT2 | R117: 48628 | S117: 4936 | T117: 58000 | U117: 381000 | Y117: 1 | Z117: db | AA117: 9134 | AB117: =IFERROR(VLOOKUP(PENZTAR_ADAT!$F$5,Beallitasok!$F$2:$G$6,2,FALSE),2) -> 13.1 | AC117: =ROUND(AE117/(1+PENZTAR_ADAT!$F$5),0) -> 9134 | AD117: 617 | AE117: =PENZTAR_ADAT!F34 -> 11600 | AF117: 911000 | AJ117: PTG árbevétel
A118: =Beallitasok!$B$2&PENZTAR_ADAT!B35 -> AAA-30 | B118: SZ | D118: =DATE(PENZTAR_ADAT!$F$1,VLOOKUP(PENZTAR_ADAT!$H$1,Beallitasok!$K$2:$L$13,2,FALSE),PENZTAR_ADAT!A35) -> 2021-01-30 | E118: =D118 -> 2021-01-30 | F118: =E118 -> 2021-01-30 | G118: =Beallitasok!$B$4 -> Készpénz | I118: hu | J118: HUF | M118: =Beallitasok!$B$6 -> AP_TESZT2 | R118: 50304 | S118: 5104 | T118: 60000 | U118: =Beallitasok!$B$9 -> 381000 | Y118: 1 | Z118: db | AA118: 2362 | AB118: =IFERROR(VLOOKUP(PENZTAR_ADAT!$C$5,Beallitasok!$F$2:$G$6,2,FALSE),2) -> 13.1 | AC118: =ROUND(AE118/(1+PENZTAR_ADAT!$C$5),0) -> 2362 | AD118: =AE118-AC118 -> 638 | AE118: =PENZTAR_ADAT!C35 -> 3000 | AF118: =Beallitasok!$B$8 -> 911000 | AJ118: =Beallitasok!$B$11 -> PTG árbevétel
A119: =A118 -> AAA-30 | B119: =B118 -> SZ | D119: 2021-01-30 | E119: =E118 -> 2021-01-30 | F119: =F118 -> 2021-01-30 | G119: =G118 -> Készpénz | I119: =I118 -> hu | J119: =J118 -> HUF | M119: =M118 -> AP_TESZT2 | R119: 50304 | S119: 5104 | T119: 60000 | U119: =U118 -> 381000 | Y119: =Y118 -> 1 | Z119: =Z118 -> db | AA119: 5714 | AB119: =IFERROR(VLOOKUP(PENZTAR_ADAT!$D$5,Beallitasok!$F$2:$G$6,2,FALSE),2) -> 5.28 | AC119: =ROUND(AE119/(1+PENZTAR_ADAT!$D$5),0) -> 5714 | AD119: =AD118 -> 638 | AE119: =PENZTAR_ADAT!D35 -> 6000 | AF119: =AF118 -> 911000 | AJ119: =AJ118 -> PTG árbevétel
A120: =A119 -> AAA-30 | B120: SZ | D120: 2021-01-30 | E120: 2021-01-30 | F120: 2021-01-30 | G120: Készpénz | I120: hu | J120: HUF | M120: AP_TESZT2 | R120: 50304 | S120: 5104 | T120: 60000 | U120: 381000 | Y120: 1 | Z120: db | AA120: 7627 | AB120: =IFERROR(VLOOKUP(PENZTAR_ADAT!$E$5,Beallitasok!$F$2:$G$6,2,FALSE),2) -> 12.26 | AC120: =ROUND(AE120/(1+PENZTAR_ADAT!$E$5),0) -> 7627 | AD120: 638 | AE120: =PENZTAR_ADAT!E35 -> 9000 | AF120: 911000 | AJ120: PTG árbevétel
A121: =A120 -> AAA-30 | B121: SZ | D121: 2021-01-30 | E121: 2021-01-30 | F121: 2021-01-30 | G121: Készpénz | I121: hu | J121: HUF | M121: AP_TESZT2 | R121: 50304 | S121: 5104 | T121: 60000 | U121: 381000 | Y121: 1 | Z121: db | AA121: 9449 | AB121: =IFERROR(VLOOKUP(PENZTAR_ADAT!$F$5,Beallitasok!$F$2:$G$6,2,FALSE),2) -> 13.1 | AC121: =ROUND(AE121/(1+PENZTAR_ADAT!$F$5),0) -> 9449 | AD121: 638 | AE121: =PENZTAR_ADAT!F35 -> 12000 | AF121: 911000 | AJ121: PTG árbevétel
A122: =Beallitasok!$B$2&PENZTAR_ADAT!B36 -> AAA-31 | B122: SZ | D122: =DATE(PENZTAR_ADAT!$F$1,VLOOKUP(PENZTAR_ADAT!$H$1,Beallitasok!$K$2:$L$13,2,FALSE),PENZTAR_ADAT!A36) -> 2021-01-31 | E122: =D122 -> 2021-01-31 | F122: =E122 -> 2021-01-31 | G122: =Beallitasok!$B$4 -> Készpénz | I122: hu | J122: HUF | M122: =Beallitasok!$B$6 -> AP_TESZT2 | R122: 51982 | S122: 5272 | T122: 62000 | U122: =Beallitasok!$B$9 -> 381000 | Y122: 1 | Z122: db | AA122: 2441 | AB122: =IFERROR(VLOOKUP(PENZTAR_ADAT!$C$5,Beallitasok!$F$2:$G$6,2,FALSE),2) -> 13.1 | AC122: =ROUND(AE122/(1+PENZTAR_ADAT!$C$5),0) -> 2441 | AD122: =AE122-AC122 -> 659 | AE122: =PENZTAR_ADAT!C36 -> 3100 | AF122: =Beallitasok!$B$8 -> 911000 | AJ122: =Beallitasok!$B$11 -> PTG árbevétel
A123: =A122 -> AAA-31 | B123: =B122 -> SZ | D123: 2021-01-31 | E123: =E122 -> 2021-01-31 | F123: =F122 -> 2021-01-31 | G123: =G122 -> Készpénz | I123: =I122 -> hu | J123: =J122 -> HUF | M123: =M122 -> AP_TESZT2 | R123: 51982 | S123: 5272 | T123: 62000 | U123: =U122 -> 381000 | Y123: =Y122 -> 1 | Z123: =Z122 -> db | AA123: 5905 | AB123: =IFERROR(VLOOKUP(PENZTAR_ADAT!$D$5,Beallitasok!$F$2:$G$6,2,FALSE),2) -> 5.28 | AC123: =ROUND(AE123/(1+PENZTAR_ADAT!$D$5),0) -> 5905 | AD123: =AD122 -> 659 | AE123: =PENZTAR_ADAT!D36 -> 6200 | AF123: =AF122 -> 911000 | AJ123: =AJ122 -> PTG árbevétel
A124: =A123 -> AAA-31 | B124: SZ | D124: 2021-01-31 | E124: 2021-01-31 | F124: 2021-01-31 | G124: Készpénz | I124: hu | J124: HUF | M124: AP_TESZT2 | R124: 51982 | S124: 5272 | T124: 62000 | U124: 381000 | Y124: 1 | Z124: db | AA124: 7881 | AB124: =IFERROR(VLOOKUP(PENZTAR_ADAT!$E$5,Beallitasok!$F$2:$G$6,2,FALSE),2) -> 12.26 | AC124: =ROUND(AE124/(1+PENZTAR_ADAT!$E$5),0) -> 7881 | AD124: 659 | AE124: =PENZTAR_ADAT!E36 -> 9300 | AF124: 911000 | AJ124: PTG árbevétel
A125: =A124 -> AAA-31 | B125: SZ | D125: 2021-01-31 | E125: 2021-01-31 | F125: 2021-01-31 | G125: Készpénz | I125: hu | J125: HUF | M125: AP_TESZT2 | R125: 51982 | S125: 5272 | T125: 62000 | U125: 381000 | Y125: 1 | Z125: db | AA125: 9764 | AB125: =IFERROR(VLOOKUP(PENZTAR_ADAT!$F$5,Beallitasok!$F$2:$G$6,2,FALSE),2) -> 13.1 | AC125: =ROUND(AE125/(1+PENZTAR_ADAT!$F$5),0) -> 9764 | AD125: 659 | AE125: =PENZTAR_ADAT!F36 -> 12400 | AF125: 911000 | AJ125: PTG árbevétel
A130: =Beallitasok!$B$2&PENZTAR_ADAT!B6 -> AAA-1 | B130: SZ | D130: =DATE(PENZTAR_ADAT!$F$1,VLOOKUP(PENZTAR_ADAT!$H$1,Beallitasok!$K$2:$L$13,2,FALSE),PENZTAR_ADAT!A6) -> 2021-01-01 | E130: =D130 -> 2021-01-01 | F130: =E130 -> 2021-01-01 | G130: =Beallitasok!$B$4 -> Készpénz | I130: hu | J130: HUF | M130: =Beallitasok!$B$6 -> AP_TESZT2 | R130: =SUMIF($A$130:$A$253,$A130,AC$130:AC$253) -> 0 | S130: =SUMIF($A$130:$A$253,$A130,AD$130:AD$253) -> 0 | T130: =SUMIF($A$130:$A$253,$A130,AE$130:AE$253) -> 0 | U130: =Beallitasok!$B$9 -> 381000 | Y130: 1 | Z130: db | AA130: =AC130 -> 0 | AB130: =Beallitasok!$G$2 -> 10 | AC130: =AE130 -> 0 | AD130: =AE130-AC130 -> 0 | AE130: =PENZTAR_ADAT!G6 -> 0 | AF130: =Beallitasok!$B$8 -> 911000 | AJ130: =Beallitasok!$B$12 -> Téves beütés
A131: =A130 -> AAA-1 | B131: SZ | D131: =D130 -> 2021-01-01 | E131: 2021-01-01 | F131: 2021-01-01 | G131: Készpénz | I131: =I130 -> hu | J131: HUF | M131: =M130 -> AP_TESZT2 | R131: 0 | S131: 0 | T131: 0 | U131: =U130 -> 381000 | Y131: =Y130 -> 1 | Z131: db | AA131: 0 | AB131: =Beallitasok!$G$3 -> 5.28 | AC131: =ROUND(AE131/(1+PENZTAR_ADAT!$D$5),0) -> 0 | AD131: =AD130 -> 0 | AE131: =PENZTAR_ADAT!H6 -> 0 | AF131: =AF130 -> 911000 | AJ131: =AJ130 -> Téves beütés
A132: AAA-1 | B132: SZ | D132: 2021-01-01 | E132: 2021-01-01 | F132: 2021-01-01 | G132: Készpénz | I132: hu | J132: HUF | M132: =M131 -> AP_TESZT2 | R132: 0 | S132: 0 | T132: 0 | U132: =U131 -> 381000 | Y132: 1 | Z132: db | AA132: 0 | AB132: =Beallitasok!$G$4 -> 12.26 | AC132: =ROUND(AE132/(1+PENZTAR_ADAT!$E$5),0) -> 0 | AD132: =AD131 -> 0 | AE132: =PENZTAR_ADAT!I6 -> 0 | AF132: =AF131 -> 911000 | AJ132: =AJ131 -> Téves beütés
A133: AAA-1 | B133: SZ | D133: 2021-01-01 | E133: 2021-01-01 | F133: 2021-01-01 | G133: Készpénz | I133: hu | J133: HUF | M133: =M132 -> AP_TESZT2 | R133: 0 | S133: 0 | T133: 0 | U133: =U132 -> 381000 | Y133: 1 | Z133: db | AA133: 0 | AB133: =Beallitasok!$G$5 -> 13.1 | AC133: =ROUND(AE133/(1+PENZTAR_ADAT!$F$5),0) -> 0 | AD133: =AD132 -> 0 | AE133: =PENZTAR_ADAT!J6 -> 0 | AF133: =AF132 -> 911000 | AJ133: =AJ132 -> Téves beütés
A134: =Beallitasok!$B$2&PENZTAR_ADAT!B7 -> AAA-2 | B134: SZ | D134: =DATE(PENZTAR_ADAT!$F$1,VLOOKUP(PENZTAR_ADAT!$H$1,Beallitasok!$K$2:$L$13,2,FALSE),PENZTAR_ADAT!A7) -> 2021-01-02 | E134: =D134 -> 2021-01-02 | F134: =E134 -> 2021-01-02 | G134: =Beallitasok!$B$4 -> Készpénz | I134: hu | J134: HUF | M134: =Beallitasok!$B$6 -> AP_TESZT2 | R134: 0 | S134: 0 | T134: 0 | U134: =Beallitasok!$B$9 -> 381000 | Y134: 1 | Z134: db | AA134: 0 | AB134: =Beallitasok!$G$2 -> 10 | AC134: =AE134 -> 0 | AD134: =AE134-AC134 -> 0 | AE134: =PENZTAR_ADAT!G7 -> 0 | AF134: =Beallitasok!$B$8 -> 911000 | AJ134: =Beallitasok!$B$12 -> Téves beütés
A135: =A134 -> AAA-2 | B135: SZ | D135: =D134 -> 2021-01-02 | E135: 2021-01-02 | F135: 2021-01-02 | G135: Készpénz | I135: =I134 -> hu | J135: HUF | M135: =M134 -> AP_TESZT2 | R135: 0 | S135: 0 | T135: 0 | U135: =U134 -> 381000 | Y135: =Y134 -> 1 | Z135: db | AA135: 0 | AB135: =Beallitasok!$G$3 -> 5.28 | AC135: =ROUND(AE135/(1+PENZTAR_ADAT!$D$5),0) -> 0 | AD135: =AD134 -> 0 | AE135: =PENZTAR_ADAT!H7 -> 0 | AF135: =AF134 -> 911000 | AJ135: =AJ134 -> Téves beütés
A136: AAA-2 | B136: SZ | D136: 2021-01-02 | E136: 2021-01-02 | F136: 2021-01-02 | G136: Készpénz | I136: hu | J136: HUF | M136: =M135 -> AP_TESZT2 | R136: 0 | S136: 0 | T136: 0 | U136: =U135 -> 381000 | Y136: 1 | Z136: db | AA136: 0 | AB136: =Beallitasok!$G$4 -> 12.26 | AC136: =ROUND(AE136/(1+PENZTAR_ADAT!$E$5),0) -> 0 | AD136: =AD135 -> 0 | AE136: =PENZTAR_ADAT!I7 -> 0 | AF136: =AF135 -> 911000 | AJ136: =AJ135 -> Téves beütés
A137: AAA-2 | B137: SZ | D137: 2021-01-02 | E137: 2021-01-02 | F137: 2021-01-02 | G137: Készpénz | I137: hu | J137: HUF | M137: =M136 -> AP_TESZT2 | R137: 0 | S137: 0 | T137: 0 | U137: =U136 -> 381000 | Y137: 1 | Z137: db | AA137: 0 | AB137: =Beallitasok!$G$5 -> 13.1 | AC137: =ROUND(AE137/(1+PENZTAR_ADAT!$F$5),0) -> 0 | AD137: =AD136 -> 0 | AE137: =PENZTAR_ADAT!J7 -> 0 | AF137: =AF136 -> 911000 | AJ137: =AJ136 -> Téves beütés
A138: =Beallitasok!$B$2&PENZTAR_ADAT!B8 -> AAA-3 | B138: SZ | D138: =DATE(PENZTAR_ADAT!$F$1,VLOOKUP(PENZTAR_ADAT!$H$1,Beallitasok!$K$2:$L$13,2,FALSE),PENZTAR_ADAT!A8) -> 2021-01-03 | E138: =D138 -> 2021-01-03 | F138: =E138 -> 2021-01-03 | G138: =Beallitasok!$B$4 -> Készpénz | I138: hu | J138: HUF | M138: =Beallitasok!$B$6 -> AP_TESZT2 | R138: 0 | S138: 0 | T138: 0 | U138: =Beallitasok!$B$9 -> 381000 | Y138: 1 | Z138: db | AA138: 0 | AB138: =Beallitasok!$G$2 -> 10 | AC138: =AE138 -> 0 | AD138: =AE138-AC138 -> 0 | AE138: =PENZTAR_ADAT!G8 -> 0 | AF138: =Beallitasok!$B$8 -> 911000 | AJ138: =Beallitasok!$B$12 -> Téves beütés
A139: =A138 -> AAA-3 | B139: SZ | D139: =D138 -> 2021-01-03 | E139: 2021-01-03 | F139: 2021-01-03 | G139: Készpénz | I139: =I138 -> hu | J139: HUF | M139: =M138 -> AP_TESZT2 | R139: 0 | S139: 0 | T139: 0 | U139: =U138 -> 381000 | Y139: =Y138 -> 1 | Z139: db | AA139: 0 | AB139: =Beallitasok!$G$3 -> 5.28 | AC139: =ROUND(AE139/(1+PENZTAR_ADAT!$D$5),0) -> 0 | AD139: =AD138 -> 0 | AE139: =PENZTAR_ADAT!H8 -> 0 | AF139: =AF138 -> 911000 | AJ139: =AJ138 -> Téves beütés
A140: AAA-3 | B140: SZ | D140: 2021-01-03 | E140: 2021-01-03 | F140: 2021-01-03 | G140: Készpénz | I140: hu | J140: HUF | M140: =M139 -> AP_TESZT2 | R140: 0 | S140: 0 | T140: 0 | U140: =U139 -> 381000 | Y140: 1 | Z140: db | AA140: 0 | AB140: =Beallitasok!$G$4 -> 12.26 | AC140: =ROUND(AE140/(1+PENZTAR_ADAT!$E$5),0) -> 0 | AD140: =AD139 -> 0 | AE140: =PENZTAR_ADAT!I8 -> 0 | AF140: =AF139 -> 911000 | AJ140: =AJ139 -> Téves beütés
A141: AAA-3 | B141: SZ | D141: 2021-01-03 | E141: 2021-01-03 | F141: 2021-01-03 | G141: Készpénz | I141: hu | J141: HUF | M141: =M140 -> AP_TESZT2 | R141: 0 | S141: 0 | T141: 0 | U141: =U140 -> 381000 | Y141: 1 | Z141: db | AA141: 0 | AB141: =Beallitasok!$G$5 -> 13.1 | AC141: =ROUND(AE141/(1+PENZTAR_ADAT!$F$5),0) -> 0 | AD141: =AD140 -> 0 | AE141: =PENZTAR_ADAT!J8 -> 0 | AF141: =AF140 -> 911000 | AJ141: =AJ140 -> Téves beütés
A142: =Beallitasok!$B$2&PENZTAR_ADAT!B9 -> AAA-4 | B142: SZ | D142: =DATE(PENZTAR_ADAT!$F$1,VLOOKUP(PENZTAR_ADAT!$H$1,Beallitasok!$K$2:$L$13,2,FALSE),PENZTAR_ADAT!A9) -> 2021-01-04 | E142: =D142 -> 2021-01-04 | F142: =E142 -> 2021-01-04 | G142: =Beallitasok!$B$4 -> Készpénz | I142: hu | J142: HUF | M142: =Beallitasok!$B$6 -> AP_TESZT2 | R142: 0 | S142: 0 | T142: 0 | U142: =Beallitasok!$B$9 -> 381000 | Y142: 1 | Z142: db | AA142: 0 | AB142: =Beallitasok!$G$2 -> 10 | AC142: =AE142 -> 0 | AD142: =AE142-AC142 -> 0 | AE142: =PENZTAR_ADAT!G9 -> 0 | AF142: =Beallitasok!$B$8 -> 911000 | AJ142: =Beallitasok!$B$12 -> Téves beütés
A143: =A142 -> AAA-4 | B143: SZ | D143: =D142 -> 2021-01-04 | E143: 2021-01-04 | F143: 2021-01-04 | G143: Készpénz | I143: =I142 -> hu | J143: HUF | M143: =M142 -> AP_TESZT2 | R143: 0 | S143: 0 | T143: 0 | U143: =U142 -> 381000 | Y143: =Y142 -> 1 | Z143: db | AA143: 0 | AB143: =Beallitasok!$G$3 -> 5.28 | AC143: =ROUND(AE143/(1+PENZTAR_ADAT!$D$5),0) -> 0 | AD143: =AD142 -> 0 | AE143: =PENZTAR_ADAT!H9 -> 0 | AF143: =AF142 -> 911000 | AJ143: =AJ142 -> Téves beütés
A144: AAA-4 | B144: SZ | D144: 2021-01-04 | E144: 2021-01-04 | F144: 2021-01-04 | G144: Készpénz | I144: hu | J144: HUF | M144: =M143 -> AP_TESZT2 | R144: 0 | S144: 0 | T144: 0 | U144: =U143 -> 381000 | Y144: 1 | Z144: db | AA144: 0 | AB144: =Beallitasok!$G$4 -> 12.26 | AC144: =ROUND(AE144/(1+PENZTAR_ADAT!$E$5),0) -> 0 | AD144: =AD143 -> 0 | AE144: =PENZTAR_ADAT!I9 -> 0 | AF144: =AF143 -> 911000 | AJ144: =AJ143 -> Téves beütés
A145: AAA-4 | B145: SZ | D145: 2021-01-04 | E145: 2021-01-04 | F145: 2021-01-04 | G145: Készpénz | I145: hu | J145: HUF | M145: =M144 -> AP_TESZT2 | R145: 0 | S145: 0 | T145: 0 | U145: =U144 -> 381000 | Y145: 1 | Z145: db | AA145: 0 | AB145: =Beallitasok!$G$5 -> 13.1 | AC145: =ROUND(AE145/(1+PENZTAR_ADAT!$F$5),0) -> 0 | AD145: =AD144 -> 0 | AE145: =PENZTAR_ADAT!J9 -> 0 | AF145: =AF144 -> 911000 | AJ145: =AJ144 -> Téves beütés
A146: =Beallitasok!$B$2&PENZTAR_ADAT!B10 -> AAA-5 | B146: SZ | D146: =DATE(PENZTAR_ADAT!$F$1,VLOOKUP(PENZTAR_ADAT!$H$1,Beallitasok!$K$2:$L$13,2,FALSE),PENZTAR_ADAT!A10) -> 2021-01-05 | E146: =D146 -> 2021-01-05 | F146: =E146 -> 2021-01-05 | G146: =Beallitasok!$B$4 -> Készpénz | I146: hu | J146: HUF | M146: =Beallitasok!$B$6 -> AP_TESZT2 | R146: 0 | S146: 0 | T146: 0 | U146: =Beallitasok!$B$9 -> 381000 | Y146: 1 | Z146: db | AA146: 0 | AB146: =Beallitasok!$G$2 -> 10 | AC146: =AE146 -> 0 | AD146: =AE146-AC146 -> 0 | AE146: =PENZTAR_ADAT!G10 -> 0 | AF146: =Beallitasok!$B$8 -> 911000 | AJ146: =Beallitasok!$B$12 -> Téves beütés
A147: =A146 -> AAA-5 | B147: SZ | D147: =D146 -> 2021-01-05 | E147: 2021-01-05 | F147: 2021-01-05 | G147: Készpénz | I147: =I146 -> hu | J147: HUF | M147: =M146 -> AP_TESZT2 | R147: 0 | S147: 0 | T147: 0 | U147: =U146 -> 381000 | Y147: =Y146 -> 1 | Z147: db | AA147: 0 | AB147: =Beallitasok!$G$3 -> 5.28 | AC147: =ROUND(AE147/(1+PENZTAR_ADAT!$D$5),0) -> 0 | AD147: =AD146 -> 0 | AE147: =PENZTAR_ADAT!H10 -> 0 | AF147: =AF146 -> 911000 | AJ147: =AJ146 -> Téves beütés
A148: AAA-5 | B148: SZ | D148: 2021-01-05 | E148: 2021-01-05 | F148: 2021-01-05 | G148: Készpénz | I148: hu | J148: HUF | M148: =M147 -> AP_TESZT2 | R148: 0 | S148: 0 | T148: 0 | U148: =U147 -> 381000 | Y148: 1 | Z148: db | AA148: 0 | AB148: =Beallitasok!$G$4 -> 12.26 | AC148: =ROUND(AE148/(1+PENZTAR_ADAT!$E$5),0) -> 0 | AD148: =AD147 -> 0 | AE148: =PENZTAR_ADAT!I10 -> 0 | AF148: =AF147 -> 911000 | AJ148: =AJ147 -> Téves beütés
A149: AAA-5 | B149: SZ | D149: 2021-01-05 | E149: 2021-01-05 | F149: 2021-01-05 | G149: Készpénz | I149: hu | J149: HUF | M149: =M148 -> AP_TESZT2 | R149: 0 | S149: 0 | T149: 0 | U149: =U148 -> 381000 | Y149: 1 | Z149: db | AA149: 0 | AB149: =Beallitasok!$G$5 -> 13.1 | AC149: =ROUND(AE149/(1+PENZTAR_ADAT!$F$5),0) -> 0 | AD149: =AD148 -> 0 | AE149: =PENZTAR_ADAT!J10 -> 0 | AF149: =AF148 -> 911000 | AJ149: =AJ148 -> Téves beütés
A150: =Beallitasok!$B$2&PENZTAR_ADAT!B11 -> AAA-6 | B150: SZ | D150: =DATE(PENZTAR_ADAT!$F$1,VLOOKUP(PENZTAR_ADAT!$H$1,Beallitasok!$K$2:$L$13,2,FALSE),PENZTAR_ADAT!A11) -> 2021-01-06 | E150: =D150 -> 2021-01-06 | F150: =E150 -> 2021-01-06 | G150: =Beallitasok!$B$4 -> Készpénz | I150: hu | J150: HUF | M150: =Beallitasok!$B$6 -> AP_TESZT2 | R150: 0 | S150: 0 | T150: 0 | U150: =Beallitasok!$B$9 -> 381000 | Y150: 1 | Z150: db | AA150: 0 | AB150: =Beallitasok!$G$2 -> 10 | AC150: =AE150 -> 0 | AD150: =AE150-AC150 -> 0 | AE150: =PENZTAR_ADAT!G11 -> 0 | AF150: =Beallitasok!$B$8 -> 911000 | AJ150: =Beallitasok!$B$12 -> Téves beütés
A151: =A150 -> AAA-6 | B151: SZ | D151: =D150 -> 2021-01-06 | E151: 2021-01-06 | F151: 2021-01-06 | G151: Készpénz | I151: =I150 -> hu | J151: HUF | M151: =M150 -> AP_TESZT2 | R151: 0 | S151: 0 | T151: 0 | U151: =U150 -> 381000 | Y151: =Y150 -> 1 | Z151: db | AA151: 0 | AB151: =Beallitasok!$G$3 -> 5.28 | AC151: =ROUND(AE151/(1+PENZTAR_ADAT!$D$5),0) -> 0 | AD151: =AD150 -> 0 | AE151: =PENZTAR_ADAT!H11 -> 0 | AF151: =AF150 -> 911000 | AJ151: =AJ150 -> Téves beütés
A152: AAA-6 | B152: SZ | D152: 2021-01-06 | E152: 2021-01-06 | F152: 2021-01-06 | G152: Készpénz | I152: hu | J152: HUF | M152: =M151 -> AP_TESZT2 | R152: 0 | S152: 0 | T152: 0 | U152: =U151 -> 381000 | Y152: 1 | Z152: db | AA152: 0 | AB152: =Beallitasok!$G$4 -> 12.26 | AC152: =ROUND(AE152/(1+PENZTAR_ADAT!$E$5),0) -> 0 | AD152: =AD151 -> 0 | AE152: =PENZTAR_ADAT!I11 -> 0 | AF152: =AF151 -> 911000 | AJ152: =AJ151 -> Téves beütés
A153: AAA-6 | B153: SZ | D153: 2021-01-06 | E153: 2021-01-06 | F153: 2021-01-06 | G153: Készpénz | I153: hu | J153: HUF | M153: =M152 -> AP_TESZT2 | R153: 0 | S153: 0 | T153: 0 | U153: =U152 -> 381000 | Y153: 1 | Z153: db | AA153: 0 | AB153: =Beallitasok!$G$5 -> 13.1 | AC153: =ROUND(AE153/(1+PENZTAR_ADAT!$F$5),0) -> 0 | AD153: =AD152 -> 0 | AE153: =PENZTAR_ADAT!J11 -> 0 | AF153: =AF152 -> 911000 | AJ153: =AJ152 -> Téves beütés
A154: =Beallitasok!$B$2&PENZTAR_ADAT!B12 -> AAA-7 | B154: SZ | D154: =DATE(PENZTAR_ADAT!$F$1,VLOOKUP(PENZTAR_ADAT!$H$1,Beallitasok!$K$2:$L$13,2,FALSE),PENZTAR_ADAT!A12) -> 2021-01-07 | E154: =D154 -> 2021-01-07 | F154: =E154 -> 2021-01-07 | G154: =Beallitasok!$B$4 -> Készpénz | I154: hu | J154: HUF | M154: =Beallitasok!$B$6 -> AP_TESZT2 | R154: 0 | S154: 0 | T154: 0 | U154: =Beallitasok!$B$9 -> 381000 | Y154: 1 | Z154: db | AA154: 0 | AB154: =Beallitasok!$G$2 -> 10 | AC154: =AE154 -> 0 | AD154: =AE154-AC154 -> 0 | AE154: =PENZTAR_ADAT!G12 -> 0 | AF154: =Beallitasok!$B$8 -> 911000 | AJ154: =Beallitasok!$B$12 -> Téves beütés
A155: =A154 -> AAA-7 | B155: SZ | D155: =D154 -> 2021-01-07 | E155: 2021-01-07 | F155: 2021-01-07 | G155: Készpénz | I155: =I154 -> hu | J155: HUF | M155: =M154 -> AP_TESZT2 | R155: 0 | S155: 0 | T155: 0 | U155: =U154 -> 381000 | Y155: =Y154 -> 1 | Z155: db | AA155: 0 | AB155: =Beallitasok!$G$3 -> 5.28 | AC155: =ROUND(AE155/(1+PENZTAR_ADAT!$D$5),0) -> 0 | AD155: =AD154 -> 0 | AE155: =PENZTAR_ADAT!H12 -> 0 | AF155: =AF154 -> 911000 | AJ155: =AJ154 -> Téves beütés
A156: AAA-7 | B156: SZ | D156: 2021-01-07 | E156: 2021-01-07 | F156: 2021-01-07 | G156: Készpénz | I156: hu | J156: HUF | M156: =M155 -> AP_TESZT2 | R156: 0 | S156: 0 | T156: 0 | U156: =U155 -> 381000 | Y156: 1 | Z156: db | AA156: 0 | AB156: =Beallitasok!$G$4 -> 12.26 | AC156: =ROUND(AE156/(1+PENZTAR_ADAT!$E$5),0) -> 0 | AD156: =AD155 -> 0 | AE156: =PENZTAR_ADAT!I12 -> 0 | AF156: =AF155 -> 911000 | AJ156: =AJ155 -> Téves beütés
A157: AAA-7 | B157: SZ | D157: 2021-01-07 | E157: 2021-01-07 | F157: 2021-01-07 | G157: Készpénz | I157: hu | J157: HUF | M157: =M156 -> AP_TESZT2 | R157: 0 | S157: 0 | T157: 0 | U157: =U156 -> 381000 | Y157: 1 | Z157: db | AA157: 0 | AB157: =Beallitasok!$G$5 -> 13.1 | AC157: =ROUND(AE157/(1+PENZTAR_ADAT!$F$5),0) -> 0 | AD157: =AD156 -> 0 | AE157: =PENZTAR_ADAT!J12 -> 0 | AF157: =AF156 -> 911000 | AJ157: =AJ156 -> Téves beütés
A158: =Beallitasok!$B$2&PENZTAR_ADAT!B13 -> AAA-8 | B158: SZ | D158: =DATE(PENZTAR_ADAT!$F$1,VLOOKUP(PENZTAR_ADAT!$H$1,Beallitasok!$K$2:$L$13,2,FALSE),PENZTAR_ADAT!A13) -> 2021-01-08 | E158: =D158 -> 2021-01-08 | F158: =E158 -> 2021-01-08 | G158: =Beallitasok!$B$4 -> Készpénz | I158: hu | J158: HUF | M158: =Beallitasok!$B$6 -> AP_TESZT2 | R158: 0 | S158: 0 | T158: 0 | U158: =Beallitasok!$B$9 -> 381000 | Y158: 1 | Z158: db | AA158: 0 | AB158: =Beallitasok!$G$2 -> 10 | AC158: =AE158 -> 0 | AD158: =AE158-AC158 -> 0 | AE158: =PENZTAR_ADAT!G13 -> 0 | AF158: =Beallitasok!$B$8 -> 911000 | AJ158: =Beallitasok!$B$12 -> Téves beütés
A159: =A158 -> AAA-8 | B159: SZ | D159: =D158 -> 2021-01-08 | E159: 2021-01-08 | F159: 2021-01-08 | G159: Készpénz | I159: =I158 -> hu | J159: HUF | M159: =M158 -> AP_TESZT2 | R159: 0 | S159: 0 | T159: 0 | U159: =U158 -> 381000 | Y159: =Y158 -> 1 | Z159: db | AA159: 0 | AB159: =Beallitasok!$G$3 -> 5.28 | AC159: =ROUND(AE159/(1+PENZTAR_ADAT!$D$5),0) -> 0 | AD159: =AD158 -> 0 | AE159: =PENZTAR_ADAT!H13 -> 0 | AF159: =AF158 -> 911000 | AJ159: =AJ158 -> Téves beütés
A160: AAA-8 | B160: SZ | D160: 2021-01-08 | E160: 2021-01-08 | F160: 2021-01-08 | G160: Készpénz | I160: hu | J160: HUF | M160: =M159 -> AP_TESZT2 | R160: 0 | S160: 0 | T160: 0 | U160: =U159 -> 381000 | Y160: 1 | Z160: db | AA160: 0 | AB160: =Beallitasok!$G$4 -> 12.26 | AC160: =ROUND(AE160/(1+PENZTAR_ADAT!$E$5),0) -> 0 | AD160: =AD159 -> 0 | AE160: =PENZTAR_ADAT!I13 -> 0 | AF160: =AF159 -> 911000 | AJ160: =AJ159 -> Téves beütés
A161: AAA-8 | B161: SZ | D161: 2021-01-08 | E161: 2021-01-08 | F161: 2021-01-08 | G161: Készpénz | I161: hu | J161: HUF | M161: =M160 -> AP_TESZT2 | R161: 0 | S161: 0 | T161: 0 | U161: =U160 -> 381000 | Y161: 1 | Z161: db | AA161: 0 | AB161: =Beallitasok!$G$5 -> 13.1 | AC161: =ROUND(AE161/(1+PENZTAR_ADAT!$F$5),0) -> 0 | AD161: =AD160 -> 0 | AE161: =PENZTAR_ADAT!J13 -> 0 | AF161: =AF160 -> 911000 | AJ161: =AJ160 -> Téves beütés
A162: =Beallitasok!$B$2&PENZTAR_ADAT!B14 -> AAA-9 | B162: SZ | D162: =DATE(PENZTAR_ADAT!$F$1,VLOOKUP(PENZTAR_ADAT!$H$1,Beallitasok!$K$2:$L$13,2,FALSE),PENZTAR_ADAT!A14) -> 2021-01-09 | E162: =D162 -> 2021-01-09 | F162: =E162 -> 2021-01-09 | G162: =Beallitasok!$B$4 -> Készpénz | I162: hu | J162: HUF | M162: =Beallitasok!$B$6 -> AP_TESZT2 | R162: =SUMIF($A$130:$A$253,$A162,AC$130:AC$253) -> 0 | S162: =SUMIF($A$130:$A$253,$A162,AD$130:AD$253) -> 0 | T162: =SUMIF($A$130:$A$253,$A162,AE$130:AE$253) -> 0 | U162: =Beallitasok!$B$9 -> 381000 | Y162: 1 | Z162: db | AA162: =AC162 -> 0 | AB162: =Beallitasok!$G$2 -> 10 | AC162: =AE162 -> 0 | AD162: =AE162-AC162 -> 0 | AE162: =PENZTAR_ADAT!G14 -> 0 | AF162: =Beallitasok!$B$8 -> 911000 | AJ162: =Beallitasok!$B$12 -> Téves beütés
A163: =A162 -> AAA-9 | B163: SZ | D163: =D162 -> 2021-01-09 | E163: 2021-01-09 | F163: 2021-01-09 | G163: Készpénz | I163: =I162 -> hu | J163: HUF | M163: =M162 -> AP_TESZT2 | R163: 0 | S163: 0 | T163: 0 | U163: =U162 -> 381000 | Y163: =Y162 -> 1 | Z163: db | AA163: 0 | AB163: =Beallitasok!$G$3 -> 5.28 | AC163: =ROUND(AE163/(1+PENZTAR_ADAT!$D$5),0) -> 0 | AD163: =AD162 -> 0 | AE163: =PENZTAR_ADAT!H14 -> 0 | AF163: =AF162 -> 911000 | AJ163: =AJ162 -> Téves beütés
A164: AAA-9 | B164: SZ | D164: 2021-01-09 | E164: 2021-01-09 | F164: 2021-01-09 | G164: Készpénz | I164: hu | J164: HUF | M164: =M163 -> AP_TESZT2 | R164: 0 | S164: 0 | T164: 0 | U164: =U163 -> 381000 | Y164: 1 | Z164: db | AA164: 0 | AB164: =Beallitasok!$G$4 -> 12.26 | AC164: =ROUND(AE164/(1+PENZTAR_ADAT!$E$5),0) -> 0 | AD164: =AD163 -> 0 | AE164: =PENZTAR_ADAT!I14 -> 0 | AF164: =AF163 -> 911000 | AJ164: =AJ163 -> Téves beütés
A165: AAA-9 | B165: SZ | D165: 2021-01-09 | E165: 2021-01-09 | F165: 2021-01-09 | G165: Készpénz | I165: hu | J165: HUF | M165: =M164 -> AP_TESZT2 | R165: 0 | S165: 0 | T165: 0 | U165: =U164 -> 381000 | Y165: 1 | Z165: db | AA165: 0 | AB165: =Beallitasok!$G$5 -> 13.1 | AC165: =ROUND(AE165/(1+PENZTAR_ADAT!$F$5),0) -> 0 | AD165: =AD164 -> 0 | AE165: =PENZTAR_ADAT!J14 -> 0 | AF165: =AF164 -> 911000 | AJ165: =AJ164 -> Téves beütés
A166: =Beallitasok!$B$2&PENZTAR_ADAT!B15 -> AAA-10 | B166: SZ | D166: =DATE(PENZTAR_ADAT!$F$1,VLOOKUP(PENZTAR_ADAT!$H$1,Beallitasok!$K$2:$L$13,2,FALSE),PENZTAR_ADAT!A15) -> 2021-01-10 | E166: =D166 -> 2021-01-10 | F166: =E166 -> 2021-01-10 | G166: =Beallitasok!$B$4 -> Készpénz | I166: hu | J166: HUF | M166: =Beallitasok!$B$6 -> AP_TESZT2 | R166: 0 | S166: 0 | T166: 0 | U166: =Beallitasok!$B$9 -> 381000 | Y166: 1 | Z166: db | AA166: 0 | AB166: =Beallitasok!$G$2 -> 10 | AC166: =AE166 -> 0 | AD166: =AE166-AC166 -> 0 | AE166: =PENZTAR_ADAT!G15 -> 0 | AF166: =Beallitasok!$B$8 -> 911000 | AJ166: =Beallitasok!$B$12 -> Téves beütés
A167: =A166 -> AAA-10 | B167: SZ | D167: =D166 -> 2021-01-10 | E167: 2021-01-10 | F167: 2021-01-10 | G167: Készpénz | I167: =I166 -> hu | J167: HUF | M167: =M166 -> AP_TESZT2 | R167: 0 | S167: 0 | T167: 0 | U167: =U166 -> 381000 | Y167: =Y166 -> 1 | Z167: db | AA167: 0 | AB167: =Beallitasok!$G$3 -> 5.28 | AC167: =ROUND(AE167/(1+PENZTAR_ADAT!$D$5),0) -> 0 | AD167: =AD166 -> 0 | AE167: =PENZTAR_ADAT!H15 -> 0 | AF167: =AF166 -> 911000 | AJ167: =AJ166 -> Téves beütés
A168: AAA-10 | B168: SZ | D168: 2021-01-10 | E168: 2021-01-10 | F168: 2021-01-10 | G168: Készpénz | I168: hu | J168: HUF | M168: =M167 -> AP_TESZT2 | R168: 0 | S168: 0 | T168: 0 | U168: =U167 -> 381000 | Y168: 1 | Z168: db | AA168: 0 | AB168: =Beallitasok!$G$4 -> 12.26 | AC168: =ROUND(AE168/(1+PENZTAR_ADAT!$E$5),0) -> 0 | AD168: =AD167 -> 0 | AE168: =PENZTAR_ADAT!I15 -> 0 | AF168: =AF167 -> 911000 | AJ168: =AJ167 -> Téves beütés
A169: AAA-10 | B169: SZ | D169: 2021-01-10 | E169: 2021-01-10 | F169: 2021-01-10 | G169: Készpénz | I169: hu | J169: HUF | M169: =M168 -> AP_TESZT2 | R169: 0 | S169: 0 | T169: 0 | U169: =U168 -> 381000 | Y169: 1 | Z169: db | AA169: 0 | AB169: =Beallitasok!$G$5 -> 13.1 | AC169: =ROUND(AE169/(1+PENZTAR_ADAT!$F$5),0) -> 0 | AD169: =AD168 -> 0 | AE169: =PENZTAR_ADAT!J15 -> 0 | AF169: =AF168 -> 911000 | AJ169: =AJ168 -> Téves beütés
A170: =Beallitasok!$B$2&PENZTAR_ADAT!B16 -> AAA-11 | B170: SZ | D170: =DATE(PENZTAR_ADAT!$F$1,VLOOKUP(PENZTAR_ADAT!$H$1,Beallitasok!$K$2:$L$13,2,FALSE),PENZTAR_ADAT!A16) -> 2021-01-11 | E170: =D170 -> 2021-01-11 | F170: =E170 -> 2021-01-11 | G170: =Beallitasok!$B$4 -> Készpénz | I170: hu | J170: HUF | M170: =Beallitasok!$B$6 -> AP_TESZT2 | R170: 0 | S170: 0 | T170: 0 | U170: =Beallitasok!$B$9 -> 381000 | Y170: 1 | Z170: db | AA170: 0 | AB170: =Beallitasok!$G$2 -> 10 | AC170: =AE170 -> 0 | AD170: =AE170-AC170 -> 0 | AE170: =PENZTAR_ADAT!G16 -> 0 | AF170: =Beallitasok!$B$8 -> 911000 | AJ170: =Beallitasok!$B$12 -> Téves beütés
A171: =A170 -> AAA-11 | B171: SZ | D171: =D170 -> 2021-01-11 | E171: 2021-01-11 | F171: 2021-01-11 | G171: Készpénz | I171: =I170 -> hu | J171: HUF | M171: =M170 -> AP_TESZT2 | R171: 0 | S171: 0 | T171: 0 | U171: =U170 -> 381000 | Y171: =Y170 -> 1 | Z171: db | AA171: 0 | AB171: =Beallitasok!$G$3 -> 5.28 | AC171: =ROUND(AE171/(1+PENZTAR_ADAT!$D$5),0) -> 0 | AD171: =AD170 -> 0 | AE171: =PENZTAR_ADAT!H16 -> 0 | AF171: =AF170 -> 911000 | AJ171: =AJ170 -> Téves beütés
A172: AAA-11 | B172: SZ | D172: 2021-01-11 | E172: 2021-01-11 | F172: 2021-01-11 | G172: Készpénz | I172: hu | J172: HUF | M172: =M171 -> AP_TESZT2 | R172: 0 | S172: 0 | T172: 0 | U172: =U171 -> 381000 | Y172: 1 | Z172: db | AA172: 0 | AB172: =Beallitasok!$G$4 -> 12.26 | AC172: =ROUND(AE172/(1+PENZTAR_ADAT!$E$5),0) -> 0 | AD172: =AD171 -> 0 | AE172: =PENZTAR_ADAT!I16 -> 0 | AF172: =AF171 -> 911000 | AJ172: =AJ171 -> Téves beütés
A173: AAA-11 | B173: SZ | D173: 2021-01-11 | E173: 2021-01-11 | F173: 2021-01-11 | G173: Készpénz | I173: hu | J173: HUF | M173: =M172 -> AP_TESZT2 | R173: 0 | S173: 0 | T173: 0 | U173: =U172 -> 381000 | Y173: 1 | Z173: db | AA173: 0 | AB173: =Beallitasok!$G$5 -> 13.1 | AC173: =ROUND(AE173/(1+PENZTAR_ADAT!$F$5),0) -> 0 | AD173: =AD172 -> 0 | AE173: =PENZTAR_ADAT!J16 -> 0 | AF173: =AF172 -> 911000 | AJ173: =AJ172 -> Téves beütés
A174: =Beallitasok!$B$2&PENZTAR_ADAT!B17 -> AAA-12 | B174: SZ | D174: =DATE(PENZTAR_ADAT!$F$1,VLOOKUP(PENZTAR_ADAT!$H$1,Beallitasok!$K$2:$L$13,2,FALSE),PENZTAR_ADAT!A17) -> 2021-01-12 | E174: =D174 -> 2021-01-12 | F174: =E174 -> 2021-01-12 | G174: =Beallitasok!$B$4 -> Készpénz | I174: hu | J174: HUF | M174: =Beallitasok!$B$6 -> AP_TESZT2 | R174: 0 | S174: 0 | T174: 0 | U174: =Beallitasok!$B$9 -> 381000 | Y174: 1 | Z174: db | AA174: 0 | AB174: =Beallitasok!$G$2 -> 10 | AC174: =AE174 -> 0 | AD174: =AE174-AC174 -> 0 | AE174: =PENZTAR_ADAT!G17 -> 0 | AF174: =Beallitasok!$B$8 -> 911000 | AJ174: =Beallitasok!$B$12 -> Téves beütés
A175: =A174 -> AAA-12 | B175: SZ | D175: =D174 -> 2021-01-12 | E175: 2021-01-12 | F175: 2021-01-12 | G175: Készpénz | I175: =I174 -> hu | J175: HUF | M175: =M174 -> AP_TESZT2 | R175: 0 | S175: 0 | T175: 0 | U175: =U174 -> 381000 | Y175: =Y174 -> 1 | Z175: db | AA175: 0 | AB175: =Beallitasok!$G$3 -> 5.28 | AC175: =ROUND(AE175/(1+PENZTAR_ADAT!$D$5),0) -> 0 | AD175: =AD174 -> 0 | AE175: =PENZTAR_ADAT!H17 -> 0 | AF175: =AF174 -> 911000 | AJ175: =AJ174 -> Téves beütés
A176: AAA-12 | B176: SZ | D176: 2021-01-12 | E176: 2021-01-12 | F176: 2021-01-12 | G176: Készpénz | I176: hu | J176: HUF | M176: =M175 -> AP_TESZT2 | R176: 0 | S176: 0 | T176: 0 | U176: =U175 -> 381000 | Y176: 1 | Z176: db | AA176: 0 | AB176: =Beallitasok!$G$4 -> 12.26 | AC176: =ROUND(AE176/(1+PENZTAR_ADAT!$E$5),0) -> 0 | AD176: =AD175 -> 0 | AE176: =PENZTAR_ADAT!I17 -> 0 | AF176: =AF175 -> 911000 | AJ176: =AJ175 -> Téves beütés
A177: AAA-12 | B177: SZ | D177: 2021-01-12 | E177: 2021-01-12 | F177: 2021-01-12 | G177: Készpénz | I177: hu | J177: HUF | M177: =M176 -> AP_TESZT2 | R177: 0 | S177: 0 | T177: 0 | U177: =U176 -> 381000 | Y177: 1 | Z177: db | AA177: 0 | AB177: =Beallitasok!$G$5 -> 13.1 | AC177: =ROUND(AE177/(1+PENZTAR_ADAT!$F$5),0) -> 0 | AD177: =AD176 -> 0 | AE177: =PENZTAR_ADAT!J17 -> 0 | AF177: =AF176 -> 911000 | AJ177: =AJ176 -> Téves beütés
A178: =Beallitasok!$B$2&PENZTAR_ADAT!B18 -> AAA-13 | B178: SZ | D178: =DATE(PENZTAR_ADAT!$F$1,VLOOKUP(PENZTAR_ADAT!$H$1,Beallitasok!$K$2:$L$13,2,FALSE),PENZTAR_ADAT!A18) -> 2021-01-13 | E178: =D178 -> 2021-01-13 | F178: =E178 -> 2021-01-13 | G178: =Beallitasok!$B$4 -> Készpénz | I178: hu | J178: HUF | M178: =Beallitasok!$B$6 -> AP_TESZT2 | R178: 0 | S178: 0 | T178: 0 | U178: =Beallitasok!$B$9 -> 381000 | Y178: 1 | Z178: db | AA178: 0 | AB178: =Beallitasok!$G$2 -> 10 | AC178: =AE178 -> 0 | AD178: =AE178-AC178 -> 0 | AE178: =PENZTAR_ADAT!G18 -> 0 | AF178: =Beallitasok!$B$8 -> 911000 | AJ178: =Beallitasok!$B$12 -> Téves beütés
A179: =A178 -> AAA-13 | B179: SZ | D179: =D178 -> 2021-01-13 | E179: 2021-01-13 | F179: 2021-01-13 | G179: Készpénz | I179: =I178 -> hu | J179: HUF | M179: =M178 -> AP_TESZT2 | R179: 0 | S179: 0 | T179: 0 | U179: =U178 -> 381000 | Y179: =Y178 -> 1 | Z179: db | AA179: 0 | AB179: =Beallitasok!$G$3 -> 5.28 | AC179: =ROUND(AE179/(1+PENZTAR_ADAT!$D$5),0) -> 0 | AD179: =AD178 -> 0 | AE179: =PENZTAR_ADAT!H18 -> 0 | AF179: =AF178 -> 911000 | AJ179: =AJ178 -> Téves beütés
A180: AAA-13 | B180: SZ | D180: 2021-01-13 | E180: 2021-01-13 | F180: 2021-01-13 | G180: Készpénz | I180: hu | J180: HUF | M180: =M179 -> AP_TESZT2 | R180: 0 | S180: 0 | T180: 0 | U180: =U179 -> 381000 | Y180: 1 | Z180: db | AA180: 0 | AB180: =Beallitasok!$G$4 -> 12.26 | AC180: =ROUND(AE180/(1+PENZTAR_ADAT!$E$5),0) -> 0 | AD180: =AD179 -> 0 | AE180: =PENZTAR_ADAT!I18 -> 0 | AF180: =AF179 -> 911000 | AJ180: =AJ179 -> Téves beütés
A181: AAA-13 | B181: SZ | D181: 2021-01-13 | E181: 2021-01-13 | F181: 2021-01-13 | G181: Készpénz | I181: hu | J181: HUF | M181: =M180 -> AP_TESZT2 | R181: 0 | S181: 0 | T181: 0 | U181: =U180 -> 381000 | Y181: 1 | Z181: db | AA181: 0 | AB181: =Beallitasok!$G$5 -> 13.1 | AC181: =ROUND(AE181/(1+PENZTAR_ADAT!$F$5),0) -> 0 | AD181: =AD180 -> 0 | AE181: =PENZTAR_ADAT!J18 -> 0 | AF181: =AF180 -> 911000 | AJ181: =AJ180 -> Téves beütés
A182: =Beallitasok!$B$2&PENZTAR_ADAT!B19 -> AAA-14 | B182: SZ | D182: =DATE(PENZTAR_ADAT!$F$1,VLOOKUP(PENZTAR_ADAT!$H$1,Beallitasok!$K$2:$L$13,2,FALSE),PENZTAR_ADAT!A19) -> 2021-01-14 | E182: =D182 -> 2021-01-14 | F182: =E182 -> 2021-01-14 | G182: =Beallitasok!$B$4 -> Készpénz | I182: hu | J182: HUF | M182: =Beallitasok!$B$6 -> AP_TESZT2 | R182: 0 | S182: 0 | T182: 0 | U182: =Beallitasok!$B$9 -> 381000 | Y182: 1 | Z182: db | AA182: 0 | AB182: =Beallitasok!$G$2 -> 10 | AC182: =AE182 -> 0 | AD182: =AE182-AC182 -> 0 | AE182: =PENZTAR_ADAT!G19 -> 0 | AF182: =Beallitasok!$B$8 -> 911000 | AJ182: =Beallitasok!$B$12 -> Téves beütés
A183: =A182 -> AAA-14 | B183: SZ | D183: =D182 -> 2021-01-14 | E183: 2021-01-14 | F183: 2021-01-14 | G183: Készpénz | I183: =I182 -> hu | J183: HUF | M183: =M182 -> AP_TESZT2 | R183: 0 | S183: 0 | T183: 0 | U183: =U182 -> 381000 | Y183: =Y182 -> 1 | Z183: db | AA183: 0 | AB183: =Beallitasok!$G$3 -> 5.28 | AC183: =ROUND(AE183/(1+PENZTAR_ADAT!$D$5),0) -> 0 | AD183: =AD182 -> 0 | AE183: =PENZTAR_ADAT!H19 -> 0 | AF183: =AF182 -> 911000 | AJ183: =AJ182 -> Téves beütés
A184: AAA-14 | B184: SZ | D184: 2021-01-14 | E184: 2021-01-14 | F184: 2021-01-14 | G184: Készpénz | I184: hu | J184: HUF | M184: =M183 -> AP_TESZT2 | R184: 0 | S184: 0 | T184: 0 | U184: =U183 -> 381000 | Y184: 1 | Z184: db | AA184: 0 | AB184: =Beallitasok!$G$4 -> 12.26 | AC184: =ROUND(AE184/(1+PENZTAR_ADAT!$E$5),0) -> 0 | AD184: =AD183 -> 0 | AE184: =PENZTAR_ADAT!I19 -> 0 | AF184: =AF183 -> 911000 | AJ184: =AJ183 -> Téves beütés
A185: AAA-14 | B185: SZ | D185: 2021-01-14 | E185: 2021-01-14 | F185: 2021-01-14 | G185: Készpénz | I185: hu | J185: HUF | M185: =M184 -> AP_TESZT2 | R185: 0 | S185: 0 | T185: 0 | U185: =U184 -> 381000 | Y185: 1 | Z185: db | AA185: 0 | AB185: =Beallitasok!$G$5 -> 13.1 | AC185: =ROUND(AE185/(1+PENZTAR_ADAT!$F$5),0) -> 0 | AD185: =AD184 -> 0 | AE185: =PENZTAR_ADAT!J19 -> 0 | AF185: =AF184 -> 911000 | AJ185: =AJ184 -> Téves beütés
A186: =Beallitasok!$B$2&PENZTAR_ADAT!B20 -> AAA-15 | B186: SZ | D186: =DATE(PENZTAR_ADAT!$F$1,VLOOKUP(PENZTAR_ADAT!$H$1,Beallitasok!$K$2:$L$13,2,FALSE),PENZTAR_ADAT!A20) -> 2021-01-15 | E186: =D186 -> 2021-01-15 | F186: =E186 -> 2021-01-15 | G186: =Beallitasok!$B$4 -> Készpénz | I186: hu | J186: HUF | M186: =Beallitasok!$B$6 -> AP_TESZT2 | R186: 0 | S186: 0 | T186: 0 | U186: =Beallitasok!$B$9 -> 381000 | Y186: 1 | Z186: db | AA186: 0 | AB186: =Beallitasok!$G$2 -> 10 | AC186: =AE186 -> 0 | AD186: =AE186-AC186 -> 0 | AE186: =PENZTAR_ADAT!G20 -> 0 | AF186: =Beallitasok!$B$8 -> 911000 | AJ186: =Beallitasok!$B$12 -> Téves beütés
A187: =A186 -> AAA-15 | B187: SZ | D187: =D186 -> 2021-01-15 | E187: 2021-01-15 | F187: 2021-01-15 | G187: Készpénz | I187: =I186 -> hu | J187: HUF | M187: =M186 -> AP_TESZT2 | R187: 0 | S187: 0 | T187: 0 | U187: =U186 -> 381000 | Y187: =Y186 -> 1 | Z187: db | AA187: 0 | AB187: =Beallitasok!$G$3 -> 5.28 | AC187: =ROUND(AE187/(1+PENZTAR_ADAT!$D$5),0) -> 0 | AD187: =AD186 -> 0 | AE187: =PENZTAR_ADAT!H20 -> 0 | AF187: =AF186 -> 911000 | AJ187: =AJ186 -> Téves beütés
A188: AAA-15 | B188: SZ | D188: 2021-01-15 | E188: 2021-01-15 | F188: 2021-01-15 | G188: Készpénz | I188: hu | J188: HUF | M188: =M187 -> AP_TESZT2 | R188: 0 | S188: 0 | T188: 0 | U188: =U187 -> 381000 | Y188: 1 | Z188: db | AA188: 0 | AB188: =Beallitasok!$G$4 -> 12.26 | AC188: =ROUND(AE188/(1+PENZTAR_ADAT!$E$5),0) -> 0 | AD188: =AD187 -> 0 | AE188: =PENZTAR_ADAT!I20 -> 0 | AF188: =AF187 -> 911000 | AJ188: =AJ187 -> Téves beütés
A189: AAA-15 | B189: SZ | D189: 2021-01-15 | E189: 2021-01-15 | F189: 2021-01-15 | G189: Készpénz | I189: hu | J189: HUF | M189: =M188 -> AP_TESZT2 | R189: 0 | S189: 0 | T189: 0 | U189: =U188 -> 381000 | Y189: 1 | Z189: db | AA189: 0 | AB189: =Beallitasok!$G$5 -> 13.1 | AC189: =ROUND(AE189/(1+PENZTAR_ADAT!$F$5),0) -> 0 | AD189: =AD188 -> 0 | AE189: =PENZTAR_ADAT!J20 -> 0 | AF189: =AF188 -> 911000 | AJ189: =AJ188 -> Téves beütés
A190: =Beallitasok!$B$2&PENZTAR_ADAT!B21 -> AAA-16 | B190: SZ | D190: =DATE(PENZTAR_ADAT!$F$1,VLOOKUP(PENZTAR_ADAT!$H$1,Beallitasok!$K$2:$L$13,2,FALSE),PENZTAR_ADAT!A21) -> 2021-01-16 | E190: =D190 -> 2021-01-16 | F190: =E190 -> 2021-01-16 | G190: =Beallitasok!$B$4 -> Készpénz | I190: hu | J190: HUF | M190: =Beallitasok!$B$6 -> AP_TESZT2 | R190: 0 | S190: 0 | T190: 0 | U190: =Beallitasok!$B$9 -> 381000 | Y190: 1 | Z190: db | AA190: 0 | AB190: =Beallitasok!$G$2 -> 10 | AC190: =AE190 -> 0 | AD190: =AE190-AC190 -> 0 | AE190: =PENZTAR_ADAT!G21 -> 0 | AF190: =Beallitasok!$B$8 -> 911000 | AJ190: =Beallitasok!$B$12 -> Téves beütés
A191: =A190 -> AAA-16 | B191: SZ | D191: =D190 -> 2021-01-16 | E191: 2021-01-16 | F191: 2021-01-16 | G191: Készpénz | I191: =I190 -> hu | J191: HUF | M191: =M190 -> AP_TESZT2 | R191: 0 | S191: 0 | T191: 0 | U191: =U190 -> 381000 | Y191: =Y190 -> 1 | Z191: db | AA191: 0 | AB191: =Beallitasok!$G$3 -> 5.28 | AC191: =ROUND(AE191/(1+PENZTAR_ADAT!$D$5),0) -> 0 | AD191: =AD190 -> 0 | AE191: =PENZTAR_ADAT!H21 -> 0 | AF191: =AF190 -> 911000 | AJ191: =AJ190 -> Téves beütés
A192: AAA-16 | B192: SZ | D192: 2021-01-16 | E192: 2021-01-16 | F192: 2021-01-16 | G192: Készpénz | I192: hu | J192: HUF | M192: =M191 -> AP_TESZT2 | R192: 0 | S192: 0 | T192: 0 | U192: =U191 -> 381000 | Y192: 1 | Z192: db | AA192: 0 | AB192: =Beallitasok!$G$4 -> 12.26 | AC192: =ROUND(AE192/(1+PENZTAR_ADAT!$E$5),0) -> 0 | AD192: =AD191 -> 0 | AE192: =PENZTAR_ADAT!I21 -> 0 | AF192: =AF191 -> 911000 | AJ192: =AJ191 -> Téves beütés
A193: AAA-16 | B193: SZ | D193: 2021-01-16 | E193: 2021-01-16 | F193: 2021-01-16 | G193: Készpénz | I193: hu | J193: HUF | M193: =M192 -> AP_TESZT2 | R193: 0 | S193: 0 | T193: 0 | U193: =U192 -> 381000 | Y193: 1 | Z193: db | AA193: 0 | AB193: =Beallitasok!$G$5 -> 13.1 | AC193: =ROUND(AE193/(1+PENZTAR_ADAT!$F$5),0) -> 0 | AD193: =AD192 -> 0 | AE193: =PENZTAR_ADAT!J21 -> 0 | AF193: =AF192 -> 911000 | AJ193: =AJ192 -> Téves beütés
A194: =Beallitasok!$B$2&PENZTAR_ADAT!B22 -> AAA-17 | B194: SZ | D194: =DATE(PENZTAR_ADAT!$F$1,VLOOKUP(PENZTAR_ADAT!$H$1,Beallitasok!$K$2:$L$13,2,FALSE),PENZTAR_ADAT!A22) -> 2021-01-17 | E194: =D194 -> 2021-01-17 | F194: =E194 -> 2021-01-17 | G194: =Beallitasok!$B$4 -> Készpénz | I194: hu | J194: HUF | M194: =Beallitasok!$B$6 -> AP_TESZT2 | R194: =SUMIF($A$130:$A$253,$A194,AC$130:AC$253) -> 0 | S194: =SUMIF($A$130:$A$253,$A194,AD$130:AD$253) -> 0 | T194: =SUMIF($A$130:$A$253,$A194,AE$130:AE$253) -> 0 | U194: =Beallitasok!$B$9 -> 381000 | Y194: 1 | Z194: db | AA194: =AC194 -> 0 | AB194: =Beallitasok!$G$2 -> 10 | AC194: =AE194 -> 0 | AD194: =AE194-AC194 -> 0 | AE194: =PENZTAR_ADAT!G22 -> 0 | AF194: =Beallitasok!$B$8 -> 911000 | AJ194: =Beallitasok!$B$12 -> Téves beütés
A195: =A194 -> AAA-17 | B195: SZ | D195: =D194 -> 2021-01-17 | E195: 2021-01-17 | F195: 2021-01-17 | G195: Készpénz | I195: =I194 -> hu | J195: HUF | M195: =M194 -> AP_TESZT2 | R195: 0 | S195: 0 | T195: 0 | U195: =U194 -> 381000 | Y195: =Y194 -> 1 | Z195: db | AA195: 0 | AB195: =Beallitasok!$G$3 -> 5.28 | AC195: =ROUND(AE195/(1+PENZTAR_ADAT!$D$5),0) -> 0 | AD195: =AD194 -> 0 | AE195: =PENZTAR_ADAT!H22 -> 0 | AF195: =AF194 -> 911000 | AJ195: =AJ194 -> Téves beütés
A196: AAA-17 | B196: SZ | D196: 2021-01-17 | E196: 2021-01-17 | F196: 2021-01-17 | G196: Készpénz | I196: hu | J196: HUF | M196: =M195 -> AP_TESZT2 | R196: 0 | S196: 0 | T196: 0 | U196: =U195 -> 381000 | Y196: 1 | Z196: db | AA196: 0 | AB196: =Beallitasok!$G$4 -> 12.26 | AC196: =ROUND(AE196/(1+PENZTAR_ADAT!$E$5),0) -> 0 | AD196: =AD195 -> 0 | AE196: =PENZTAR_ADAT!I22 -> 0 | AF196: =AF195 -> 911000 | AJ196: =AJ195 -> Téves beütés
A197: AAA-17 | B197: SZ | D197: 2021-01-17 | E197: 2021-01-17 | F197: 2021-01-17 | G197: Készpénz | I197: hu | J197: HUF | M197: =M196 -> AP_TESZT2 | R197: 0 | S197: 0 | T197: 0 | U197: =U196 -> 381000 | Y197: 1 | Z197: db | AA197: 0 | AB197: =Beallitasok!$G$5 -> 13.1 | AC197: =ROUND(AE197/(1+PENZTAR_ADAT!$F$5),0) -> 0 | AD197: =AD196 -> 0 | AE197: =PENZTAR_ADAT!J22 -> 0 | AF197: =AF196 -> 911000 | AJ197: =AJ196 -> Téves beütés
A198: =Beallitasok!$B$2&PENZTAR_ADAT!B23 -> AAA-18 | B198: SZ | D198: =DATE(PENZTAR_ADAT!$F$1,VLOOKUP(PENZTAR_ADAT!$H$1,Beallitasok!$K$2:$L$13,2,FALSE),PENZTAR_ADAT!A23) -> 2021-01-18 | E198: =D198 -> 2021-01-18 | F198: =E198 -> 2021-01-18 | G198: =Beallitasok!$B$4 -> Készpénz | I198: hu | J198: HUF | M198: =Beallitasok!$B$6 -> AP_TESZT2 | R198: 0 | S198: 0 | T198: 0 | U198: =Beallitasok!$B$9 -> 381000 | Y198: 1 | Z198: db | AA198: 0 | AB198: =Beallitasok!$G$2 -> 10 | AC198: =AE198 -> 0 | AD198: =AE198-AC198 -> 0 | AE198: =PENZTAR_ADAT!G23 -> 0 | AF198: =Beallitasok!$B$8 -> 911000 | AJ198: =Beallitasok!$B$12 -> Téves beütés
A199: =A198 -> AAA-18 | B199: SZ | D199: =D198 -> 2021-01-18 | E199: 2021-01-18 | F199: 2021-01-18 | G199: Készpénz | I199: =I198 -> hu | J199: HUF | M199: =M198 -> AP_TESZT2 | R199: 0 | S199: 0 | T199: 0 | U199: =U198 -> 381000 | Y199: =Y198 -> 1 | Z199: db | AA199: 0 | AB199: =Beallitasok!$G$3 -> 5.28 | AC199: =ROUND(AE199/(1+PENZTAR_ADAT!$D$5),0) -> 0 | AD199: =AD198 -> 0 | AE199: =PENZTAR_ADAT!H23 -> 0 | AF199: =AF198 -> 911000 | AJ199: =AJ198 -> Téves beütés
A200: AAA-18 | B200: SZ | D200: 2021-01-18 | E200: 2021-01-18 | F200: 2021-01-18 | G200: Készpénz | I200: hu | J200: HUF | M200: =M199 -> AP_TESZT2 | R200: 0 | S200: 0 | T200: 0 | U200: =U199 -> 381000 | Y200: 1 | Z200: db | AA200: 0 | AB200: =Beallitasok!$G$4 -> 12.26 | AC200: =ROUND(AE200/(1+PENZTAR_ADAT!$E$5),0) -> 0 | AD200: =AD199 -> 0 | AE200: =PENZTAR_ADAT!I23 -> 0 | AF200: =AF199 -> 911000 | AJ200: =AJ199 -> Téves beütés
A201: AAA-18 | B201: SZ | D201: 2021-01-18 | E201: 2021-01-18 | F201: 2021-01-18 | G201: Készpénz | I201: hu | J201: HUF | M201: =M200 -> AP_TESZT2 | R201: 0 | S201: 0 | T201: 0 | U201: =U200 -> 381000 | Y201: 1 | Z201: db | AA201: 0 | AB201: =Beallitasok!$G$5 -> 13.1 | AC201: =ROUND(AE201/(1+PENZTAR_ADAT!$F$5),0) -> 0 | AD201: =AD200 -> 0 | AE201: =PENZTAR_ADAT!J23 -> 0 | AF201: =AF200 -> 911000 | AJ201: =AJ200 -> Téves beütés
A202: =Beallitasok!$B$2&PENZTAR_ADAT!B24 -> AAA-19 | B202: SZ | D202: =DATE(PENZTAR_ADAT!$F$1,VLOOKUP(PENZTAR_ADAT!$H$1,Beallitasok!$K$2:$L$13,2,FALSE),PENZTAR_ADAT!A24) -> 2021-01-19 | E202: =D202 -> 2021-01-19 | F202: =E202 -> 2021-01-19 | G202: =Beallitasok!$B$4 -> Készpénz | I202: hu | J202: HUF | M202: =Beallitasok!$B$6 -> AP_TESZT2 | R202: 0 | S202: 0 | T202: 0 | U202: =Beallitasok!$B$9 -> 381000 | Y202: 1 | Z202: db | AA202: 0 | AB202: =Beallitasok!$G$2 -> 10 | AC202: =AE202 -> 0 | AD202: =AE202-AC202 -> 0 | AE202: =PENZTAR_ADAT!G24 -> 0 | AF202: =Beallitasok!$B$8 -> 911000 | AJ202: =Beallitasok!$B$12 -> Téves beütés
A203: =A202 -> AAA-19 | B203: SZ | D203: =D202 -> 2021-01-19 | E203: 2021-01-19 | F203: 2021-01-19 | G203: Készpénz | I203: =I202 -> hu | J203: HUF | M203: =M202 -> AP_TESZT2 | R203: 0 | S203: 0 | T203: 0 | U203: =U202 -> 381000 | Y203: =Y202 -> 1 | Z203: db | AA203: 0 | AB203: =Beallitasok!$G$3 -> 5.28 | AC203: =ROUND(AE203/(1+PENZTAR_ADAT!$D$5),0) -> 0 | AD203: =AD202 -> 0 | AE203: =PENZTAR_ADAT!H24 -> 0 | AF203: =AF202 -> 911000 | AJ203: =AJ202 -> Téves beütés
A204: AAA-19 | B204: SZ | D204: 2021-01-19 | E204: 2021-01-19 | F204: 2021-01-19 | G204: Készpénz | I204: hu | J204: HUF | M204: =M203 -> AP_TESZT2 | R204: 0 | S204: 0 | T204: 0 | U204: =U203 -> 381000 | Y204: 1 | Z204: db | AA204: 0 | AB204: =Beallitasok!$G$4 -> 12.26 | AC204: =ROUND(AE204/(1+PENZTAR_ADAT!$E$5),0) -> 0 | AD204: =AD203 -> 0 | AE204: =PENZTAR_ADAT!I24 -> 0 | AF204: =AF203 -> 911000 | AJ204: =AJ203 -> Téves beütés
... 297 more rows

Sheet 9_OSZLOPOS (hidden)
A1: Dátum | B1: Megnevezés | C1: Bizonylatjel | D1: Összeg | E1: Tartozik | F1: Kovetel | G1: KTGHELY | H1: Tartozik megnevezés | I1: Követel megnevezés
A2: =DATE(PENZTAR_ADAT!$F$1,VLOOKUP(PENZTAR_ADAT!$H$1,Beallitasok!$K$2:$L$13,2,FALSE),PENZTAR_ADAT!A6) -> 2021-01-01 | B2: =Beallitasok!$A$14 -> BANKKÁRTYA | C2: =Beallitasok!$B$3&PENZTAR_ADAT!B6 -> BBB-1 | D2: =PENZTAR_ADAT!K6 -> 50 | E2: =Beallitasok!$B$15 -> 361000 | F2: =Beallitasok!$C$15 -> 381000 | H2: =IF(Beallitasok!$B$16="","",Beallitasok!$B$16) -> BK T | I2: =IF(Beallitasok!$C$16="","",Beallitasok!$C$16) -> BK K
A3: =DATE(PENZTAR_ADAT!$F$1,VLOOKUP(PENZTAR_ADAT!$H$1,Beallitasok!$K$2:$L$13,2,FALSE),PENZTAR_ADAT!A7) -> 2021-01-02 | B3: =Beallitasok!$A$14 -> BANKKÁRTYA | C3: =Beallitasok!$B$3&PENZTAR_ADAT!B7 -> BBB-2 | D3: =PENZTAR_ADAT!K7 -> 100 | E3: =Beallitasok!$B$15 -> 361000 | F3: =Beallitasok!$C$15 -> 381000 | H3: =IF(Beallitasok!$B$16="","",Beallitasok!$B$16) -> BK T | I3: =IF(Beallitasok!$C$16="","",Beallitasok!$C$16) -> BK K
A4: =DATE(PENZTAR_ADAT!$F$1,VLOOKUP(PENZTAR_ADAT!$H$1,Beallitasok!$K$2:$L$13,2,FALSE),PENZTAR_ADAT!A8) -> 2021-01-03 | B4: =Beallitasok!$A$14 -> BANKKÁRTYA | C4: =Beallitasok!$B$3&PENZTAR_ADAT!B8 -> BBB-3 | D4: =PENZTAR_ADAT!K8 -> 150 | E4: =Beallitasok!$B$15 -> 361000 | F4: =Beallitasok!$C$15 -> 381000 | H4: =IF(Beallitasok!$B$16="","",Beallitasok!$B$16) -> BK T | I4: =IF(Beallitasok!$C$16="","",Beallitasok!$C$16) -> BK K
A5: =DATE(PENZTAR_ADAT!$F$1,VLOOKUP(PENZTAR_ADAT!$H$1,Beallitasok!$K$2:$L$13,2,FALSE),PENZTAR_ADAT!A9) -> 2021-01-04 | B5: =Beallitasok!$A$14 -> BANKKÁRTYA | C5: =Beallitasok!$B$3&PENZTAR_ADAT!B9 -> BBB-4 | D5: =PENZTAR_ADAT!K9 -> 200 | E5: =Beallitasok!$B$15 -> 361000 | F5: =Beallitasok!$C$15 -> 381000 | H5: =IF(Beallitasok!$B$16="","",Beallitasok!$B$16) -> BK T | I5: =IF(Beallitasok!$C$16="","",Beallitasok!$C$16) -> BK K
A6: =DATE(PENZTAR_ADAT!$F$1,VLOOKUP(PENZTAR_ADAT!$H$1,Beallitasok!$K$2:$L$13,2,FALSE),PENZTAR_ADAT!A10) -> 2021-01-05 | B6: =Beallitasok!$A$14 -> BANKKÁRTYA | C6: =Beallitasok!$B$3&PENZTAR_ADAT!B10 -> BBB-5 | D6: =PENZTAR_ADAT!K10 -> 250 | E6: =Beallitasok!$B$15 -> 361000 | F6: =Beallitasok!$C$15 -> 381000 | H6: =IF(Beallitasok!$B$16="","",Beallitasok!$B$16) -> BK T | I6: =IF(Beallitasok!$C$16="","",Beallitasok!$C$16) -> BK K
A7: =DATE(PENZTAR_ADAT!$F$1,VLOOKUP(PENZTAR_ADAT!$H$1,Beallitasok!$K$2:$L$13,2,FALSE),PENZTAR_ADAT!A11) -> 2021-01-06 | B7: =Beallitasok!$A$14 -> BANKKÁRTYA | C7: =Beallitasok!$B$3&PENZTAR_ADAT!B11 -> BBB-6 | D7: =PENZTAR_ADAT!K11 -> 300 | E7: =Beallitasok!$B$15 -> 361000 | F7: =Beallitasok!$C$15 -> 381000 | H7: =IF(Beallitasok!$B$16="","",Beallitasok!$B$16) -> BK T | I7: =IF(Beallitasok!$C$16="","",Beallitasok!$C$16) -> BK K
A8: =DATE(PENZTAR_ADAT!$F$1,VLOOKUP(PENZTAR_ADAT!$H$1,Beallitasok!$K$2:$L$13,2,FALSE),PENZTAR_ADAT!A12) -> 2021-01-07 | B8: =Beallitasok!$A$14 -> BANKKÁRTYA | C8: =Beallitasok!$B$3&PENZTAR_ADAT!B12 -> BBB-7 | D8: =PENZTAR_ADAT!K12 -> 350 | E8: =Beallitasok!$B$15 -> 361000 | F8: =Beallitasok!$C$15 -> 381000 | H8: =IF(Beallitasok!$B$16="","",Beallitasok!$B$16) -> BK T | I8: =IF(Beallitasok!$C$16="","",Beallitasok!$C$16) -> BK K
A9: =DATE(PENZTAR_ADAT!$F$1,VLOOKUP(PENZTAR_ADAT!$H$1,Beallitasok!$K$2:$L$13,2,FALSE),PENZTAR_ADAT!A13) -> 2021-01-08 | B9: =Beallitasok!$A$14 -> BANKKÁRTYA | C9: =Beallitasok!$B$3&PENZTAR_ADAT!B13 -> BBB-8 | D9: =PENZTAR_ADAT!K13 -> 400 | E9: =Beallitasok!$B$15 -> 361000 | F9: =Beallitasok!$C$15 -> 381000 | H9: =IF(Beallitasok!$B$16="","",Beallitasok!$B$16) -> BK T | I9: =IF(Beallitasok!$C$16="","",Beallitasok!$C$16) -> BK K
A10: =DATE(PENZTAR_ADAT!$F$1,VLOOKUP(PENZTAR_ADAT!$H$1,Beallitasok!$K$2:$L$13,2,FALSE),PENZTAR_ADAT!A14) -> 2021-01-09 | B10: =Beallitasok!$A$14 -> BANKKÁRTYA | C10: =Beallitasok!$B$3&PENZTAR_ADAT!B14 -> BBB-9 | D10: =PENZTAR_ADAT!K14 -> 450 | E10: =Beallitasok!$B$15 -> 361000 | F10: =Beallitasok!$C$15 -> 381000 | H10: =IF(Beallitasok!$B$16="","",Beallitasok!$B$16) -> BK T | I10: =IF(Beallitasok!$C$16="","",Beallitasok!$C$16) -> BK K
A11: =DATE(PENZTAR_ADAT!$F$1,VLOOKUP(PENZTAR_ADAT!$H$1,Beallitasok!$K$2:$L$13,2,FALSE),PENZTAR_ADAT!A15) -> 2021-01-10 | B11: =Beallitasok!$A$14 -> BANKKÁRTYA | C11: =Beallitasok!$B$3&PENZTAR_ADAT!B15 -> BBB-10 | D11: =PENZTAR_ADAT!K15 -> 500 | E11: =Beallitasok!$B$15 -> 361000 | F11: =Beallitasok!$C$15 -> 381000 | H11: =IF(Beallitasok!$B$16="","",Beallitasok!$B$16) -> BK T | I11: =IF(Beallitasok!$C$16="","",Beallitasok!$C$16) -> BK K
A12: =DATE(PENZTAR_ADAT!$F$1,VLOOKUP(PENZTAR_ADAT!$H$1,Beallitasok!$K$2:$L$13,2,FALSE),PENZTAR_ADAT!A16) -> 2021-01-11 | B12: =Beallitasok!$A$14 -> BANKKÁRTYA | C12: =Beallitasok!$B$3&PENZTAR_ADAT!B16 -> BBB-11 | D12: =PENZTAR_ADAT!K16 -> 550 | E12: =Beallitasok!$B$15 -> 361000 | F12: =Beallitasok!$C$15 -> 381000 | H12: =IF(Beallitasok!$B$16="","",Beallitasok!$B$16) -> BK T | I12: =IF(Beallitasok!$C$16="","",Beallitasok!$C$16) -> BK K
A13: =DATE(PENZTAR_ADAT!$F$1,VLOOKUP(PENZTAR_ADAT!$H$1,Beallitasok!$K$2:$L$13,2,FALSE),PENZTAR_ADAT!A17) -> 2021-01-12 | B13: =Beallitasok!$A$14 -> BANKKÁRTYA | C13: =Beallitasok!$B$3&PENZTAR_ADAT!B17 -> BBB-12 | D13: =PENZTAR_ADAT!K17 -> 600 | E13: =Beallitasok!$B$15 -> 361000 | F13: =Beallitasok!$C$15 -> 381000 | H13: =IF(Beallitasok!$B$16="","",Beallitasok!$B$16) -> BK T | I13: =IF(Beallitasok!$C$16="","",Beallitasok!$C$16) -> BK K
A14: =DATE(PENZTAR_ADAT!$F$1,VLOOKUP(PENZTAR_ADAT!$H$1,Beallitasok!$K$2:$L$13,2,FALSE),PENZTAR_ADAT!A18) -> 2021-01-13 | B14: =Beallitasok!$A$14 -> BANKKÁRTYA | C14: =Beallitasok!$B$3&PENZTAR_ADAT!B18 -> BBB-13 | D14: =PENZTAR_ADAT!K18 -> 650 | E14: =Beallitasok!$B$15 -> 361000 | F14: =Beallitasok!$C$15 -> 381000 | H14: =IF(Beallitasok!$B$16="","",Beallitasok!$B$16) -> BK T | I14: =IF(Beallitasok!$C$16="","",Beallitasok!$C$16) -> BK K
A15: =DATE(PENZTAR_ADAT!$F$1,VLOOKUP(PENZTAR_ADAT!$H$1,Beallitasok!$K$2:$L$13,2,FALSE),PENZTAR_ADAT!A19) -> 2021-01-14 | B15: =Beallitasok!$A$14 -> BANKKÁRTYA | C15: =Beallitasok!$B$3&PENZTAR_ADAT!B19 -> BBB-14 | D15: =PENZTAR_ADAT!K19 -> 700 | E15: =Beallitasok!$B$15 -> 361000 | F15: =Beallitasok!$C$15 -> 381000 | H15: =IF(Beallitasok!$B$16="","",Beallitasok!$B$16) -> BK T | I15: =IF(Beallitasok!$C$16="","",Beallitasok!$C$16) -> BK K
A16: =DATE(PENZTAR_ADAT!$F$1,VLOOKUP(PENZTAR_ADAT!$H$1,Beallitasok!$K$2:$L$13,2,FALSE),PENZTAR_ADAT!A20) -> 2021-01-15 | B16: =Beallitasok!$A$14 -> BANKKÁRTYA | C16: =Beallitasok!$B$3&PENZTAR_ADAT!B20 -> BBB-15 | D16: =PENZTAR_ADAT!K20 -> 750 | E16: =Beallitasok!$B$15 -> 361000 | F16: =Beallitasok!$C$15 -> 381000 | H16: =IF(Beallitasok!$B$16="","",Beallitasok!$B$16) -> BK T | I16: =IF(Beallitasok!$C$16="","",Beallitasok!$C$16) -> BK K
A17: =DATE(PENZTAR_ADAT!$F$1,VLOOKUP(PENZTAR_ADAT!$H$1,Beallitasok!$K$2:$L$13,2,FALSE),PENZTAR_ADAT!A21) -> 2021-01-16 | B17: =Beallitasok!$A$14 -> BANKKÁRTYA | C17: =Beallitasok!$B$3&PENZTAR_ADAT!B21 -> BBB-16 | D17: =PENZTAR_ADAT!K21 -> 800 | E17: =Beallitasok!$B$15 -> 361000 | F17: =Beallitasok!$C$15 -> 381000 | H17: =IF(Beallitasok!$B$16="","",Beallitasok!$B$16) -> BK T | I17: =IF(Beallitasok!$C$16="","",Beallitasok!$C$16) -> BK K
A18: =DATE(PENZTAR_ADAT!$F$1,VLOOKUP(PENZTAR_ADAT!$H$1,Beallitasok!$K$2:$L$13,2,FALSE),PENZTAR_ADAT!A22) -> 2021-01-17 | B18: =Beallitasok!$A$14 -> BANKKÁRTYA | C18: =Beallitasok!$B$3&PENZTAR_ADAT!B22 -> BBB-17 | D18: =PENZTAR_ADAT!K22 -> 850 | E18: =Beallitasok!$B$15 -> 361000 | F18: =Beallitasok!$C$15 -> 381000 | H18: =IF(Beallitasok!$B$16="","",Beallitasok!$B$16) -> BK T | I18: =IF(Beallitasok!$C$16="","",Beallitasok!$C$16) -> BK K
A19: =DATE(PENZTAR_ADAT!$F$1,VLOOKUP(PENZTAR_ADAT!$H$1,Beallitasok!$K$2:$L$13,2,FALSE),PENZTAR_ADAT!A23) -> 2021-01-18 | B19: =Beallitasok!$A$14 -> BANKKÁRTYA | C19: =Beallitasok!$B$3&PENZTAR_ADAT!B23 -> BBB-18 | D19: =PENZTAR_ADAT!K23 -> 900 | E19: =Beallitasok!$B$15 -> 361000 | F19: =Beallitasok!$C$15 -> 381000 | H19: =IF(Beallitasok!$B$16="","",Beallitasok!$B$16) -> BK T | I19: =IF(Beallitasok!$C$16="","",Beallitasok!$C$16) -> BK K
A20: =DATE(PENZTAR_ADAT!$F$1,VLOOKUP(PENZTAR_ADAT!$H$1,Beallitasok!$K$2:$L$13,2,FALSE),PENZTAR_ADAT!A24) -> 2021-01-19 | B20: =Beallitasok!$A$14 -> BANKKÁRTYA | C20: =Beallitasok!$B$3&PENZTAR_ADAT!B24 -> BBB-19 | D20: =PENZTAR_ADAT!K24 -> 950 | E20: =Beallitasok!$B$15 -> 361000 | F20: =Beallitasok!$C$15 -> 381000 | H20: =IF(Beallitasok!$B$16="","",Beallitasok!$B$16) -> BK T | I20: =IF(Beallitasok!$C$16="","",Beallitasok!$C$16) -> BK K
A21: =DATE(PENZTAR_ADAT!$F$1,VLOOKUP(PENZTAR_ADAT!$H$1,Beallitasok!$K$2:$L$13,2,FALSE),PENZTAR_ADAT!A25) -> 2021-01-20 | B21: =Beallitasok!$A$14 -> BANKKÁRTYA | C21: =Beallitasok!$B$3&PENZTAR_ADAT!B25 -> BBB-20 | D21: =PENZTAR_ADAT!K25 -> 1000 | E21: =Beallitasok!$B$15 -> 361000 | F21: =Beallitasok!$C$15 -> 381000 | H21: =IF(Beallitasok!$B$16="","",Beallitasok!$B$16) -> BK T | I21: =IF(Beallitasok!$C$16="","",Beallitasok!$C$16) -> BK K
A22: =DATE(PENZTAR_ADAT!$F$1,VLOOKUP(PENZTAR_ADAT!$H$1,Beallitasok!$K$2:$L$13,2,FALSE),PENZTAR_ADAT!A26) -> 2021-01-21 | B22: =Beallitasok!$A$14 -> BANKKÁRTYA | C22: =Beallitasok!$B$3&PENZTAR_ADAT!B26 -> BBB-21 | D22: =PENZTAR_ADAT!K26 -> 1050 | E22: =Beallitasok!$B$15 -> 361000 | F22: =Beallitasok!$C$15 -> 381000 | H22: =IF(Beallitasok!$B$16="","",Beallitasok!$B$16) -> BK T | I22: =IF(Beallitasok!$C$16="","",Beallitasok!$C$16) -> BK K
A23: =DATE(PENZTAR_ADAT!$F$1,VLOOKUP(PENZTAR_ADAT!$H$1,Beallitasok!$K$2:$L$13,2,FALSE),PENZTAR_ADAT!A27) -> 2021-01-22 | B23: =Beallitasok!$A$14 -> BANKKÁRTYA | C23: =Beallitasok!$B$3&PENZTAR_ADAT!B27 -> BBB-22 | D23: =PENZTAR_ADAT!K27 -> 1100 | E23: =Beallitasok!$B$15 -> 361000 | F23: =Beallitasok!$C$15 -> 381000 | H23: =IF(Beallitasok!$B$16="","",Beallitasok!$B$16) -> BK T | I23: =IF(Beallitasok!$C$16="","",Beallitasok!$C$16) -> BK K
A24: =DATE(PENZTAR_ADAT!$F$1,VLOOKUP(PENZTAR_ADAT!$H$1,Beallitasok!$K$2:$L$13,2,FALSE),PENZTAR_ADAT!A28) -> 2021-01-23 | B24: =Beallitasok!$A$14 -> BANKKÁRTYA | C24: =Beallitasok!$B$3&PENZTAR_ADAT!B28 -> BBB-23 | D24: =PENZTAR_ADAT!K28 -> 1150 | E24: =Beallitasok!$B$15 -> 361000 | F24: =Beallitasok!$C$15 -> 381000 | H24: =IF(Beallitasok!$B$16="","",Beallitasok!$B$16) -> BK T | I24: =IF(Beallitasok!$C$16="","",Beallitasok!$C$16) -> BK K
A25: =DATE(PENZTAR_ADAT!$F$1,VLOOKUP(PENZTAR_ADAT!$H$1,Beallitasok!$K$2:$L$13,2,FALSE),PENZTAR_ADAT!A29) -> 2021-01-24 | B25: =Beallitasok!$A$14 -> BANKKÁRTYA | C25: =Beallitasok!$B$3&PENZTAR_ADAT!B29 -> BBB-24 | D25: =PENZTAR_ADAT!K29 -> 1200 | E25: =Beallitasok!$B$15 -> 361000 | F25: =Beallitasok!$C$15 -> 381000 | H25: =IF(Beallitasok!$B$16="","",Beallitasok!$B$16) -> BK T | I25: =IF(Beallitasok!$C$16="","",Beallitasok!$C$16) -> BK K
A26: =DATE(PENZTAR_ADAT!$F$1,VLOOKUP(PENZTAR_ADAT!$H$1,Beallitasok!$K$2:$L$13,2,FALSE),PENZTAR_ADAT!A30) -> 2021-01-25 | B26: =Beallitasok!$A$14 -> BANKKÁRTYA | C26: =Beallitasok!$B$3&PENZTAR_ADAT!B30 -> BBB-25 | D26: =PENZTAR_ADAT!K30 -> 1250 | E26: =Beallitasok!$B$15 -> 361000 | F26: =Beallitasok!$C$15 -> 381000 | H26: =IF(Beallitasok!$B$16="","",Beallitasok!$B$16) -> BK T | I26: =IF(Beallitasok!$C$16="","",Beallitasok!$C$16) -> BK K
A27: =DATE(PENZTAR_ADAT!$F$1,VLOOKUP(PENZTAR_ADAT!$H$1,Beallitasok!$K$2:$L$13,2,FALSE),PENZTAR_ADAT!A31) -> 2021-01-26 | B27: =Beallitasok!$A$14 -> BANKKÁRTYA | C27: =Beallitasok!$B$3&PENZTAR_ADAT!B31 -> BBB-26 | D27: =PENZTAR_ADAT!K31 -> 1300 | E27: =Beallitasok!$B$15 -> 361000 | F27: =Beallitasok!$C$15 -> 381000 | H27: =IF(Beallitasok!$B$16="","",Beallitasok!$B$16) -> BK T | I27: =IF(Beallitasok!$C$16="","",Beallitasok!$C$16) -> BK K
A28: =DATE(PENZTAR_ADAT!$F$1,VLOOKUP(PENZTAR_ADAT!$H$1,Beallitasok!$K$2:$L$13,2,FALSE),PENZTAR_ADAT!A32) -> 2021-01-27 | B28: =Beallitasok!$A$14 -> BANKKÁRTYA | C28: =Beallitasok!$B$3&PENZTAR_ADAT!B32 -> BBB-27 | D28: =PENZTAR_ADAT!K32 -> 1350 | E28: =Beallitasok!$B$15 -> 361000 | F28: =Beallitasok!$C$15 -> 381000 | H28: =IF(Beallitasok!$B$16="","",Beallitasok!$B$16) -> BK T | I28: =IF(Beallitasok!$C$16="","",Beallitasok!$C$16) -> BK K
A29: =DATE(PENZTAR_ADAT!$F$1,VLOOKUP(PENZTAR_ADAT!$H$1,Beallitasok!$K$2:$L$13,2,FALSE),PENZTAR_ADAT!A33) -> 2021-01-28 | B29: =Beallitasok!$A$14 -> BANKKÁRTYA | C29: =Beallitasok!$B$3&PENZTAR_ADAT!B33 -> BBB-28 | D29: =PENZTAR_ADAT!K33 -> 1400 | E29: =Beallitasok!$B$15 -> 361000 | F29: =Beallitasok!$C$15 -> 381000 | H29: =IF(Beallitasok!$B$16="","",Beallitasok!$B$16) -> BK T | I29: =IF(Beallitasok!$C$16="","",Beallitasok!$C$16) -> BK K
A30: =DATE(PENZTAR_ADAT!$F$1,VLOOKUP(PENZTAR_ADAT!$H$1,Beallitasok!$K$2:$L$13,2,FALSE),PENZTAR_ADAT!A34) -> 2021-01-29 | B30: =Beallitasok!$A$14 -> BANKKÁRTYA | C30: =Beallitasok!$B$3&PENZTAR_ADAT!B34 -> BBB-29 | D30: =PENZTAR_ADAT!K34 -> 1450 | E30: =Beallitasok!$B$15 -> 361000 | F30: =Beallitasok!$C$15 -> 381000 | H30: =IF(Beallitasok!$B$16="","",Beallitasok!$B$16) -> BK T | I30: =IF(Beallitasok!$C$16="","",Beallitasok!$C$16) -> BK K
A31: =DATE(PENZTAR_ADAT!$F$1,VLOOKUP(PENZTAR_ADAT!$H$1,Beallitasok!$K$2:$L$13,2,FALSE),PENZTAR_ADAT!A35) -> 2021-01-30 | B31: =Beallitasok!$A$14 -> BANKKÁRTYA | C31: =Beallitasok!$B$3&PENZTAR_ADAT!B35 -> BBB-30 | D31: =PENZTAR_ADAT!K35 -> 1500 | E31: =Beallitasok!$B$15 -> 361000 | F31: =Beallitasok!$C$15 -> 381000 | H31: =IF(Beallitasok!$B$16="","",Beallitasok!$B$16) -> BK T | I31: =IF(Beallitasok!$C$16="","",Beallitasok!$C$16) -> BK K
A32: =DATE(PENZTAR_ADAT!$F$1,VLOOKUP(PENZTAR_ADAT!$H$1,Beallitasok!$K$2:$L$13,2,FALSE),PENZTAR_ADAT!A36) -> 2021-01-31 | B32: =Beallitasok!$A$14 -> BANKKÁRTYA | C32: =Beallitasok!$B$3&PENZTAR_ADAT!B36 -> BBB-31 | D32: =PENZTAR_ADAT!K36 -> 1550 | E32: =Beallitasok!$B$15 -> 361000 | F32: =Beallitasok!$C$15 -> 381000 | H32: =IF(Beallitasok!$B$16="","",Beallitasok!$B$16) -> BK T | I32: =IF(Beallitasok!$C$16="","",Beallitasok!$C$16) -> BK K
A35: =DATE(PENZTAR_ADAT!$F$1,VLOOKUP(PENZTAR_ADAT!$H$1,Beallitasok!$K$2:$L$13,2,FALSE),PENZTAR_ADAT!A6) -> 2021-01-01 | B35: =Beallitasok!$A$18 -> Netpincér | C35: =Beallitasok!$B$3&PENZTAR_ADAT!B6 -> BBB-1 | D35: =PENZTAR_ADAT!L6 -> 55 | E35: =Beallitasok!$B$19 -> 361000 | F35: =Beallitasok!$C$19 -> 381000 | H35: =IF(Beallitasok!$B$20="","",Beallitasok!$B$20) -> NET T | I35: =IF(Beallitasok!$C$20="","",Beallitasok!$C$20) -> NET K
A36: =DATE(PENZTAR_ADAT!$F$1,VLOOKUP(PENZTAR_ADAT!$H$1,Beallitasok!$K$2:$L$13,2,FALSE),PENZTAR_ADAT!A7) -> 2021-01-02 | B36: =Beallitasok!$A$18 -> Netpincér | C36: =Beallitasok!$B$3&PENZTAR_ADAT!B7 -> BBB-2 | D36: =PENZTAR_ADAT!L7 -> 110 | E36: =Beallitasok!$B$19 -> 361000 | F36: =Beallitasok!$C$19 -> 381000 | H36: =IF(Beallitasok!$B$20="","",Beallitasok!$B$20) -> NET T | I36: =IF(Beallitasok!$C$20="","",Beallitasok!$C$20) -> NET K
A37: =DATE(PENZTAR_ADAT!$F$1,VLOOKUP(PENZTAR_ADAT!$H$1,Beallitasok!$K$2:$L$13,2,FALSE),PENZTAR_ADAT!A8) -> 2021-01-03 | B37: =Beallitasok!$A$18 -> Netpincér | C37: =Beallitasok!$B$3&PENZTAR_ADAT!B8 -> BBB-3 | D37: =PENZTAR_ADAT!L8 -> 165 | E37: =Beallitasok!$B$19 -> 361000 | F37: =Beallitasok!$C$19 -> 381000 | H37: =IF(Beallitasok!$B$20="","",Beallitasok!$B$20) -> NET T | I37: =IF(Beallitasok!$C$20="","",Beallitasok!$C$20) -> NET K
A38: =DATE(PENZTAR_ADAT!$F$1,VLOOKUP(PENZTAR_ADAT!$H$1,Beallitasok!$K$2:$L$13,2,FALSE),PENZTAR_ADAT!A9) -> 2021-01-04 | B38: =Beallitasok!$A$18 -> Netpincér | C38: =Beallitasok!$B$3&PENZTAR_ADAT!B9 -> BBB-4 | D38: =PENZTAR_ADAT!L9 -> 220 | E38: =Beallitasok!$B$19 -> 361000 | F38: =Beallitasok!$C$19 -> 381000 | H38: =IF(Beallitasok!$B$20="","",Beallitasok!$B$20) -> NET T | I38: =IF(Beallitasok!$C$20="","",Beallitasok!$C$20) -> NET K
A39: =DATE(PENZTAR_ADAT!$F$1,VLOOKUP(PENZTAR_ADAT!$H$1,Beallitasok!$K$2:$L$13,2,FALSE),PENZTAR_ADAT!A10) -> 2021-01-05 | B39: =Beallitasok!$A$18 -> Netpincér | C39: =Beallitasok!$B$3&PENZTAR_ADAT!B10 -> BBB-5 | D39: =PENZTAR_ADAT!L10 -> 275 | E39: =Beallitasok!$B$19 -> 361000 | F39: =Beallitasok!$C$19 -> 381000 | H39: =IF(Beallitasok!$B$20="","",Beallitasok!$B$20) -> NET T | I39: =IF(Beallitasok!$C$20="","",Beallitasok!$C$20) -> NET K
A40: =DATE(PENZTAR_ADAT!$F$1,VLOOKUP(PENZTAR_ADAT!$H$1,Beallitasok!$K$2:$L$13,2,FALSE),PENZTAR_ADAT!A11) -> 2021-01-06 | B40: =Beallitasok!$A$18 -> Netpincér | C40: =Beallitasok!$B$3&PENZTAR_ADAT!B11 -> BBB-6 | D40: =PENZTAR_ADAT!L11 -> 330 | E40: =Beallitasok!$B$19 -> 361000 | F40: =Beallitasok!$C$19 -> 381000 | H40: =IF(Beallitasok!$B$20="","",Beallitasok!$B$20) -> NET T | I40: =IF(Beallitasok!$C$20="","",Beallitasok!$C$20) -> NET K
A41: =DATE(PENZTAR_ADAT!$F$1,VLOOKUP(PENZTAR_ADAT!$H$1,Beallitasok!$K$2:$L$13,2,FALSE),PENZTAR_ADAT!A12) -> 2021-01-07 | B41: =Beallitasok!$A$18 -> Netpincér | C41: =Beallitasok!$B$3&PENZTAR_ADAT!B12 -> BBB-7 | D41: =PENZTAR_ADAT!L12 -> 385 | E41: =Beallitasok!$B$19 -> 361000 | F41: =Beallitasok!$C$19 -> 381000 | H41: =IF(Beallitasok!$B$20="","",Beallitasok!$B$20) -> NET T | I41: =IF(Beallitasok!$C$20="","",Beallitasok!$C$20) -> NET K
A42: =DATE(PENZTAR_ADAT!$F$1,VLOOKUP(PENZTAR_ADAT!$H$1,Beallitasok!$K$2:$L$13,2,FALSE),PENZTAR_ADAT!A13) -> 2021-01-08 | B42: =Beallitasok!$A$18 -> Netpincér | C42: =Beallitasok!$B$3&PENZTAR_ADAT!B13 -> BBB-8 | D42: =PENZTAR_ADAT!L13 -> 440 | E42: =Beallitasok!$B$19 -> 361000 | F42: =Beallitasok!$C$19 -> 381000 | H42: =IF(Beallitasok!$B$20="","",Beallitasok!$B$20) -> NET T | I42: =IF(Beallitasok!$C$20="","",Beallitasok!$C$20) -> NET K
A43: =DATE(PENZTAR_ADAT!$F$1,VLOOKUP(PENZTAR_ADAT!$H$1,Beallitasok!$K$2:$L$13,2,FALSE),PENZTAR_ADAT!A14) -> 2021-01-09 | B43: =Beallitasok!$A$18 -> Netpincér | C43: =Beallitasok!$B$3&PENZTAR_ADAT!B14 -> BBB-9 | D43: =PENZTAR_ADAT!L14 -> 495 | E43: =Beallitasok!$B$19 -> 361000 | F43: =Beallitasok!$C$19 -> 381000 | H43: =IF(Beallitasok!$B$20="","",Beallitasok!$B$20) -> NET T | I43: =IF(Beallitasok!$C$20="","",Beallitasok!$C$20) -> NET K
A44: =DATE(PENZTAR_ADAT!$F$1,VLOOKUP(PENZTAR_ADAT!$H$1,Beallitasok!$K$2:$L$13,2,FALSE),PENZTAR_ADAT!A15) -> 2021-01-10 | B44: =Beallitasok!$A$18 -> Netpincér | C44: =Beallitasok!$B$3&PENZTAR_ADAT!B15 -> BBB-10 | D44: =PENZTAR_ADAT!L15 -> 550 | E44: =Beallitasok!$B$19 -> 361000 | F44: =Beallitasok!$C$19 -> 381000 | H44: =IF(Beallitasok!$B$20="","",Beallitasok!$B$20) -> NET T | I44: =IF(Beallitasok!$C$20="","",Beallitasok!$C$20) -> NET K
A45: =DATE(PENZTAR_ADAT!$F$1,VLOOKUP(PENZTAR_ADAT!$H$1,Beallitasok!$K$2:$L$13,2,FALSE),PENZTAR_ADAT!A16) -> 2021-01-11 | B45: =Beallitasok!$A$18 -> Netpincér | C45: =Beallitasok!$B$3&PENZTAR_ADAT!B16 -> BBB-11 | D45: =PENZTAR_ADAT!L16 -> 605 | E45: =Beallitasok!$B$19 -> 361000 | F45: =Beallitasok!$C$19 -> 381000 | H45: =IF(Beallitasok!$B$20="","",Beallitasok!$B$20) -> NET T | I45: =IF(Beallitasok!$C$20="","",Beallitasok!$C$20) -> NET K
A46: =DATE(PENZTAR_ADAT!$F$1,VLOOKUP(PENZTAR_ADAT!$H$1,Beallitasok!$K$2:$L$13,2,FALSE),PENZTAR_ADAT!A17) -> 2021-01-12 | B46: =Beallitasok!$A$18 -> Netpincér | C46: =Beallitasok!$B$3&PENZTAR_ADAT!B17 -> BBB-12 | D46: =PENZTAR_ADAT!L17 -> 660 | E46: =Beallitasok!$B$19 -> 361000 | F46: =Beallitasok!$C$19 -> 381000 | H46: =IF(Beallitasok!$B$20="","",Beallitasok!$B$20) -> NET T | I46: =IF(Beallitasok!$C$20="","",Beallitasok!$C$20) -> NET K
A47: =DATE(PENZTAR_ADAT!$F$1,VLOOKUP(PENZTAR_ADAT!$H$1,Beallitasok!$K$2:$L$13,2,FALSE),PENZTAR_ADAT!A18) -> 2021-01-13 | B47: =Beallitasok!$A$18 -> Netpincér | C47: =Beallitasok!$B$3&PENZTAR_ADAT!B18 -> BBB-13 | D47: =PENZTAR_ADAT!L18 -> 715 | E47: =Beallitasok!$B$19 -> 361000 | F47: =Beallitasok!$C$19 -> 381000 | H47: =IF(Beallitasok!$B$20="","",Beallitasok!$B$20) -> NET T | I47: =IF(Beallitasok!$C$20="","",Beallitasok!$C$20) -> NET K
A48: =DATE(PENZTAR_ADAT!$F$1,VLOOKUP(PENZTAR_ADAT!$H$1,Beallitasok!$K$2:$L$13,2,FALSE),PENZTAR_ADAT!A19) -> 2021-01-14 | B48: =Beallitasok!$A$18 -> Netpincér | C48: =Beallitasok!$B$3&PENZTAR_ADAT!B19 -> BBB-14 | D48: =PENZTAR_ADAT!L19 -> 770 | E48: =Beallitasok!$B$19 -> 361000 | F48: =Beallitasok!$C$19 -> 381000 | H48: =IF(Beallitasok!$B$20="","",Beallitasok!$B$20) -> NET T | I48: =IF(Beallitasok!$C$20="","",Beallitasok!$C$20) -> NET K
A49: =DATE(PENZTAR_ADAT!$F$1,VLOOKUP(PENZTAR_ADAT!$H$1,Beallitasok!$K$2:$L$13,2,FALSE),PENZTAR_ADAT!A20) -> 2021-01-15 | B49: =Beallitasok!$A$18 -> Netpincér | C49: =Beallitasok!$B$3&PENZTAR_ADAT!B20 -> BBB-15 | D49: =PENZTAR_ADAT!L20 -> 825 | E49: =Beallitasok!$B$19 -> 361000 | F49: =Beallitasok!$C$19 -> 381000 | H49: =IF(Beallitasok!$B$20="","",Beallitasok!$B$20) -> NET T | I49: =IF(Beallitasok!$C$20="","",Beallitasok!$C$20) -> NET K
A50: =DATE(PENZTAR_ADAT!$F$1,VLOOKUP(PENZTAR_ADAT!$H$1,Beallitasok!$K$2:$L$13,2,FALSE),PENZTAR_ADAT!A21) -> 2021-01-16 | B50: =Beallitasok!$A$18 -> Netpincér | C50: =Beallitasok!$B$3&PENZTAR_ADAT!B21 -> BBB-16 | D50: =PENZTAR_ADAT!L21 -> 880 | E50: =Beallitasok!$B$19 -> 361000 | F50: =Beallitasok!$C$19 -> 381000 | H50: =IF(Beallitasok!$B$20="","",Beallitasok!$B$20) -> NET T | I50: =IF(Beallitasok!$C$20="","",Beallitasok!$C$20) -> NET K
A51: =DATE(PENZTAR_ADAT!$F$1,VLOOKUP(PENZTAR_ADAT!$H$1,Beallitasok!$K$2:$L$13,2,FALSE),PENZTAR_ADAT!A22) -> 2021-01-17 | B51: =Beallitasok!$A$18 -> Netpincér | C51: =Beallitasok!$B$3&PENZTAR_ADAT!B22 -> BBB-17 | D51: =PENZTAR_ADAT!L22 -> 935 | E51: =Beallitasok!$B$19 -> 361000 | F51: =Beallitasok!$C$19 -> 381000 | H51: =IF(Beallitasok!$B$20="","",Beallitasok!$B$20) -> NET T | I51: =IF(Beallitasok!$C$20="","",Beallitasok!$C$20) -> NET K
A52: =DATE(PENZTAR_ADAT!$F$1,VLOOKUP(PENZTAR_ADAT!$H$1,Beallitasok!$K$2:$L$13,2,FALSE),PENZTAR_ADAT!A23) -> 2021-01-18 | B52: =Beallitasok!$A$18 -> Netpincér | C52: =Beallitasok!$B$3&PENZTAR_ADAT!B23 -> BBB-18 | D52: =PENZTAR_ADAT!L23 -> 990 | E52: =Beallitasok!$B$19 -> 361000 | F52: =Beallitasok!$C$19 -> 381000 | H52: =IF(Beallitasok!$B$20="","",Beallitasok!$B$20) -> NET T | I52: =IF(Beallitasok!$C$20="","",Beallitasok!$C$20) -> NET K
A53: =DATE(PENZTAR_ADAT!$F$1,VLOOKUP(PENZTAR_ADAT!$H$1,Beallitasok!$K$2:$L$13,2,FALSE),PENZTAR_ADAT!A24) -> 2021-01-19 | B53: =Beallitasok!$A$18 -> Netpincér | C53: =Beallitasok!$B$3&PENZTAR_ADAT!B24 -> BBB-19 | D53: =PENZTAR_ADAT!L24 -> 1045 | E53: =Beallitasok!$B$19 -> 361000 | F53: =Beallitasok!$C$19 -> 381000 | H53: =IF(Beallitasok!$B$20="","",Beallitasok!$B$20) -> NET T | I53: =IF(Beallitasok!$C$20="","",Beallitasok!$C$20) -> NET K
A54: =DATE(PENZTAR_ADAT!$F$1,VLOOKUP(PENZTAR_ADAT!$H$1,Beallitasok!$K$2:$L$13,2,FALSE),PENZTAR_ADAT!A25) -> 2021-01-20 | B54: =Beallitasok!$A$18 -> Netpincér | C54: =Beallitasok!$B$3&PENZTAR_ADAT!B25 -> BBB-20 | D54: =PENZTAR_ADAT!L25 -> 1100 | E54: =Beallitasok!$B$19 -> 361000 | F54: =Beallitasok!$C$19 -> 381000 | H54: =IF(Beallitasok!$B$20="","",Beallitasok!$B$20) -> NET T | I54: =IF(Beallitasok!$C$20="","",Beallitasok!$C$20) -> NET K
A55: =DATE(PENZTAR_ADAT!$F$1,VLOOKUP(PENZTAR_ADAT!$H$1,Beallitasok!$K$2:$L$13,2,FALSE),PENZTAR_ADAT!A26) -> 2021-01-21 | B55: =Beallitasok!$A$18 -> Netpincér | C55: =Beallitasok!$B$3&PENZTAR_ADAT!B26 -> BBB-21 | D55: =PENZTAR_ADAT!L26 -> 1155 | E55: =Beallitasok!$B$19 -> 361000 | F55: =Beallitasok!$C$19 -> 381000 | H55: =IF(Beallitasok!$B$20="","",Beallitasok!$B$20) -> NET T | I55: =IF(Beallitasok!$C$20="","",Beallitasok!$C$20) -> NET K
A56: =DATE(PENZTAR_ADAT!$F$1,VLOOKUP(PENZTAR_ADAT!$H$1,Beallitasok!$K$2:$L$13,2,FALSE),PENZTAR_ADAT!A27) -> 2021-01-22 | B56: =Beallitasok!$A$18 -> Netpincér | C56: =Beallitasok!$B$3&PENZTAR_ADAT!B27 -> BBB-22 | D56: =PENZTAR_ADAT!L27 -> 1210 | E56: =Beallitasok!$B$19 -> 361000 | F56: =Beallitasok!$C$19 -> 381000 | H56: =IF(Beallitasok!$B$20="","",Beallitasok!$B$20) -> NET T | I56: =IF(Beallitasok!$C$20="","",Beallitasok!$C$20) -> NET K
A57: =DATE(PENZTAR_ADAT!$F$1,VLOOKUP(PENZTAR_ADAT!$H$1,Beallitasok!$K$2:$L$13,2,FALSE),PENZTAR_ADAT!A28) -> 2021-01-23 | B57: =Beallitasok!$A$18 -> Netpincér | C57: =Beallitasok!$B$3&PENZTAR_ADAT!B28 -> BBB-23 | D57: =PENZTAR_ADAT!L28 -> 1265 | E57: =Beallitasok!$B$19 -> 361000 | F57: =Beallitasok!$C$19 -> 381000 | H57: =IF(Beallitasok!$B$20="","",Beallitasok!$B$20) -> NET T | I57: =IF(Beallitasok!$C$20="","",Beallitasok!$C$20) -> NET K
A58: =DATE(PENZTAR_ADAT!$F$1,VLOOKUP(PENZTAR_ADAT!$H$1,Beallitasok!$K$2:$L$13,2,FALSE),PENZTAR_ADAT!A29) -> 2021-01-24 | B58: =Beallitasok!$A$18 -> Netpincér | C58: =Beallitasok!$B$3&PENZTAR_ADAT!B29 -> BBB-24 | D58: =PENZTAR_ADAT!L29 -> 1320 | E58: =Beallitasok!$B$19 -> 361000 | F58: =Beallitasok!$C$19 -> 381000 | H58: =IF(Beallitasok!$B$20="","",Beallitasok!$B$20) -> NET T | I58: =IF(Beallitasok!$C$20="","",Beallitasok!$C$20) -> NET K
A59: =DATE(PENZTAR_ADAT!$F$1,VLOOKUP(PENZTAR_ADAT!$H$1,Beallitasok!$K$2:$L$13,2,FALSE),PENZTAR_ADAT!A30) -> 2021-01-25 | B59: =Beallitasok!$A$18 -> Netpincér | C59: =Beallitasok!$B$3&PENZTAR_ADAT!B30 -> BBB-25 | D59: =PENZTAR_ADAT!L30 -> 1375 | E59: =Beallitasok!$B$19 -> 361000 | F59: =Beallitasok!$C$19 -> 381000 | H59: =IF(Beallitasok!$B$20="","",Beallitasok!$B$20) -> NET T | I59: =IF(Beallitasok!$C$20="","",Beallitasok!$C$20) -> NET K
A60: =DATE(PENZTAR_ADAT!$F$1,VLOOKUP(PENZTAR_ADAT!$H$1,Beallitasok!$K$2:$L$13,2,FALSE),PENZTAR_ADAT!A31) -> 2021-01-26 | B60: =Beallitasok!$A$18 -> Netpincér | C60: =Beallitasok!$B$3&PENZTAR_ADAT!B31 -> BBB-26 | D60: =PENZTAR_ADAT!L31 -> 1430 | E60: =Beallitasok!$B$19 -> 361000 | F60: =Beallitasok!$C$19 -> 381000 | H60: =IF(Beallitasok!$B$20="","",Beallitasok!$B$20) -> NET T | I60: =IF(Beallitasok!$C$20="","",Beallitasok!$C$20) -> NET K
A61: =DATE(PENZTAR_ADAT!$F$1,VLOOKUP(PENZTAR_ADAT!$H$1,Beallitasok!$K$2:$L$13,2,FALSE),PENZTAR_ADAT!A32) -> 2021-01-27 | B61: =Beallitasok!$A$18 -> Netpincér | C61: =Beallitasok!$B$3&PENZTAR_ADAT!B32 -> BBB-27 | D61: =PENZTAR_ADAT!L32 -> 1485 | E61: =Beallitasok!$B$19 -> 361000 | F61: =Beallitasok!$C$19 -> 381000 | H61: =IF(Beallitasok!$B$20="","",Beallitasok!$B$20) -> NET T | I61: =IF(Beallitasok!$C$20="","",Beallitasok!$C$20) -> NET K
A62: =DATE(PENZTAR_ADAT!$F$1,VLOOKUP(PENZTAR_ADAT!$H$1,Beallitasok!$K$2:$L$13,2,FALSE),PENZTAR_ADAT!A33) -> 2021-01-28 | B62: =Beallitasok!$A$18 -> Netpincér | C62: =Beallitasok!$B$3&PENZTAR_ADAT!B33 -> BBB-28 | D62: =PENZTAR_ADAT!L33 -> 1540 | E62: =Beallitasok!$B$19 -> 361000 | F62: =Beallitasok!$C$19 -> 381000 | H62: =IF(Beallitasok!$B$20="","",Beallitasok!$B$20) -> NET T | I62: =IF(Beallitasok!$C$20="","",Beallitasok!$C$20) -> NET K
A63: =DATE(PENZTAR_ADAT!$F$1,VLOOKUP(PENZTAR_ADAT!$H$1,Beallitasok!$K$2:$L$13,2,FALSE),PENZTAR_ADAT!A34) -> 2021-01-29 | B63: =Beallitasok!$A$18 -> Netpincér | C63: =Beallitasok!$B$3&PENZTAR_ADAT!B34 -> BBB-29 | D63: =PENZTAR_ADAT!L34 -> 1595 | E63: =Beallitasok!$B$19 -> 361000 | F63: =Beallitasok!$C$19 -> 381000 | H63: =IF(Beallitasok!$B$20="","",Beallitasok!$B$20) -> NET T | I63: =IF(Beallitasok!$C$20="","",Beallitasok!$C$20) -> NET K
A64: =DATE(PENZTAR_ADAT!$F$1,VLOOKUP(PENZTAR_ADAT!$H$1,Beallitasok!$K$2:$L$13,2,FALSE),PENZTAR_ADAT!A35) -> 2021-01-30 | B64: =Beallitasok!$A$18 -> Netpincér | C64: =Beallitasok!$B$3&PENZTAR_ADAT!B35 -> BBB-30 | D64: =PENZTAR_ADAT!L35 -> 1650 | E64: =Beallitasok!$B$19 -> 361000 | F64: =Beallitasok!$C$19 -> 381000 | H64: =IF(Beallitasok!$B$20="","",Beallitasok!$B$20) -> NET T | I64: =IF(Beallitasok!$C$20="","",Beallitasok!$C$20) -> NET K
A65: =DATE(PENZTAR_ADAT!$F$1,VLOOKUP(PENZTAR_ADAT!$H$1,Beallitasok!$K$2:$L$13,2,FALSE),PENZTAR_ADAT!A36) -> 2021-01-31 | B65: =Beallitasok!$A$18 -> Netpincér | C65: =Beallitasok!$B$3&PENZTAR_ADAT!B36 -> BBB-31 | D65: =PENZTAR_ADAT!L36 -> 1705 | E65: =Beallitasok!$B$19 -> 361000 | F65: =Beallitasok!$C$19 -> 381000 | H65: =IF(Beallitasok!$B$20="","",Beallitasok!$B$20) -> NET T | I65: =IF(Beallitasok!$C$20="","",Beallitasok!$C$20) -> NET K
A68: =DATE(PENZTAR_ADAT!$F$1,VLOOKUP(PENZTAR_ADAT!$H$1,Beallitasok!$K$2:$L$13,2,FALSE),PENZTAR_ADAT!A6) -> 2021-01-01 | B68: =Beallitasok!$E$14 -> MKB SZÉP KÁRTYA | C68: =Beallitasok!$B$3&PENZTAR_ADAT!B6 -> BBB-1 | D68: =PENZTAR_ADAT!M6 -> 60 | E68: =Beallitasok!$G$15 -> 361000 | F68: =Beallitasok!$H$15 -> 381000 | H68: =IF(Beallitasok!$G$16="","",Beallitasok!$G$16) -> UTA T | I68: =IF(Beallitasok!$H$16="","",Beallitasok!$H$16) -> UTA K
A69: =DATE(PENZTAR_ADAT!$F$1,VLOOKUP(PENZTAR_ADAT!$H$1,Beallitasok!$K$2:$L$13,2,FALSE),PENZTAR_ADAT!A7) -> 2021-01-02 | B69: =Beallitasok!$E$14 -> MKB SZÉP KÁRTYA | C69: =Beallitasok!$B$3&PENZTAR_ADAT!B7 -> BBB-2 | D69: =PENZTAR_ADAT!M7 -> 120 | E69: =Beallitasok!$G$15 -> 361000 | F69: =Beallitasok!$H$15 -> 381000 | H69: =IF(Beallitasok!$G$16="","",Beallitasok!$G$16) -> UTA T | I69: =IF(Beallitasok!$H$16="","",Beallitasok!$H$16) -> UTA K
A70: =DATE(PENZTAR_ADAT!$F$1,VLOOKUP(PENZTAR_ADAT!$H$1,Beallitasok!$K$2:$L$13,2,FALSE),PENZTAR_ADAT!A8) -> 2021-01-03 | B70: =Beallitasok!$E$14 -> MKB SZÉP KÁRTYA | C70: =Beallitasok!$B$3&PENZTAR_ADAT!B8 -> BBB-3 | D70: =PENZTAR_ADAT!M8 -> 180 | E70: =Beallitasok!$G$15 -> 361000 | F70: =Beallitasok!$H$15 -> 381000 | H70: =IF(Beallitasok!$G$16="","",Beallitasok!$G$16) -> UTA T | I70: =IF(Beallitasok!$H$16="","",Beallitasok!$H$16) -> UTA K
A71: =DATE(PENZTAR_ADAT!$F$1,VLOOKUP(PENZTAR_ADAT!$H$1,Beallitasok!$K$2:$L$13,2,FALSE),PENZTAR_ADAT!A9) -> 2021-01-04 | B71: =Beallitasok!$E$14 -> MKB SZÉP KÁRTYA | C71: =Beallitasok!$B$3&PENZTAR_ADAT!B9 -> BBB-4 | D71: =PENZTAR_ADAT!M9 -> 240 | E71: =Beallitasok!$G$15 -> 361000 | F71: =Beallitasok!$H$15 -> 381000 | H71: =IF(Beallitasok!$G$16="","",Beallitasok!$G$16) -> UTA T | I71: =IF(Beallitasok!$H$16="","",Beallitasok!$H$16) -> UTA K
A72: =DATE(PENZTAR_ADAT!$F$1,VLOOKUP(PENZTAR_ADAT!$H$1,Beallitasok!$K$2:$L$13,2,FALSE),PENZTAR_ADAT!A10) -> 2021-01-05 | B72: =Beallitasok!$E$14 -> MKB SZÉP KÁRTYA | C72: =Beallitasok!$B$3&PENZTAR_ADAT!B10 -> BBB-5 | D72: =PENZTAR_ADAT!M10 -> 300 | E72: =Beallitasok!$G$15 -> 361000 | F72: =Beallitasok!$H$15 -> 381000 | H72: =IF(Beallitasok!$G$16="","",Beallitasok!$G$16) -> UTA T | I72: =IF(Beallitasok!$H$16="","",Beallitasok!$H$16) -> UTA K
A73: =DATE(PENZTAR_ADAT!$F$1,VLOOKUP(PENZTAR_ADAT!$H$1,Beallitasok!$K$2:$L$13,2,FALSE),PENZTAR_ADAT!A11) -> 2021-01-06 | B73: =Beallitasok!$E$14 -> MKB SZÉP KÁRTYA | C73: =Beallitasok!$B$3&PENZTAR_ADAT!B11 -> BBB-6 | D73: =PENZTAR_ADAT!M11 -> 360 | E73: =Beallitasok!$G$15 -> 361000 | F73: =Beallitasok!$H$15 -> 381000 | H73: =IF(Beallitasok!$G$16="","",Beallitasok!$G$16) -> UTA T | I73: =IF(Beallitasok!$H$16="","",Beallitasok!$H$16) -> UTA K
A74: =DATE(PENZTAR_ADAT!$F$1,VLOOKUP(PENZTAR_ADAT!$H$1,Beallitasok!$K$2:$L$13,2,FALSE),PENZTAR_ADAT!A12) -> 2021-01-07 | B74: =Beallitasok!$E$14 -> MKB SZÉP KÁRTYA | C74: =Beallitasok!$B$3&PENZTAR_ADAT!B12 -> BBB-7 | D74: =PENZTAR_ADAT!M12 -> 420 | E74: =Beallitasok!$G$15 -> 361000 | F74: =Beallitasok!$H$15 -> 381000 | H74: =IF(Beallitasok!$G$16="","",Beallitasok!$G$16) -> UTA T | I74: =IF(Beallitasok!$H$16="","",Beallitasok!$H$16) -> UTA K
A75: =DATE(PENZTAR_ADAT!$F$1,VLOOKUP(PENZTAR_ADAT!$H$1,Beallitasok!$K$2:$L$13,2,FALSE),PENZTAR_ADAT!A13) -> 2021-01-08 | B75: =Beallitasok!$E$14 -> MKB SZÉP KÁRTYA | C75: =Beallitasok!$B$3&PENZTAR_ADAT!B13 -> BBB-8 | D75: =PENZTAR_ADAT!M13 -> 480 | E75: =Beallitasok!$G$15 -> 361000 | F75: =Beallitasok!$H$15 -> 381000 | H75: =IF(Beallitasok!$G$16="","",Beallitasok!$G$16) -> UTA T | I75: =IF(Beallitasok!$H$16="","",Beallitasok!$H$16) -> UTA K
A76: =DATE(PENZTAR_ADAT!$F$1,VLOOKUP(PENZTAR_ADAT!$H$1,Beallitasok!$K$2:$L$13,2,FALSE),PENZTAR_ADAT!A14) -> 2021-01-09 | B76: =Beallitasok!$E$14 -> MKB SZÉP KÁRTYA | C76: =Beallitasok!$B$3&PENZTAR_ADAT!B14 -> BBB-9 | D76: =PENZTAR_ADAT!M14 -> 540 | E76: =Beallitasok!$G$15 -> 361000 | F76: =Beallitasok!$H$15 -> 381000 | H76: =IF(Beallitasok!$G$16="","",Beallitasok!$G$16) -> UTA T | I76: =IF(Beallitasok!$H$16="","",Beallitasok!$H$16) -> UTA K
A77: =DATE(PENZTAR_ADAT!$F$1,VLOOKUP(PENZTAR_ADAT!$H$1,Beallitasok!$K$2:$L$13,2,FALSE),PENZTAR_ADAT!A15) -> 2021-01-10 | B77: =Beallitasok!$E$14 -> MKB SZÉP KÁRTYA | C77: =Beallitasok!$B$3&PENZTAR_ADAT!B15 -> BBB-10 | D77: =PENZTAR_ADAT!M15 -> 600 | E77: =Beallitasok!$G$15 -> 361000 | F77: =Beallitasok!$H$15 -> 381000 | H77: =IF(Beallitasok!$G$16="","",Beallitasok!$G$16) -> UTA T | I77: =IF(Beallitasok!$H$16="","",Beallitasok!$H$16) -> UTA K
A78: =DATE(PENZTAR_ADAT!$F$1,VLOOKUP(PENZTAR_ADAT!$H$1,Beallitasok!$K$2:$L$13,2,FALSE),PENZTAR_ADAT!A16) -> 2021-01-11 | B78: =Beallitasok!$E$14 -> MKB SZÉP KÁRTYA | C78: =Beallitasok!$B$3&PENZTAR_ADAT!B16 -> BBB-11 | D78: =PENZTAR_ADAT!M16 -> 660 | E78: =Beallitasok!$G$15 -> 361000 | F78: =Beallitasok!$H$15 -> 381000 | H78: =IF(Beallitasok!$G$16="","",Beallitasok!$G$16) -> UTA T | I78: =IF(Beallitasok!$H$16="","",Beallitasok!$H$16) -> UTA K
A79: =DATE(PENZTAR_ADAT!$F$1,VLOOKUP(PENZTAR_ADAT!$H$1,Beallitasok!$K$2:$L$13,2,FALSE),PENZTAR_ADAT!A17) -> 2021-01-12 | B79: =Beallitasok!$E$14 -> MKB SZÉP KÁRTYA | C79: =Beallitasok!$B$3&PENZTAR_ADAT!B17 -> BBB-12 | D79: =PENZTAR_ADAT!M17 -> 720 | E79: =Beallitasok!$G$15 -> 361000 | F79: =Beallitasok!$H$15 -> 381000 | H79: =IF(Beallitasok!$G$16="","",Beallitasok!$G$16) -> UTA T | I79: =IF(Beallitasok!$H$16="","",Beallitasok!$H$16) -> UTA K
A80: =DATE(PENZTAR_ADAT!$F$1,VLOOKUP(PENZTAR_ADAT!$H$1,Beallitasok!$K$2:$L$13,2,FALSE),PENZTAR_ADAT!A18) -> 2021-01-13 | B80: =Beallitasok!$E$14 -> MKB SZÉP KÁRTYA | C80: =Beallitasok!$B$3&PENZTAR_ADAT!B18 -> BBB-13 | D80: =PENZTAR_ADAT!M18 -> 780 | E80: =Beallitasok!$G$15 -> 361000 | F80: =Beallitasok!$H$15 -> 381000 | H80: =IF(Beallitasok!$G$16="","",Beallitasok!$G$16) -> UTA T | I80: =IF(Beallitasok!$H$16="","",Beallitasok!$H$16) -> UTA K
A81: =DATE(PENZTAR_ADAT!$F$1,VLOOKUP(PENZTAR_ADAT!$H$1,Beallitasok!$K$2:$L$13,2,FALSE),PENZTAR_ADAT!A19) -> 2021-01-14 | B81: =Beallitasok!$E$14 -> MKB SZÉP KÁRTYA | C81: =Beallitasok!$B$3&PENZTAR_ADAT!B19 -> BBB-14 | D81: =PENZTAR_ADAT!M19 -> 840 | E81: =Beallitasok!$G$15 -> 361000 | F81: =Beallitasok!$H$15 -> 381000 | H81: =IF(Beallitasok!$G$16="","",Beallitasok!$G$16) -> UTA T | I81: =IF(Beallitasok!$H$16="","",Beallitasok!$H$16) -> UTA K
A82: =DATE(PENZTAR_ADAT!$F$1,VLOOKUP(PENZTAR_ADAT!$H$1,Beallitasok!$K$2:$L$13,2,FALSE),PENZTAR_ADAT!A20) -> 2021-01-15 | B82: =Beallitasok!$E$14 -> MKB SZÉP KÁRTYA | C82: =Beallitasok!$B$3&PENZTAR_ADAT!B20 -> BBB-15 | D82: =PENZTAR_ADAT!M20 -> 900 | E82: =Beallitasok!$G$15 -> 361000 | F82: =Beallitasok!$H$15 -> 381000 | H82: =IF(Beallitasok!$G$16="","",Beallitasok!$G$16) -> UTA T | I82: =IF(Beallitasok!$H$16="","",Beallitasok!$H$16) -> UTA K
A83: =DATE(PENZTAR_ADAT!$F$1,VLOOKUP(PENZTAR_ADAT!$H$1,Beallitasok!$K$2:$L$13,2,FALSE),PENZTAR_ADAT!A21) -> 2021-01-16 | B83: =Beallitasok!$E$14 -> MKB SZÉP KÁRTYA | C83: =Beallitasok!$B$3&PENZTAR_ADAT!B21 -> BBB-16 | D83: =PENZTAR_ADAT!M21 -> 960 | E83: =Beallitasok!$G$15 -> 361000 | F83: =Beallitasok!$H$15 -> 381000 | H83: =IF(Beallitasok!$G$16="","",Beallitasok!$G$16) -> UTA T | I83: =IF(Beallitasok!$H$16="","",Beallitasok!$H$16) -> UTA K
A84: =DATE(PENZTAR_ADAT!$F$1,VLOOKUP(PENZTAR_ADAT!$H$1,Beallitasok!$K$2:$L$13,2,FALSE),PENZTAR_ADAT!A22) -> 2021-01-17 | B84: =Beallitasok!$E$14 -> MKB SZÉP KÁRTYA | C84: =Beallitasok!$B$3&PENZTAR_ADAT!B22 -> BBB-17 | D84: =PENZTAR_ADAT!M22 -> 1020 | E84: =Beallitasok!$G$15 -> 361000 | F84: =Beallitasok!$H$15 -> 381000 | H84: =IF(Beallitasok!$G$16="","",Beallitasok!$G$16) -> UTA T | I84: =IF(Beallitasok!$H$16="","",Beallitasok!$H$16) -> UTA K
A85: =DATE(PENZTAR_ADAT!$F$1,VLOOKUP(PENZTAR_ADAT!$H$1,Beallitasok!$K$2:$L$13,2,FALSE),PENZTAR_ADAT!A23) -> 2021-01-18 | B85: =Beallitasok!$E$14 -> MKB SZÉP KÁRTYA | C85: =Beallitasok!$B$3&PENZTAR_ADAT!B23 -> BBB-18 | D85: =PENZTAR_ADAT!M23 -> 1080 | E85: =Beallitasok!$G$15 -> 361000 | F85: =Beallitasok!$H$15 -> 381000 | H85: =IF(Beallitasok!$G$16="","",Beallitasok!$G$16) -> UTA T | I85: =IF(Beallitasok!$H$16="","",Beallitasok!$H$16) -> UTA K
A86: =DATE(PENZTAR_ADAT!$F$1,VLOOKUP(PENZTAR_ADAT!$H$1,Beallitasok!$K$2:$L$13,2,FALSE),PENZTAR_ADAT!A24) -> 2021-01-19 | B86: =Beallitasok!$E$14 -> MKB SZÉP KÁRTYA | C86: =Beallitasok!$B$3&PENZTAR_ADAT!B24 -> BBB-19 | D86: =PENZTAR_ADAT!M24 -> 1140 | E86: =Beallitasok!$G$15 -> 361000 | F86: =Beallitasok!$H$15 -> 381000 | H86: =IF(Beallitasok!$G$16="","",Beallitasok!$G$16) -> UTA T | I86: =IF(Beallitasok!$H$16="","",Beallitasok!$H$16) -> UTA K
A87: =DATE(PENZTAR_ADAT!$F$1,VLOOKUP(PENZTAR_ADAT!$H$1,Beallitasok!$K$2:$L$13,2,FALSE),PENZTAR_ADAT!A25) -> 2021-01-20 | B87: =Beallitasok!$E$14 -> MKB SZÉP KÁRTYA | C87: =Beallitasok!$B$3&PENZTAR_ADAT!B25 -> BBB-20 | D87: =PENZTAR_ADAT!M25 -> 1200 | E87: =Beallitasok!$G$15 -> 361000 | F87: =Beallitasok!$H$15 -> 381000 | H87: =IF(Beallitasok!$G$16="","",Beallitasok!$G$16) -> UTA T | I87: =IF(Beallitasok!$H$16="","",Beallitasok!$H$16) -> UTA K
A88: =DATE(PENZTAR_ADAT!$F$1,VLOOKUP(PENZTAR_ADAT!$H$1,Beallitasok!$K$2:$L$13,2,FALSE),PENZTAR_ADAT!A26) -> 2021-01-21 | B88: =Beallitasok!$E$14 -> MKB SZÉP KÁRTYA | C88: =Beallitasok!$B$3&PENZTAR_ADAT!B26 -> BBB-21 | D88: =PENZTAR_ADAT!M26 -> 1260 | E88: =Beallitasok!$G$15 -> 361000 | F88: =Beallitasok!$H$15 -> 381000 | H88: =IF(Beallitasok!$G$16="","",Beallitasok!$G$16) -> UTA T | I88: =IF(Beallitasok!$H$16="","",Beallitasok!$H$16) -> UTA K
A89: =DATE(PENZTAR_ADAT!$F$1,VLOOKUP(PENZTAR_ADAT!$H$1,Beallitasok!$K$2:$L$13,2,FALSE),PENZTAR_ADAT!A27) -> 2021-01-22 | B89: =Beallitasok!$E$14 -> MKB SZÉP KÁRTYA | C89: =Beallitasok!$B$3&PENZTAR_ADAT!B27 -> BBB-22 | D89: =PENZTAR_ADAT!M27 -> 1320 | E89: =Beallitasok!$G$15 -> 361000 | F89: =Beallitasok!$H$15 -> 381000 | H89: =IF(Beallitasok!$G$16="","",Beallitasok!$G$16) -> UTA T | I89: =IF(Beallitasok!$H$16="","",Beallitasok!$H$16) -> UTA K
A90: =DATE(PENZTAR_ADAT!$F$1,VLOOKUP(PENZTAR_ADAT!$H$1,Beallitasok!$K$2:$L$13,2,FALSE),PENZTAR_ADAT!A28) -> 2021-01-23 | B90: =Beallitasok!$E$14 -> MKB SZÉP KÁRTYA | C90: =Beallitasok!$B$3&PENZTAR_ADAT!B28 -> BBB-23 | D90: =PENZTAR_ADAT!M28 -> 1380 | E90: =Beallitasok!$G$15 -> 361000 | F90: =Beallitasok!$H$15 -> 381000 | H90: =IF(Beallitasok!$G$16="","",Beallitasok!$G$16) -> UTA T | I90: =IF(Beallitasok!$H$16="","",Beallitasok!$H$16) -> UTA K
A91: =DATE(PENZTAR_ADAT!$F$1,VLOOKUP(PENZTAR_ADAT!$H$1,Beallitasok!$K$2:$L$13,2,FALSE),PENZTAR_ADAT!A29) -> 2021-01-24 | B91: =Beallitasok!$E$14 -> MKB SZÉP KÁRTYA | C91: =Beallitasok!$B$3&PENZTAR_ADAT!B29 -> BBB-24 | D91: =PENZTAR_ADAT!M29 -> 1440 | E91: =Beallitasok!$G$15 -> 361000 | F91: =Beallitasok!$H$15 -> 381000 | H91: =IF(Beallitasok!$G$16="","",Beallitasok!$G$16) -> UTA T | I91: =IF(Beallitasok!$H$16="","",Beallitasok!$H$16) -> UTA K
A92: =DATE(PENZTAR_ADAT!$F$1,VLOOKUP(PENZTAR_ADAT!$H$1,Beallitasok!$K$2:$L$13,2,FALSE),PENZTAR_ADAT!A30) -> 2021-01-25 | B92: =Beallitasok!$E$14 -> MKB SZÉP KÁRTYA | C92: =Beallitasok!$B$3&PENZTAR_ADAT!B30 -> BBB-25 | D92: =PENZTAR_ADAT!M30 -> 1500 | E92: =Beallitasok!$G$15 -> 361000 | F92: =Beallitasok!$H$15 -> 381000 | H92: =IF(Beallitasok!$G$16="","",Beallitasok!$G$16) -> UTA T | I92: =IF(Beallitasok!$H$16="","",Beallitasok!$H$16) -> UTA K
A93: =DATE(PENZTAR_ADAT!$F$1,VLOOKUP(PENZTAR_ADAT!$H$1,Beallitasok!$K$2:$L$13,2,FALSE),PENZTAR_ADAT!A31) -> 2021-01-26 | B93: =Beallitasok!$E$14 -> MKB SZÉP KÁRTYA | C93: =Beallitasok!$B$3&PENZTAR_ADAT!B31 -> BBB-26 | D93: =PENZTAR_ADAT!M31 -> 1560 | E93: =Beallitasok!$G$15 -> 361000 | F93: =Beallitasok!$H$15 -> 381000 | H93: =IF(Beallitasok!$G$16="","",Beallitasok!$G$16) -> UTA T | I93: =IF(Beallitasok!$H$16="","",Beallitasok!$H$16) -> UTA K
A94: =DATE(PENZTAR_ADAT!$F$1,VLOOKUP(PENZTAR_ADAT!$H$1,Beallitasok!$K$2:$L$13,2,FALSE),PENZTAR_ADAT!A32) -> 2021-01-27 | B94: =Beallitasok!$E$14 -> MKB SZÉP KÁRTYA | C94: =Beallitasok!$B$3&PENZTAR_ADAT!B32 -> BBB-27 | D94: =PENZTAR_ADAT!M32 -> 1620 | E94: =Beallitasok!$G$15 -> 361000 | F94: =Beallitasok!$H$15 -> 381000 | H94: =IF(Beallitasok!$G$16="","",Beallitasok!$G$16) -> UTA T | I94: =IF(Beallitasok!$H$16="","",Beallitasok!$H$16) -> UTA K
A95: =DATE(PENZTAR_ADAT!$F$1,VLOOKUP(PENZTAR_ADAT!$H$1,Beallitasok!$K$2:$L$13,2,FALSE),PENZTAR_ADAT!A33) -> 2021-01-28 | B95: =Beallitasok!$E$14 -> MKB SZÉP KÁRTYA | C95: =Beallitasok!$B$3&PENZTAR_ADAT!B33 -> BBB-28 | D95: =PENZTAR_ADAT!M33 -> 1680 | E95: =Beallitasok!$G$15 -> 361000 | F95: =Beallitasok!$H$15 -> 381000 | H95: =IF(Beallitasok!$G$16="","",Beallitasok!$G$16) -> UTA T | I95: =IF(Beallitasok!$H$16="","",Beallitasok!$H$16) -> UTA K
A96: =DATE(PENZTAR_ADAT!$F$1,VLOOKUP(PENZTAR_ADAT!$H$1,Beallitasok!$K$2:$L$13,2,FALSE),PENZTAR_ADAT!A34) -> 2021-01-29 | B96: =Beallitasok!$E$14 -> MKB SZÉP KÁRTYA | C96: =Beallitasok!$B$3&PENZTAR_ADAT!B34 -> BBB-29 | D96: =PENZTAR_ADAT!M34 -> 1740 | E96: =Beallitasok!$G$15 -> 361000 | F96: =Beallitasok!$H$15 -> 381000 | H96: =IF(Beallitasok!$G$16="","",Beallitasok!$G$16) -> UTA T | I96: =IF(Beallitasok!$H$16="","",Beallitasok!$H$16) -> UTA K
A97: =DATE(PENZTAR_ADAT!$F$1,VLOOKUP(PENZTAR_ADAT!$H$1,Beallitasok!$K$2:$L$13,2,FALSE),PENZTAR_ADAT!A35) -> 2021-01-30 | B97: =Beallitasok!$E$14 -> MKB SZÉP KÁRTYA | C97: =Beallitasok!$B$3&PENZTAR_ADAT!B35 -> BBB-30 | D97: =PENZTAR_ADAT!M35 -> 1800 | E97: =Beallitasok!$G$15 -> 361000 | F97: =Beallitasok!$H$15 -> 381000 | H97: =IF(Beallitasok!$G$16="","",Beallitasok!$G$16) -> UTA T | I97: =IF(Beallitasok!$H$16="","",Beallitasok!$H$16) -> UTA K
A98: =DATE(PENZTAR_ADAT!$F$1,VLOOKUP(PENZTAR_ADAT!$H$1,Beallitasok!$K$2:$L$13,2,FALSE),PENZTAR_ADAT!A36) -> 2021-01-31 | B98: =Beallitasok!$E$14 -> MKB SZÉP KÁRTYA | C98: =Beallitasok!$B$3&PENZTAR_ADAT!B36 -> BBB-31 | D98: =PENZTAR_ADAT!M36 -> 1860 | E98: =Beallitasok!$G$15 -> 361000 | F98: =Beallitasok!$H$15 -> 381000 | H98: =IF(Beallitasok!$G$16="","",Beallitasok!$G$16) -> UTA T | I98: =IF(Beallitasok!$H$16="","",Beallitasok!$H$16) -> UTA K
A101: =DATE(PENZTAR_ADAT!$F$1,VLOOKUP(PENZTAR_ADAT!$H$1,Beallitasok!$K$2:$L$13,2,FALSE),PENZTAR_ADAT!A6) -> 2021-01-01 | B101: =Beallitasok!$E$18 -> Szép | C101: =Beallitasok!$B$3&PENZTAR_ADAT!B6 -> BBB-1 | D101: =PENZTAR_ADAT!N6 -> 65 | E101: =Beallitasok!$G$19 -> 361000 | F101: =Beallitasok!$H$19 -> 381000 | H101: =IF(Beallitasok!$G$20="","",Beallitasok!$G$20) -> SZÉP T | I101: =IF(Beallitasok!$H$20="","",Beallitasok!$H$20) -> SZÉP K
A102: =DATE(PENZTAR_ADAT!$F$1,VLOOKUP(PENZTAR_ADAT!$H$1,Beallitasok!$K$2:$L$13,2,FALSE),PENZTAR_ADAT!A7) -> 2021-01-02 | B102: =Beallitasok!$E$18 -> Szép | C102: =Beallitasok!$B$3&PENZTAR_ADAT!B7 -> BBB-2 | D102: =PENZTAR_ADAT!N7 -> 130 | E102: =Beallitasok!$G$19 -> 361000 | F102: =Beallitasok!$H$19 -> 381000 | H102: =IF(Beallitasok!$G$20="","",Beallitasok!$G$20) -> SZÉP T | I102: =IF(Beallitasok!$H$20="","",Beallitasok!$H$20) -> SZÉP K
A103: =DATE(PENZTAR_ADAT!$F$1,VLOOKUP(PENZTAR_ADAT!$H$1,Beallitasok!$K$2:$L$13,2,FALSE),PENZTAR_ADAT!A8) -> 2021-01-03 | B103: =Beallitasok!$E$18 -> Szép | C103: =Beallitasok!$B$3&PENZTAR_ADAT!B8 -> BBB-3 | D103: =PENZTAR_ADAT!N8 -> 195 | E103: =Beallitasok!$G$19 -> 361000 | F103: =Beallitasok!$H$19 -> 381000 | H103: =IF(Beallitasok!$G$20="","",Beallitasok!$G$20) -> SZÉP T | I103: =IF(Beallitasok!$H$20="","",Beallitasok!$H$20) -> SZÉP K
A104: =DATE(PENZTAR_ADAT!$F$1,VLOOKUP(PENZTAR_ADAT!$H$1,Beallitasok!$K$2:$L$13,2,FALSE),PENZTAR_ADAT!A9) -> 2021-01-04 | B104: =Beallitasok!$E$18 -> Szép | C104: =Beallitasok!$B$3&PENZTAR_ADAT!B9 -> BBB-4 | D104: =PENZTAR_ADAT!N9 -> 260 | E104: =Beallitasok!$G$19 -> 361000 | F104: =Beallitasok!$H$19 -> 381000 | H104: =IF(Beallitasok!$G$20="","",Beallitasok!$G$20) -> SZÉP T | I104: =IF(Beallitasok!$H$20="","",Beallitasok!$H$20) -> SZÉP K
A105: =DATE(PENZTAR_ADAT!$F$1,VLOOKUP(PENZTAR_ADAT!$H$1,Beallitasok!$K$2:$L$13,2,FALSE),PENZTAR_ADAT!A10) -> 2021-01-05 | B105: =Beallitasok!$E$18 -> Szép | C105: =Beallitasok!$B$3&PENZTAR_ADAT!B10 -> BBB-5 | D105: =PENZTAR_ADAT!N10 -> 325 | E105: =Beallitasok!$G$19 -> 361000 | F105: =Beallitasok!$H$19 -> 381000 | H105: =IF(Beallitasok!$G$20="","",Beallitasok!$G$20) -> SZÉP T | I105: =IF(Beallitasok!$H$20="","",Beallitasok!$H$20) -> SZÉP K
A106: =DATE(PENZTAR_ADAT!$F$1,VLOOKUP(PENZTAR_ADAT!$H$1,Beallitasok!$K$2:$L$13,2,FALSE),PENZTAR_ADAT!A11) -> 2021-01-06 | B106: =Beallitasok!$E$18 -> Szép | C106: =Beallitasok!$B$3&PENZTAR_ADAT!B11 -> BBB-6 | D106: =PENZTAR_ADAT!N11 -> 390 | E106: =Beallitasok!$G$19 -> 361000 | F106: =Beallitasok!$H$19 -> 381000 | H106: =IF(Beallitasok!$G$20="","",Beallitasok!$G$20) -> SZÉP T | I106: =IF(Beallitasok!$H$20="","",Beallitasok!$H$20) -> SZÉP K
A107: =DATE(PENZTAR_ADAT!$F$1,VLOOKUP(PENZTAR_ADAT!$H$1,Beallitasok!$K$2:$L$13,2,FALSE),PENZTAR_ADAT!A12) -> 2021-01-07 | B107: =Beallitasok!$E$18 -> Szép | C107: =Beallitasok!$B$3&PENZTAR_ADAT!B12 -> BBB-7 | D107: =PENZTAR_ADAT!N12 -> 455 | E107: =Beallitasok!$G$19 -> 361000 | F107: =Beallitasok!$H$19 -> 381000 | H107: =IF(Beallitasok!$G$20="","",Beallitasok!$G$20) -> SZÉP T | I107: =IF(Beallitasok!$H$20="","",Beallitasok!$H$20) -> SZÉP K
A108: =DATE(PENZTAR_ADAT!$F$1,VLOOKUP(PENZTAR_ADAT!$H$1,Beallitasok!$K$2:$L$13,2,FALSE),PENZTAR_ADAT!A13) -> 2021-01-08 | B108: =Beallitasok!$E$18 -> Szép | C108: =Beallitasok!$B$3&PENZTAR_ADAT!B13 -> BBB-8 | D108: =PENZTAR_ADAT!N13 -> 520 | E108: =Beallitasok!$G$19 -> 361000 | F108: =Beallitasok!$H$19 -> 381000 | H108: =IF(Beallitasok!$G$20="","",Beallitasok!$G$20) -> SZÉP T | I108: =IF(Beallitasok!$H$20="","",Beallitasok!$H$20) -> SZÉP K
A109: =DATE(PENZTAR_ADAT!$F$1,VLOOKUP(PENZTAR_ADAT!$H$1,Beallitasok!$K$2:$L$13,2,FALSE),PENZTAR_ADAT!A14) -> 2021-01-09 | B109: =Beallitasok!$E$18 -> Szép | C109: =Beallitasok!$B$3&PENZTAR_ADAT!B14 -> BBB-9 | D109: =PENZTAR_ADAT!N14 -> 585 | E109: =Beallitasok!$G$19 -> 361000 | F109: =Beallitasok!$H$19 -> 381000 | H109: =IF(Beallitasok!$G$20="","",Beallitasok!$G$20) -> SZÉP T | I109: =IF(Beallitasok!$H$20="","",Beallitasok!$H$20) -> SZÉP K
A110: =DATE(PENZTAR_ADAT!$F$1,VLOOKUP(PENZTAR_ADAT!$H$1,Beallitasok!$K$2:$L$13,2,FALSE),PENZTAR_ADAT!A15) -> 2021-01-10 | B110: =Beallitasok!$E$18 -> Szép | C110: =Beallitasok!$B$3&PENZTAR_ADAT!B15 -> BBB-10 | D110: =PENZTAR_ADAT!N15 -> 650 | E110: =Beallitasok!$G$19 -> 361000 | F110: =Beallitasok!$H$19 -> 381000 | H110: =IF(Beallitasok!$G$20="","",Beallitasok!$G$20) -> SZÉP T | I110: =IF(Beallitasok!$H$20="","",Beallitasok!$H$20) -> SZÉP K
A111: =DATE(PENZTAR_ADAT!$F$1,VLOOKUP(PENZTAR_ADAT!$H$1,Beallitasok!$K$2:$L$13,2,FALSE),PENZTAR_ADAT!A16) -> 2021-01-11 | B111: =Beallitasok!$E$18 -> Szép | C111: =Beallitasok!$B$3&PENZTAR_ADAT!B16 -> BBB-11 | D111: =PENZTAR_ADAT!N16 -> 715 | E111: =Beallitasok!$G$19 -> 361000 | F111: =Beallitasok!$H$19 -> 381000 | H111: =IF(Beallitasok!$G$20="","",Beallitasok!$G$20) -> SZÉP T | I111: =IF(Beallitasok!$H$20="","",Beallitasok!$H$20) -> SZÉP K
A112: =DATE(PENZTAR_ADAT!$F$1,VLOOKUP(PENZTAR_ADAT!$H$1,Beallitasok!$K$2:$L$13,2,FALSE),PENZTAR_ADAT!A17) -> 2021-01-12 | B112: =Beallitasok!$E$18 -> Szép | C112: =Beallitasok!$B$3&PENZTAR_ADAT!B17 -> BBB-12 | D112: =PENZTAR_ADAT!N17 -> 780 | E112: =Beallitasok!$G$19 -> 361000 | F112: =Beallitasok!$H$19 -> 381000 | H112: =IF(Beallitasok!$G$20="","",Beallitasok!$G$20) -> SZÉP T | I112: =IF(Beallitasok!$H$20="","",Beallitasok!$H$20) -> SZÉP K
A113: =DATE(PENZTAR_ADAT!$F$1,VLOOKUP(PENZTAR_ADAT!$H$1,Beallitasok!$K$2:$L$13,2,FALSE),PENZTAR_ADAT!A18) -> 2021-01-13 | B113: =Beallitasok!$E$18 -> Szép | C113: =Beallitasok!$B$3&PENZTAR_ADAT!B18 -> BBB-13 | D113: =PENZTAR_ADAT!N18 -> 845 | E113: =Beallitasok!$G$19 -> 361000 | F113: =Beallitasok!$H$19 -> 381000 | H113: =IF(Beallitasok!$G$20="","",Beallitasok!$G$20) -> SZÉP T | I113: =IF(Beallitasok!$H$20="","",Beallitasok!$H$20) -> SZÉP K
A114: =DATE(PENZTAR_ADAT!$F$1,VLOOKUP(PENZTAR_ADAT!$H$1,Beallitasok!$K$2:$L$13,2,FALSE),PENZTAR_ADAT!A19) -> 2021-01-14 | B114: =Beallitasok!$E$18 -> Szép | C114: =Beallitasok!$B$3&PENZTAR_ADAT!B19 -> BBB-14 | D114: =PENZTAR_ADAT!N19 -> 910 | E114: =Beallitasok!$G$19 -> 361000 | F114: =Beallitasok!$H$19 -> 381000 | H114: =IF(Beallitasok!$G$20="","",Beallitasok!$G$20) -> SZÉP T | I114: =IF(Beallitasok!$H$20="","",Beallitasok!$H$20) -> SZÉP K
A115: =DATE(PENZTAR_ADAT!$F$1,VLOOKUP(PENZTAR_ADAT!$H$1,Beallitasok!$K$2:$L$13,2,FALSE),PENZTAR_ADAT!A20) -> 2021-01-15 | B115: =Beallitasok!$E$18 -> Szép | C115: =Beallitasok!$B$3&PENZTAR_ADAT!B20 -> BBB-15 | D115: =PENZTAR_ADAT!N20 -> 975 | E115: =Beallitasok!$G$19 -> 361000 | F115: =Beallitasok!$H$19 -> 381000 | H115: =IF(Beallitasok!$G$20="","",Beallitasok!$G$20) -> SZÉP T | I115: =IF(Beallitasok!$H$20="","",Beallitasok!$H$20) -> SZÉP K
A116: =DATE(PENZTAR_ADAT!$F$1,VLOOKUP(PENZTAR_ADAT!$H$1,Beallitasok!$K$2:$L$13,2,FALSE),PENZTAR_ADAT!A21) -> 2021-01-16 | B116: =Beallitasok!$E$18 -> Szép | C116: =Beallitasok!$B$3&PENZTAR_ADAT!B21 -> BBB-16 | D116: =PENZTAR_ADAT!N21 -> 1040 | E116: =Beallitasok!$G$19 -> 361000 | F116: =Beallitasok!$H$19 -> 381000 | H116: =IF(Beallitasok!$G$20="","",Beallitasok!$G$20) -> SZÉP T | I116: =IF(Beallitasok!$H$20="","",Beallitasok!$H$20) -> SZÉP K
A117: =DATE(PENZTAR_ADAT!$F$1,VLOOKUP(PENZTAR_ADAT!$H$1,Beallitasok!$K$2:$L$13,2,FALSE),PENZTAR_ADAT!A22) -> 2021-01-17 | B117: =Beallitasok!$E$18 -> Szép | C117: =Beallitasok!$B$3&PENZTAR_ADAT!B22 -> BBB-17 | D117: =PENZTAR_ADAT!N22 -> 1105 | E117: =Beallitasok!$G$19 -> 361000 | F117: =Beallitasok!$H$19 -> 381000 | H117: =IF(Beallitasok!$G$20="","",Beallitasok!$G$20) -> SZÉP T | I117: =IF(Beallitasok!$H$20="","",Beallitasok!$H$20) -> SZÉP K
A118: =DATE(PENZTAR_ADAT!$F$1,VLOOKUP(PENZTAR_ADAT!$H$1,Beallitasok!$K$2:$L$13,2,FALSE),PENZTAR_ADAT!A23) -> 2021-01-18 | B118: =Beallitasok!$E$18 -> Szép | C118: =Beallitasok!$B$3&PENZTAR_ADAT!B23 -> BBB-18 | D118: =PENZTAR_ADAT!N23 -> 1170 | E118: =Beallitasok!$G$19 -> 361000 | F118: =Beallitasok!$H$19 -> 381000 | H118: =IF(Beallitasok!$G$20="","",Beallitasok!$G$20) -> SZÉP T | I118: =IF(Beallitasok!$H$20="","",Beallitasok!$H$20) -> SZÉP K
A119: =DATE(PENZTAR_ADAT!$F$1,VLOOKUP(PENZTAR_ADAT!$H$1,Beallitasok!$K$2:$L$13,2,FALSE),PENZTAR_ADAT!A24) -> 2021-01-19 | B119: =Beallitasok!$E$18 -> Szép | C119: =Beallitasok!$B$3&PENZTAR_ADAT!B24 -> BBB-19 | D119: =PENZTAR_ADAT!N24 -> 1235 | E119: =Beallitasok!$G$19 -> 361000 | F119: =Beallitasok!$H$19 -> 381000 | H119: =IF(Beallitasok!$G$20="","",Beallitasok!$G$20) -> SZÉP T | I119: =IF(Beallitasok!$H$20="","",Beallitasok!$H$20) -> SZÉP K
A120: =DATE(PENZTAR_ADAT!$F$1,VLOOKUP(PENZTAR_ADAT!$H$1,Beallitasok!$K$2:$L$13,2,FALSE),PENZTAR_ADAT!A25) -> 2021-01-20 | B120: =Beallitasok!$E$18 -> Szép | C120: =Beallitasok!$B$3&PENZTAR_ADAT!B25 -> BBB-20 | D120: =PENZTAR_ADAT!N25 -> 1300 | E120: =Beallitasok!$G$19 -> 361000 | F120: =Beallitasok!$H$19 -> 381000 | H120: =IF(Beallitasok!$G$20="","",Beallitasok!$G$20) -> SZÉP T | I120: =IF(Beallitasok!$H$20="","",Beallitasok!$H$20) -> SZÉP K
A121: =DATE(PENZTAR_ADAT!$F$1,VLOOKUP(PENZTAR_ADAT!$H$1,Beallitasok!$K$2:$L$13,2,FALSE),PENZTAR_ADAT!A26) -> 2021-01-21 | B121: =Beallitasok!$E$18 -> Szép | C121: =Beallitasok!$B$3&PENZTAR_ADAT!B26 -> BBB-21 | D121: =PENZTAR_ADAT!N26 -> 1365 | E121: =Beallitasok!$G$19 -> 361000 | F121: =Beallitasok!$H$19 -> 381000 | H121: =IF(Beallitasok!$G$20="","",Beallitasok!$G$20) -> SZÉP T | I121: =IF(Beallitasok!$H$20="","",Beallitasok!$H$20) -> SZÉP K
A122: =DATE(PENZTAR_ADAT!$F$1,VLOOKUP(PENZTAR_ADAT!$H$1,Beallitasok!$K$2:$L$13,2,FALSE),PENZTAR_ADAT!A27) -> 2021-01-22 | B122: =Beallitasok!$E$18 -> Szép | C122: =Beallitasok!$B$3&PENZTAR_ADAT!B27 -> BBB-22 | D122: =PENZTAR_ADAT!N27 -> 1430 | E122: =Beallitasok!$G$19 -> 361000 | F122: =Beallitasok!$H$19 -> 381000 | H122: =IF(Beallitasok!$G$20="","",Beallitasok!$G$20) -> SZÉP T | I122: =IF(Beallitasok!$H$20="","",Beallitasok!$H$20) -> SZÉP K
A123: =DATE(PENZTAR_ADAT!$F$1,VLOOKUP(PENZTAR_ADAT!$H$1,Beallitasok!$K$2:$L$13,2,FALSE),PENZTAR_ADAT!A28) -> 2021-01-23 | B123: =Beallitasok!$E$18 -> Szép | C123: =Beallitasok!$B$3&PENZTAR_ADAT!B28 -> BBB-23 | D123: =PENZTAR_ADAT!N28 -> 1495 | E123: =Beallitasok!$G$19 -> 361000 | F123: =Beallitasok!$H$19 -> 381000 | H123: =IF(Beallitasok!$G$20="","",Beallitasok!$G$20) -> SZÉP T | I123: =IF(Beallitasok!$H$20="","",Beallitasok!$H$20) -> SZÉP K
A124: =DATE(PENZTAR_ADAT!$F$1,VLOOKUP(PENZTAR_ADAT!$H$1,Beallitasok!$K$2:$L$13,2,FALSE),PENZTAR_ADAT!A29) -> 2021-01-24 | B124: =Beallitasok!$E$18 -> Szép | C124: =Beallitasok!$B$3&PENZTAR_ADAT!B29 -> BBB-24 | D124: =PENZTAR_ADAT!N29 -> 1560 | E124: =Beallitasok!$G$19 -> 361000 | F124: =Beallitasok!$H$19 -> 381000 | H124: =IF(Beallitasok!$G$20="","",Beallitasok!$G$20) -> SZÉP T | I124: =IF(Beallitasok!$H$20="","",Beallitasok!$H$20) -> SZÉP K
A127: =DATE(PENZTAR_ADAT!$F$1,VLOOKUP(PENZTAR_ADAT!$H$1,Beallitasok!$K$2:$L$13,2,FALSE),PENZTAR_ADAT!A6) -> 2021-01-01 | B127: =Beallitasok!$E$8 -> Kerekítés | C127: =Beallitasok!$B$3&PENZTAR_ADAT!B6 -> BBB-1 | D127: =PENZTAR_ADAT!O6 -> -2 | E127: =IF(D127<0,Beallitasok!$H$11,Beallitasok!$H$9) -> 381000 | F127: =IF(D127<0,Beallitasok!$G$11,Beallitasok!$G$9) -> 361000 | H127: =IF(D127<0,Beallitasok!$H$12,Beallitasok!$H$10) -> Kerek- K | I127: =IF(D127<0,Beallitasok!$G$12,Beallitasok!$G$10) -> Kerek- T
A128: =DATE(PENZTAR_ADAT!$F$1,VLOOKUP(PENZTAR_ADAT!$H$1,Beallitasok!$K$2:$L$13,2,FALSE),PENZTAR_ADAT!A7) -> 2021-01-02 | B128: =Beallitasok!$E$8 -> Kerekítés | C128: =Beallitasok!$B$3&PENZTAR_ADAT!B7 -> BBB-2 | D128: =PENZTAR_ADAT!O7 -> 0 | E128: =IF(D128<0,Beallitasok!$H$11,Beallitasok!$H$9) -> 381000 | F128: =IF(D128<0,Beallitasok!$G$11,Beallitasok!$G$9) -> 361000 | H128: =IF(D128<0,Beallitasok!$H$12,Beallitasok!$H$10) -> Kerek+ K | I128: =IF(D128<0,Beallitasok!$G$12,Beallitasok!$G$10) -> Kerek+ T
A129: =DATE(PENZTAR_ADAT!$F$1,VLOOKUP(PENZTAR_ADAT!$H$1,Beallitasok!$K$2:$L$13,2,FALSE),PENZTAR_ADAT!A8) -> 2021-01-03 | B129: =Beallitasok!$E$8 -> Kerekítés | C129: =Beallitasok!$B$3&PENZTAR_ADAT!B8 -> BBB-3 | D129: =PENZTAR_ADAT!O8 -> 0 | E129: =IF(D129<0,Beallitasok!$H$11,Beallitasok!$H$9) -> 381000 | F129: =IF(D129<0,Beallitasok!$G$11,Beallitasok!$G$9) -> 361000 | H129: =IF(D129<0,Beallitasok!$H$12,Beallitasok!$H$10) -> Kerek+ K | I129: =IF(D129<0,Beallitasok!$G$12,Beallitasok!$G$10) -> Kerek+ T
A130: =DATE(PENZTAR_ADAT!$F$1,VLOOKUP(PENZTAR_ADAT!$H$1,Beallitasok!$K$2:$L$13,2,FALSE),PENZTAR_ADAT!A9) -> 2021-01-04 | B130: =Beallitasok!$E$8 -> Kerekítés | C130: =Beallitasok!$B$3&PENZTAR_ADAT!B9 -> BBB-4 | D130: =PENZTAR_ADAT!O9 -> 0 | E130: =IF(D130<0,Beallitasok!$H$11,Beallitasok!$H$9) -> 381000 | F130: =IF(D130<0,Beallitasok!$G$11,Beallitasok!$G$9) -> 361000 | H130: =IF(D130<0,Beallitasok!$H$12,Beallitasok!$H$10) -> Kerek+ K | I130: =IF(D130<0,Beallitasok!$G$12,Beallitasok!$G$10) -> Kerek+ T
A131: =DATE(PENZTAR_ADAT!$F$1,VLOOKUP(PENZTAR_ADAT!$H$1,Beallitasok!$K$2:$L$13,2,FALSE),PENZTAR_ADAT!A10) -> 2021-01-05 | B131: =Beallitasok!$E$8 -> Kerekítés | C131: =Beallitasok!$B$3&PENZTAR_ADAT!B10 -> BBB-5 | D131: =PENZTAR_ADAT!O10 -> 0 | E131: =IF(D131<0,Beallitasok!$H$11,Beallitasok!$H$9) -> 381000 | F131: =IF(D131<0,Beallitasok!$G$11,Beallitasok!$G$9) -> 361000 | H131: =IF(D131<0,Beallitasok!$H$12,Beallitasok!$H$10) -> Kerek+ K | I131: =IF(D131<0,Beallitasok!$G$12,Beallitasok!$G$10) -> Kerek+ T
A132: =DATE(PENZTAR_ADAT!$F$1,VLOOKUP(PENZTAR_ADAT!$H$1,Beallitasok!$K$2:$L$13,2,FALSE),PENZTAR_ADAT!A11) -> 2021-01-06 | B132: =Beallitasok!$E$8 -> Kerekítés | C132: =Beallitasok!$B$3&PENZTAR_ADAT!B11 -> BBB-6 | D132: =PENZTAR_ADAT!O11 -> 0 | E132: =IF(D132<0,Beallitasok!$H$11,Beallitasok!$H$9) -> 381000 | F132: =IF(D132<0,Beallitasok!$G$11,Beallitasok!$G$9) -> 361000 | H132: =IF(D132<0,Beallitasok!$H$12,Beallitasok!$H$10) -> Kerek+ K | I132: =IF(D132<0,Beallitasok!$G$12,Beallitasok!$G$10) -> Kerek+ T
A133: =DATE(PENZTAR_ADAT!$F$1,VLOOKUP(PENZTAR_ADAT!$H$1,Beallitasok!$K$2:$L$13,2,FALSE),PENZTAR_ADAT!A12) -> 2021-01-07 | B133: =Beallitasok!$E$8 -> Kerekítés | C133: =Beallitasok!$B$3&PENZTAR_ADAT!B12 -> BBB-7 | D133: =PENZTAR_ADAT!O12 -> 0 | E133: =IF(D133<0,Beallitasok!$H$11,Beallitasok!$H$9) -> 381000 | F133: =IF(D133<0,Beallitasok!$G$11,Beallitasok!$G$9) -> 361000 | H133: =IF(D133<0,Beallitasok!$H$12,Beallitasok!$H$10) -> Kerek+ K | I133: =IF(D133<0,Beallitasok!$G$12,Beallitasok!$G$10) -> Kerek+ T
A134: =DATE(PENZTAR_ADAT!$F$1,VLOOKUP(PENZTAR_ADAT!$H$1,Beallitasok!$K$2:$L$13,2,FALSE),PENZTAR_ADAT!A13) -> 2021-01-08 | B134: =Beallitasok!$E$8 -> Kerekítés | C134: =Beallitasok!$B$3&PENZTAR_ADAT!B13 -> BBB-8 | D134: =PENZTAR_ADAT!O13 -> 0 | E134: =IF(D134<0,Beallitasok!$H$11,Beallitasok!$H$9) -> 381000 | F134: =IF(D134<0,Beallitasok!$G$11,Beallitasok!$G$9) -> 361000 | H134: =IF(D134<0,Beallitasok!$H$12,Beallitasok!$H$10) -> Kerek+ K | I134: =IF(D134<0,Beallitasok!$G$12,Beallitasok!$G$10) -> Kerek+ T
A135: =DATE(PENZTAR_ADAT!$F$1,VLOOKUP(PENZTAR_ADAT!$H$1,Beallitasok!$K$2:$L$13,2,FALSE),PENZTAR_ADAT!A14) -> 2021-01-09 | B135: =Beallitasok!$E$8 -> Kerekítés | C135: =Beallitasok!$B$3&PENZTAR_ADAT!B14 -> BBB-9 | D135: =PENZTAR_ADAT!O14 -> 0 | E135: =IF(D135<0,Beallitasok!$H$11,Beallitasok!$H$9) -> 381000 | F135: =IF(D135<0,Beallitasok!$G$11,Beallitasok!$G$9) -> 361000 | H135: =IF(D135<0,Beallitasok!$H$12,Beallitasok!$H$10) -> Kerek+ K | I135: =IF(D135<0,Beallitasok!$G$12,Beallitasok!$G$10) -> Kerek+ T
A136: =DATE(PENZTAR_ADAT!$F$1,VLOOKUP(PENZTAR_ADAT!$H$1,Beallitasok!$K$2:$L$13,2,FALSE),PENZTAR_ADAT!A15) -> 2021-01-10 | B136: =Beallitasok!$E$8 -> Kerekítés | C136: =Beallitasok!$B$3&PENZTAR_ADAT!B15 -> BBB-10 | D136: =PENZTAR_ADAT!O15 -> 0 | E136: =IF(D136<0,Beallitasok!$H$11,Beallitasok!$H$9) -> 381000 | F136: =IF(D136<0,Beallitasok!$G$11,Beallitasok!$G$9) -> 361000 | H136: =IF(D136<0,Beallitasok!$H$12,Beallitasok!$H$10) -> Kerek+ K | I136: =IF(D136<0,Beallitasok!$G$12,Beallitasok!$G$10) -> Kerek+ T
A137: =DATE(PENZTAR_ADAT!$F$1,VLOOKUP(PENZTAR_ADAT!$H$1,Beallitasok!$K$2:$L$13,2,FALSE),PENZTAR_ADAT!A16) -> 2021-01-11 | B137: =Beallitasok!$E$8 -> Kerekítés | C137: =Beallitasok!$B$3&PENZTAR_ADAT!B16 -> BBB-11 | D137: =PENZTAR_ADAT!O16 -> 0 | E137: =IF(D137<0,Beallitasok!$H$11,Beallitasok!$H$9) -> 381000 | F137: =IF(D137<0,Beallitasok!$G$11,Beallitasok!$G$9) -> 361000 | H137: =IF(D137<0,Beallitasok!$H$12,Beallitasok!$H$10) -> Kerek+ K | I137: =IF(D137<0,Beallitasok!$G$12,Beallitasok!$G$10) -> Kerek+ T
A138: =DATE(PENZTAR_ADAT!$F$1,VLOOKUP(PENZTAR_ADAT!$H$1,Beallitasok!$K$2:$L$13,2,FALSE),PENZTAR_ADAT!A17) -> 2021-01-12 | B138: =Beallitasok!$E$8 -> Kerekítés | C138: =Beallitasok!$B$3&PENZTAR_ADAT!B17 -> BBB-12 | D138: =PENZTAR_ADAT!O17 -> 0 | E138: =IF(D138<0,Beallitasok!$H$11,Beallitasok!$H$9) -> 381000 | F138: =IF(D138<0,Beallitasok!$G$11,Beallitasok!$G$9) -> 361000 | H138: =IF(D138<0,Beallitasok!$H$12,Beallitasok!$H$10) -> Kerek+ K | I138: =IF(D138<0,Beallitasok!$G$12,Beallitasok!$G$10) -> Kerek+ T
A139: =DATE(PENZTAR_ADAT!$F$1,VLOOKUP(PENZTAR_ADAT!$H$1,Beallitasok!$K$2:$L$13,2,FALSE),PENZTAR_ADAT!A18) -> 2021-01-13 | B139: =Beallitasok!$E$8 -> Kerekítés | C139: =Beallitasok!$B$3&PENZTAR_ADAT!B18 -> BBB-13 | D139: =PENZTAR_ADAT!O18 -> 0 | E139: =IF(D139<0,Beallitasok!$H$11,Beallitasok!$H$9) -> 381000 | F139: =IF(D139<0,Beallitasok!$G$11,Beallitasok!$G$9) -> 361000 | H139: =IF(D139<0,Beallitasok!$H$12,Beallitasok!$H$10) -> Kerek+ K | I139: =IF(D139<0,Beallitasok!$G$12,Beallitasok!$G$10) -> Kerek+ T
A140: =DATE(PENZTAR_ADAT!$F$1,VLOOKUP(PENZTAR_ADAT!$H$1,Beallitasok!$K$2:$L$13,2,FALSE),PENZTAR_ADAT!A19) -> 2021-01-14 | B140: =Beallitasok!$E$8 -> Kerekítés | C140: =Beallitasok!$B$3&PENZTAR_ADAT!B19 -> BBB-14 | D140: =PENZTAR_ADAT!O19 -> 0 | E140: =IF(D140<0,Beallitasok!$H$11,Beallitasok!$H$9) -> 381000 | F140: =IF(D140<0,Beallitasok!$G$11,Beallitasok!$G$9) -> 361000 | H140: =IF(D140<0,Beallitasok!$H$12,Beallitasok!$H$10) -> Kerek+ K | I140: =IF(D140<0,Beallitasok!$G$12,Beallitasok!$G$10) -> Kerek+ T
A141: =DATE(PENZTAR_ADAT!$F$1,VLOOKUP(PENZTAR_ADAT!$H$1,Beallitasok!$K$2:$L$13,2,FALSE),PENZTAR_ADAT!A20) -> 2021-01-15 | B141: =Beallitasok!$E$8 -> Kerekítés | C141: =Beallitasok!$B$3&PENZTAR_ADAT!B20 -> BBB-15 | D141: =PENZTAR_ADAT!O20 -> 0 | E141: =IF(D141<0,Beallitasok!$H$11,Beallitasok!$H$9) -> 381000 | F141: =IF(D141<0,Beallitasok!$G$11,Beallitasok!$G$9) -> 361000 | H141: =IF(D141<0,Beallitasok!$H$12,Beallitasok!$H$10) -> Kerek+ K | I141: =IF(D141<0,Beallitasok!$G$12,Beallitasok!$G$10) -> Kerek+ T
A142: =DATE(PENZTAR_ADAT!$F$1,VLOOKUP(PENZTAR_ADAT!$H$1,Beallitasok!$K$2:$L$13,2,FALSE),PENZTAR_ADAT!A21) -> 2021-01-16 | B142: =Beallitasok!$E$8 -> Kerekítés | C142: =Beallitasok!$B$3&PENZTAR_ADAT!B21 -> BBB-16 | D142: =PENZTAR_ADAT!O21 -> 0 | E142: =IF(D142<0,Beallitasok!$H$11,Beallitasok!$H$9) -> 381000 | F142: =IF(D142<0,Beallitasok!$G$11,Beallitasok!$G$9) -> 361000 | H142: =IF(D142<0,Beallitasok!$H$12,Beallitasok!$H$10) -> Kerek+ K | I142: =IF(D142<0,Beallitasok!$G$12,Beallitasok!$G$10) -> Kerek+ T
A143: =DATE(PENZTAR_ADAT!$F$1,VLOOKUP(PENZTAR_ADAT!$H$1,Beallitasok!$K$2:$L$13,2,FALSE),PENZTAR_ADAT!A22) -> 2021-01-17 | B143: =Beallitasok!$E$8 -> Kerekítés | C143: =Beallitasok!$B$3&PENZTAR_ADAT!B22 -> BBB-17 | D143: =PENZTAR_ADAT!O22 -> 0 | E143: =IF(D143<0,Beallitasok!$H$11,Beallitasok!$H$9) -> 381000 | F143: =IF(D143<0,Beallitasok!$G$11,Beallitasok!$G$9) -> 361000 | H143: =IF(D143<0,Beallitasok!$H$12,Beallitasok!$H$10) -> Kerek+ K | I143: =IF(D143<0,Beallitasok!$G$12,Beallitasok!$G$10) -> Kerek+ T
A144: =DATE(PENZTAR_ADAT!$F$1,VLOOKUP(PENZTAR_ADAT!$H$1,Beallitasok!$K$2:$L$13,2,FALSE),PENZTAR_ADAT!A23) -> 2021-01-18 | B144: =Beallitasok!$E$8 -> Kerekítés | C144: =Beallitasok!$B$3&PENZTAR_ADAT!B23 -> BBB-18 | D144: =PENZTAR_ADAT!O23 -> 0 | E144: =IF(D144<0,Beallitasok!$H$11,Beallitasok!$H$9) -> 381000 | F144: =IF(D144<0,Beallitasok!$G$11,Beallitasok!$G$9) -> 361000 | H144: =IF(D144<0,Beallitasok!$H$12,Beallitasok!$H$10) -> Kerek+ K | I144: =IF(D144<0,Beallitasok!$G$12,Beallitasok!$G$10) -> Kerek+ T
A145: =DATE(PENZTAR_ADAT!$F$1,VLOOKUP(PENZTAR_ADAT!$H$1,Beallitasok!$K$2:$L$13,2,FALSE),PENZTAR_ADAT!A24) -> 2021-01-19 | B145: =Beallitasok!$E$8 -> Kerekítés | C145: =Beallitasok!$B$3&PENZTAR_ADAT!B24 -> BBB-19 | D145: =PENZTAR_ADAT!O24 -> 0 | E145: =IF(D145<0,Beallitasok!$H$11,Beallitasok!$H$9) -> 381000 | F145: =IF(D145<0,Beallitasok!$G$11,Beallitasok!$G$9) -> 361000 | H145: =IF(D145<0,Beallitasok!$H$12,Beallitasok!$H$10) -> Kerek+ K | I145: =IF(D145<0,Beallitasok!$G$12,Beallitasok!$G$10) -> Kerek+ T
A146: =DATE(PENZTAR_ADAT!$F$1,VLOOKUP(PENZTAR_ADAT!$H$1,Beallitasok!$K$2:$L$13,2,FALSE),PENZTAR_ADAT!A25) -> 2021-01-20 | B146: =Beallitasok!$E$8 -> Kerekítés | C146: =Beallitasok!$B$3&PENZTAR_ADAT!B25 -> BBB-20 | D146: =PENZTAR_ADAT!O25 -> 0 | E146: =IF(D146<0,Beallitasok!$H$11,Beallitasok!$H$9) -> 381000 | F146: =IF(D146<0,Beallitasok!$G$11,Beallitasok!$G$9) -> 361000 | H146: =IF(D146<0,Beallitasok!$H$12,Beallitasok!$H$10) -> Kerek+ K | I146: =IF(D146<0,Beallitasok!$G$12,Beallitasok!$G$10) -> Kerek+ T
A147: =DATE(PENZTAR_ADAT!$F$1,VLOOKUP(PENZTAR_ADAT!$H$1,Beallitasok!$K$2:$L$13,2,FALSE),PENZTAR_ADAT!A26) -> 2021-01-21 | B147: =Beallitasok!$E$8 -> Kerekítés | C147: =Beallitasok!$B$3&PENZTAR_ADAT!B26 -> BBB-21 | D147: =PENZTAR_ADAT!O26 -> 0 | E147: =IF(D147<0,Beallitasok!$H$11,Beallitasok!$H$9) -> 381000 | F147: =IF(D147<0,Beallitasok!$G$11,Beallitasok!$G$9) -> 361000 | H147: =IF(D147<0,Beallitasok!$H$12,Beallitasok!$H$10) -> Kerek+ K | I147: =IF(D147<0,Beallitasok!$G$12,Beallitasok!$G$10) -> Kerek+ T
A148: =DATE(PENZTAR_ADAT!$F$1,VLOOKUP(PENZTAR_ADAT!$H$1,Beallitasok!$K$2:$L$13,2,FALSE),PENZTAR_ADAT!A27) -> 2021-01-22 | B148: =Beallitasok!$E$8 -> Kerekítés | C148: =Beallitasok!$B$3&PENZTAR_ADAT!B27 -> BBB-22 | D148: =PENZTAR_ADAT!O27 -> 0 | E148: =IF(D148<0,Beallitasok!$H$11,Beallitasok!$H$9) -> 381000 | F148: =IF(D148<0,Beallitasok!$G$11,Beallitasok!$G$9) -> 361000 | H148: =IF(D148<0,Beallitasok!$H$12,Beallitasok!$H$10) -> Kerek+ K | I148: =IF(D148<0,Beallitasok!$G$12,Beallitasok!$G$10) -> Kerek+ T
A149: =DATE(PENZTAR_ADAT!$F$1,VLOOKUP(PENZTAR_ADAT!$H$1,Beallitasok!$K$2:$L$13,2,FALSE),PENZTAR_ADAT!A28) -> 2021-01-23 | B149: =Beallitasok!$E$8 -> Kerekítés | C149: =Beallitasok!$B$3&PENZTAR_ADAT!B28 -> BBB-23 | D149: =PENZTAR_ADAT!O28 -> 0 | E149: =IF(D149<0,Beallitasok!$H$11,Beallitasok!$H$9) -> 381000 | F149: =IF(D149<0,Beallitasok!$G$11,Beallitasok!$G$9) -> 361000 | H149: =IF(D149<0,Beallitasok!$H$12,Beallitasok!$H$10) -> Kerek+ K | I149: =IF(D149<0,Beallitasok!$G$12,Beallitasok!$G$10) -> Kerek+ T
A150: =DATE(PENZTAR_ADAT!$F$1,VLOOKUP(PENZTAR_ADAT!$H$1,Beallitasok!$K$2:$L$13,2,FALSE),PENZTAR_ADAT!A29) -> 2021-01-24 | B150: =Beallitasok!$E$8 -> Kerekítés | C150: =Beallitasok!$B$3&PENZTAR_ADAT!B29 -> BBB-24 | D150: =PENZTAR_ADAT!O29 -> 0 | E150: =IF(D150<0,Beallitasok!$H$11,Beallitasok!$H$9) -> 381000 | F150: =IF(D150<0,Beallitasok!$G$11,Beallitasok!$G$9) -> 361000 | H150: =IF(D150<0,Beallitasok!$H$12,Beallitasok!$H$10) -> Kerek+ K | I150: =IF(D150<0,Beallitasok!$G$12,Beallitasok!$G$10) -> Kerek+ T
A151: =DATE(PENZTAR_ADAT!$F$1,VLOOKUP(PENZTAR_ADAT!$H$1,Beallitasok!$K$2:$L$13,2,FALSE),PENZTAR_ADAT!A30) -> 2021-01-25 | B151: =Beallitasok!$E$8 -> Kerekítés | C151: =Beallitasok!$B$3&PENZTAR_ADAT!B30 -> BBB-25 | D151: =PENZTAR_ADAT!O30 -> 0 | E151: =IF(D151<0,Beallitasok!$H$11,Beallitasok!$H$9) -> 381000 | F151: =IF(D151<0,Beallitasok!$G$11,Beallitasok!$G$9) -> 361000 | H151: =IF(D151<0,Beallitasok!$H$12,Beallitasok!$H$10) -> Kerek+ K | I151: =IF(D151<0,Beallitasok!$G$12,Beallitasok!$G$10) -> Kerek+ T
A152: =DATE(PENZTAR_ADAT!$F$1,VLOOKUP(PENZTAR_ADAT!$H$1,Beallitasok!$K$2:$L$13,2,FALSE),PENZTAR_ADAT!A31) -> 2021-01-26 | B152: =Beallitasok!$E$8 -> Kerekítés | C152: =Beallitasok!$B$3&PENZTAR_ADAT!B31 -> BBB-26 | D152: =PENZTAR_ADAT!O31 -> 0 | E152: =IF(D152<0,Beallitasok!$H$11,Beallitasok!$H$9) -> 381000 | F152: =IF(D152<0,Beallitasok!$G$11,Beallitasok!$G$9) -> 361000 | H152: =IF(D152<0,Beallitasok!$H$12,Beallitasok!$H$10) -> Kerek+ K | I152: =IF(D152<0,Beallitasok!$G$12,Beallitasok!$G$10) -> Kerek+ T
A153: =DATE(PENZTAR_ADAT!$F$1,VLOOKUP(PENZTAR_ADAT!$H$1,Beallitasok!$K$2:$L$13,2,FALSE),PENZTAR_ADAT!A32) -> 2021-01-27 | B153: =Beallitasok!$E$8 -> Kerekítés | C153: =Beallitasok!$B$3&PENZTAR_ADAT!B32 -> BBB-27 | D153: =PENZTAR_ADAT!O32 -> 0 | E153: =IF(D153<0,Beallitasok!$H$11,Beallitasok!$H$9) -> 381000 | F153: =IF(D153<0,Beallitasok!$G$11,Beallitasok!$G$9) -> 361000 | H153: =IF(D153<0,Beallitasok!$H$12,Beallitasok!$H$10) -> Kerek+ K | I153: =IF(D153<0,Beallitasok!$G$12,Beallitasok!$G$10) -> Kerek+ T
A154: =DATE(PENZTAR_ADAT!$F$1,VLOOKUP(PENZTAR_ADAT!$H$1,Beallitasok!$K$2:$L$13,2,FALSE),PENZTAR_ADAT!A33) -> 2021-01-28 | B154: =Beallitasok!$E$8 -> Kerekítés | C154: =Beallitasok!$B$3&PENZTAR_ADAT!B33 -> BBB-28 | D154: =PENZTAR_ADAT!O33 -> 0 | E154: =IF(D154<0,Beallitasok!$H$11,Beallitasok!$H$9) -> 381000 | F154: =IF(D154<0,Beallitasok!$G$11,Beallitasok!$G$9) -> 361000 | H154: =IF(D154<0,Beallitasok!$H$12,Beallitasok!$H$10) -> Kerek+ K | I154: =IF(D154<0,Beallitasok!$G$12,Beallitasok!$G$10) -> Kerek+ T
A155: =DATE(PENZTAR_ADAT!$F$1,VLOOKUP(PENZTAR_ADAT!$H$1,Beallitasok!$K$2:$L$13,2,FALSE),PENZTAR_ADAT!A34) -> 2021-01-29 | B155: =Beallitasok!$E$8 -> Kerekítés | C155: =Beallitasok!$B$3&PENZTAR_ADAT!B34 -> BBB-29 | D155: =PENZTAR_ADAT!O34 -> 0 | E155: =IF(D155<0,Beallitasok!$H$11,Beallitasok!$H$9) -> 381000 | F155: =IF(D155<0,Beallitasok!$G$11,Beallitasok!$G$9) -> 361000 | H155: =IF(D155<0,Beallitasok!$H$12,Beallitasok!$H$10) -> Kerek+ K | I155: =IF(D155<0,Beallitasok!$G$12,Beallitasok!$G$10) -> Kerek+ T
A156: =DATE(PENZTAR_ADAT!$F$1,VLOOKUP(PENZTAR_ADAT!$H$1,Beallitasok!$K$2:$L$13,2,FALSE),PENZTAR_ADAT!A35) -> 2021-01-30 | B156: =Beallitasok!$E$8 -> Kerekítés | C156: =Beallitasok!$B$3&PENZTAR_ADAT!B35 -> BBB-30 | D156: =PENZTAR_ADAT!O35 -> 0 | E156: =IF(D156<0,Beallitasok!$H$11,Beallitasok!$H$9) -> 381000 | F156: =IF(D156<0,Beallitasok!$G$11,Beallitasok!$G$9) -> 361000 | H156: =IF(D156<0,Beallitasok!$H$12,Beallitasok!$H$10) -> Kerek+ K | I156: =IF(D156<0,Beallitasok!$G$12,Beallitasok!$G$10) -> Kerek+ T
A157: =DATE(PENZTAR_ADAT!$F$1,VLOOKUP(PENZTAR_ADAT!$H$1,Beallitasok!$K$2:$L$13,2,FALSE),PENZTAR_ADAT!A36) -> 2021-01-31 | B157: =Beallitasok!$E$8 -> Kerekítés | C157: =Beallitasok!$B$3&PENZTAR_ADAT!B36 -> BBB-31 | D157: =PENZTAR_ADAT!O36 -> 0 | E157: =IF(D157<0,Beallitasok!$H$11,Beallitasok!$H$9) -> 381000 | F157: =IF(D157<0,Beallitasok!$G$11,Beallitasok!$G$9) -> 361000 | H157: =IF(D157<0,Beallitasok!$H$12,Beallitasok!$H$10) -> Kerek+ K | I157: =IF(D157<0,Beallitasok!$G$12,Beallitasok!$G$10) -> Kerek+ T
A158: =DATE(PENZTAR_ADAT!$F$1,VLOOKUP(PENZTAR_ADAT!$H$1,Beallitasok!$K$2:$L$13,2,FALSE),PENZTAR_ADAT!A68) -> 2020-12-31 | B158: =Beallitasok!$E$8 -> Kerekítés | C158: =Beallitasok!$B$3&PENZTAR_ADAT!B68 -> BBB- | D158: =PENZTAR_ADAT!O68 -> 0 | E158: =IF(D158<0,Beallitasok!$H$11,Beallitasok!$H$9) -> 381000 | F158: =IF(D158<0,Beallitasok!$G$11,Beallitasok!$G$9) -> 361000 | H158: =IF(D158<0,Beallitasok!$H$12,Beallitasok!$H$10) -> Kerek+ K | I158: =IF(D158<0,Beallitasok!$G$12,Beallitasok!$G$10) -> Kerek+ T
A161: =DATE(PENZTAR_ADAT!$F$1,VLOOKUP(PENZTAR_ADAT!$H$1,Beallitasok!$K$2:$L$13,2,FALSE),PENZTAR_ADAT!A37) -> 2021-01-01 | B161: =Beallitasok!$A$14 -> BANKKÁRTYA | C161: =Beallitasok!$B$3&PENZTAR_ADAT!B37 -> BBB-1 | D161: =PENZTAR_ADAT!K37 -> 50 | E161: =Beallitasok!$B$15 -> 361000 | F161: =Beallitasok!$C$15 -> 381000 | H161: =IF(Beallitasok!$B$16="","",Beallitasok!$B$16) -> BK T | I161: =IF(Beallitasok!$C$16="","",Beallitasok!$C$16) -> BK K
A162: =DATE(PENZTAR_ADAT!$F$1,VLOOKUP(PENZTAR_ADAT!$H$1,Beallitasok!$K$2:$L$13,2,FALSE),PENZTAR_ADAT!A38) -> 2021-01-02 | B162: =Beallitasok!$A$14 -> BANKKÁRTYA | C162: =Beallitasok!$B$3&PENZTAR_ADAT!B38 -> BBB-2 | D162: =PENZTAR_ADAT!K38 -> 100 | E162: =Beallitasok!$B$15 -> 361000 | F162: =Beallitasok!$C$15 -> 381000 | H162: =IF(Beallitasok!$B$16="","",Beallitasok!$B$16) -> BK T | I162: =IF(Beallitasok!$C$16="","",Beallitasok!$C$16) -> BK K
A163: =DATE(PENZTAR_ADAT!$F$1,VLOOKUP(PENZTAR_ADAT!$H$1,Beallitasok!$K$2:$L$13,2,FALSE),PENZTAR_ADAT!A39) -> 2021-01-03 | B163: =Beallitasok!$A$14 -> BANKKÁRTYA | C163: =Beallitasok!$B$3&PENZTAR_ADAT!B39 -> BBB-3 | D163: =PENZTAR_ADAT!K39 -> 150 | E163: =Beallitasok!$B$15 -> 361000 | F163: =Beallitasok!$C$15 -> 381000 | H163: =IF(Beallitasok!$B$16="","",Beallitasok!$B$16) -> BK T | I163: =IF(Beallitasok!$C$16="","",Beallitasok!$C$16) -> BK K
A164: =DATE(PENZTAR_ADAT!$F$1,VLOOKUP(PENZTAR_ADAT!$H$1,Beallitasok!$K$2:$L$13,2,FALSE),PENZTAR_ADAT!A40) -> 2021-01-04 | B164: =Beallitasok!$A$14 -> BANKKÁRTYA | C164: =Beallitasok!$B$3&PENZTAR_ADAT!B40 -> BBB-4 | D164: =PENZTAR_ADAT!K40 -> 200 | E164: =Beallitasok!$B$15 -> 361000 | F164: =Beallitasok!$C$15 -> 381000 | H164: =IF(Beallitasok!$B$16="","",Beallitasok!$B$16) -> BK T | I164: =IF(Beallitasok!$C$16="","",Beallitasok!$C$16) -> BK K
A165: =DATE(PENZTAR_ADAT!$F$1,VLOOKUP(PENZTAR_ADAT!$H$1,Beallitasok!$K$2:$L$13,2,FALSE),PENZTAR_ADAT!A41) -> 2021-01-05 | B165: =Beallitasok!$A$14 -> BANKKÁRTYA | C165: =Beallitasok!$B$3&PENZTAR_ADAT!B41 -> BBB-5 | D165: =PENZTAR_ADAT!K41 -> 250 | E165: =Beallitasok!$B$15 -> 361000 | F165: =Beallitasok!$C$15 -> 381000 | H165: =IF(Beallitasok!$B$16="","",Beallitasok!$B$16) -> BK T | I165: =IF(Beallitasok!$C$16="","",Beallitasok!$C$16) -> BK K
A166: =DATE(PENZTAR_ADAT!$F$1,VLOOKUP(PENZTAR_ADAT!$H$1,Beallitasok!$K$2:$L$13,2,FALSE),PENZTAR_ADAT!A42) -> 2021-01-06 | B166: =Beallitasok!$A$14 -> BANKKÁRTYA | C166: =Beallitasok!$B$3&PENZTAR_ADAT!B42 -> BBB-6 | D166: =PENZTAR_ADAT!K42 -> 300 | E166: =Beallitasok!$B$15 -> 361000 | F166: =Beallitasok!$C$15 -> 381000 | H166: =IF(Beallitasok!$B$16="","",Beallitasok!$B$16) -> BK T | I166: =IF(Beallitasok!$C$16="","",Beallitasok!$C$16) -> BK K
A167: =DATE(PENZTAR_ADAT!$F$1,VLOOKUP(PENZTAR_ADAT!$H$1,Beallitasok!$K$2:$L$13,2,FALSE),PENZTAR_ADAT!A43) -> 2021-01-07 | B167: =Beallitasok!$A$14 -> BANKKÁRTYA | C167: =Beallitasok!$B$3&PENZTAR_ADAT!B43 -> BBB-7 | D167: =PENZTAR_ADAT!K43 -> 350 | E167: =Beallitasok!$B$15 -> 361000 | F167: =Beallitasok!$C$15 -> 381000 | H167: =IF(Beallitasok!$B$16="","",Beallitasok!$B$16) -> BK T | I167: =IF(Beallitasok!$C$16="","",Beallitasok!$C$16) -> BK K
A168: =DATE(PENZTAR_ADAT!$F$1,VLOOKUP(PENZTAR_ADAT!$H$1,Beallitasok!$K$2:$L$13,2,FALSE),PENZTAR_ADAT!A44) -> 2021-01-08 | B168: =Beallitasok!$A$14 -> BANKKÁRTYA | C168: =Beallitasok!$B$3&PENZTAR_ADAT!B44 -> BBB-8 | D168: =PENZTAR_ADAT!K44 -> 400 | E168: =Beallitasok!$B$15 -> 361000 | F168: =Beallitasok!$C$15 -> 381000 | H168: =IF(Beallitasok!$B$16="","",Beallitasok!$B$16) -> BK T | I168: =IF(Beallitasok!$C$16="","",Beallitasok!$C$16) -> BK K
A169: =DATE(PENZTAR_ADAT!$F$1,VLOOKUP(PENZTAR_ADAT!$H$1,Beallitasok!$K$2:$L$13,2,FALSE),PENZTAR_ADAT!A45) -> 2021-01-09 | B169: =Beallitasok!$A$14 -> BANKKÁRTYA | C169: =Beallitasok!$B$3&PENZTAR_ADAT!B45 -> BBB-9 | D169: =PENZTAR_ADAT!K45 -> 450 | E169: =Beallitasok!$B$15 -> 361000 | F169: =Beallitasok!$C$15 -> 381000 | H169: =IF(Beallitasok!$B$16="","",Beallitasok!$B$16) -> BK T | I169: =IF(Beallitasok!$C$16="","",Beallitasok!$C$16) -> BK K
A170: =DATE(PENZTAR_ADAT!$F$1,VLOOKUP(PENZTAR_ADAT!$H$1,Beallitasok!$K$2:$L$13,2,FALSE),PENZTAR_ADAT!A46) -> 2021-01-10 | B170: =Beallitasok!$A$14 -> BANKKÁRTYA | C170: =Beallitasok!$B$3&PENZTAR_ADAT!B46 -> BBB-10 | D170: =PENZTAR_ADAT!K46 -> 500 | E170: =Beallitasok!$B$15 -> 361000 | F170: =Beallitasok!$C$15 -> 381000 | H170: =IF(Beallitasok!$B$16="","",Beallitasok!$B$16) -> BK T | I170: =IF(Beallitasok!$C$16="","",Beallitasok!$C$16) -> BK K
A171: =DATE(PENZTAR_ADAT!$F$1,VLOOKUP(PENZTAR_ADAT!$H$1,Beallitasok!$K$2:$L$13,2,FALSE),PENZTAR_ADAT!A47) -> 2021-01-11 | B171: =Beallitasok!$A$14 -> BANKKÁRTYA | C171: =Beallitasok!$B$3&PENZTAR_ADAT!B47 -> BBB-11 | D171: =PENZTAR_ADAT!K47 -> 550 | E171: =Beallitasok!$B$15 -> 361000 | F171: =Beallitasok!$C$15 -> 381000 | H171: =IF(Beallitasok!$B$16="","",Beallitasok!$B$16) -> BK T | I171: =IF(Beallitasok!$C$16="","",Beallitasok!$C$16) -> BK K
A172: =DATE(PENZTAR_ADAT!$F$1,VLOOKUP(PENZTAR_ADAT!$H$1,Beallitasok!$K$2:$L$13,2,FALSE),PENZTAR_ADAT!A48) -> 2021-01-12 | B172: =Beallitasok!$A$14 -> BANKKÁRTYA | C172: =Beallitasok!$B$3&PENZTAR_ADAT!B48 -> BBB-12 | D172: =PENZTAR_ADAT!K48 -> 600 | E172: =Beallitasok!$B$15 -> 361000 | F172: =Beallitasok!$C$15 -> 381000 | H172: =IF(Beallitasok!$B$16="","",Beallitasok!$B$16) -> BK T | I172: =IF(Beallitasok!$C$16="","",Beallitasok!$C$16) -> BK K
A173: =DATE(PENZTAR_ADAT!$F$1,VLOOKUP(PENZTAR_ADAT!$H$1,Beallitasok!$K$2:$L$13,2,FALSE),PENZTAR_ADAT!A49) -> 2021-01-13 | B173: =Beallitasok!$A$14 -> BANKKÁRTYA | C173: =Beallitasok!$B$3&PENZTAR_ADAT!B49 -> BBB-13 | D173: =PENZTAR_ADAT!K49 -> 650 | E173: =Beallitasok!$B$15 -> 361000 | F173: =Beallitasok!$C$15 -> 381000 | H173: =IF(Beallitasok!$B$16="","",Beallitasok!$B$16) -> BK T | I173: =IF(Beallitasok!$C$16="","",Beallitasok!$C$16) -> BK K
A174: =DATE(PENZTAR_ADAT!$F$1,VLOOKUP(PENZTAR_ADAT!$H$1,Beallitasok!$K$2:$L$13,2,FALSE),PENZTAR_ADAT!A50) -> 2021-01-14 | B174: =Beallitasok!$A$14 -> BANKKÁRTYA | C174: =Beallitasok!$B$3&PENZTAR_ADAT!B50 -> BBB-14 | D174: =PENZTAR_ADAT!K50 -> 700 | E174: =Beallitasok!$B$15 -> 361000 | F174: =Beallitasok!$C$15 -> 381000 | H174: =IF(Beallitasok!$B$16="","",Beallitasok!$B$16) -> BK T | I174: =IF(Beallitasok!$C$16="","",Beallitasok!$C$16) -> BK K
A175: =DATE(PENZTAR_ADAT!$F$1,VLOOKUP(PENZTAR_ADAT!$H$1,Beallitasok!$K$2:$L$13,2,FALSE),PENZTAR_ADAT!A51) -> 2021-01-15 | B175: =Beallitasok!$A$14 -> BANKKÁRTYA | C175: =Beallitasok!$B$3&PENZTAR_ADAT!B51 -> BBB-15 | D175: =PENZTAR_ADAT!K51 -> 750 | E175: =Beallitasok!$B$15 -> 361000 | F175: =Beallitasok!$C$15 -> 381000 | H175: =IF(Beallitasok!$B$16="","",Beallitasok!$B$16) -> BK T | I175: =IF(Beallitasok!$C$16="","",Beallitasok!$C$16) -> BK K
A176: =DATE(PENZTAR_ADAT!$F$1,VLOOKUP(PENZTAR_ADAT!$H$1,Beallitasok!$K$2:$L$13,2,FALSE),PENZTAR_ADAT!A52) -> 2021-01-16 | B176: =Beallitasok!$A$14 -> BANKKÁRTYA | C176: =Beallitasok!$B$3&PENZTAR_ADAT!B52 -> BBB-16 | D176: =PENZTAR_ADAT!K52 -> 800 | E176: =Beallitasok!$B$15 -> 361000 | F176: =Beallitasok!$C$15 -> 381000 | H176: =IF(Beallitasok!$B$16="","",Beallitasok!$B$16) -> BK T | I176: =IF(Beallitasok!$C$16="","",Beallitasok!$C$16) -> BK K
A177: =DATE(PENZTAR_ADAT!$F$1,VLOOKUP(PENZTAR_ADAT!$H$1,Beallitasok!$K$2:$L$13,2,FALSE),PENZTAR_ADAT!A53) -> 2021-01-17 | B177: =Beallitasok!$A$14 -> BANKKÁRTYA | C177: =Beallitasok!$B$3&PENZTAR_ADAT!B53 -> BBB-17 | D177: =PENZTAR_ADAT!K53 -> 850 | E177: =Beallitasok!$B$15 -> 361000 | F177: =Beallitasok!$C$15 -> 381000 | H177: =IF(Beallitasok!$B$16="","",Beallitasok!$B$16) -> BK T | I177: =IF(Beallitasok!$C$16="","",Beallitasok!$C$16) -> BK K
A178: =DATE(PENZTAR_ADAT!$F$1,VLOOKUP(PENZTAR_ADAT!$H$1,Beallitasok!$K$2:$L$13,2,FALSE),PENZTAR_ADAT!A54) -> 2021-01-18 | B178: =Beallitasok!$A$14 -> BANKKÁRTYA | C178: =Beallitasok!$B$3&PENZTAR_ADAT!B54 -> BBB-18 | D178: =PENZTAR_ADAT!K54 -> 900 | E178: =Beallitasok!$B$15 -> 361000 | F178: =Beallitasok!$C$15 -> 381000 | H178: =IF(Beallitasok!$B$16="","",Beallitasok!$B$16) -> BK T | I178: =IF(Beallitasok!$C$16="","",Beallitasok!$C$16) -> BK K
A179: =DATE(PENZTAR_ADAT!$F$1,VLOOKUP(PENZTAR_ADAT!$H$1,Beallitasok!$K$2:$L$13,2,FALSE),PENZTAR_ADAT!A55) -> 2021-01-19 | B179: =Beallitasok!$A$14 -> BANKKÁRTYA | C179: =Beallitasok!$B$3&PENZTAR_ADAT!B55 -> BBB-19 | D179: =PENZTAR_ADAT!K55 -> 950 | E179: =Beallitasok!$B$15 -> 361000 | F179: =Beallitasok!$C$15 -> 381000 | H179: =IF(Beallitasok!$B$16="","",Beallitasok!$B$16) -> BK T | I179: =IF(Beallitasok!$C$16="","",Beallitasok!$C$16) -> BK K
A180: =DATE(PENZTAR_ADAT!$F$1,VLOOKUP(PENZTAR_ADAT!$H$1,Beallitasok!$K$2:$L$13,2,FALSE),PENZTAR_ADAT!A56) -> 2021-01-20 | B180: =Beallitasok!$A$14 -> BANKKÁRTYA | C180: =Beallitasok!$B$3&PENZTAR_ADAT!B56 -> BBB-20 | D180: =PENZTAR_ADAT!K56 -> 1000 | E180: =Beallitasok!$B$15 -> 361000 | F180: =Beallitasok!$C$15 -> 381000 | H180: =IF(Beallitasok!$B$16="","",Beallitasok!$B$16) -> BK T | I180: =IF(Beallitasok!$C$16="","",Beallitasok!$C$16) -> BK K
A181: =DATE(PENZTAR_ADAT!$F$1,VLOOKUP(PENZTAR_ADAT!$H$1,Beallitasok!$K$2:$L$13,2,FALSE),PENZTAR_ADAT!A57) -> 2021-01-21 | B181: =Beallitasok!$A$14 -> BANKKÁRTYA | C181: =Beallitasok!$B$3&PENZTAR_ADAT!B57 -> BBB-21 | D181: =PENZTAR_ADAT!K57 -> 1050 | E181: =Beallitasok!$B$15 -> 361000 | F181: =Beallitasok!$C$15 -> 381000 | H181: =IF(Beallitasok!$B$16="","",Beallitasok!$B$16) -> BK T | I181: =IF(Beallitasok!$C$16="","",Beallitasok!$C$16) -> BK K
A182: =DATE(PENZTAR_ADAT!$F$1,VLOOKUP(PENZTAR_ADAT!$H$1,Beallitasok!$K$2:$L$13,2,FALSE),PENZTAR_ADAT!A58) -> 2021-01-22 | B182: =Beallitasok!$A$14 -> BANKKÁRTYA | C182: =Beallitasok!$B$3&PENZTAR_ADAT!B58 -> BBB-22 | D182: =PENZTAR_ADAT!K58 -> 1100 | E182: =Beallitasok!$B$15 -> 361000 | F182: =Beallitasok!$C$15 -> 381000 | H182: =IF(Beallitasok!$B$16="","",Beallitasok!$B$16) -> BK T | I182: =IF(Beallitasok!$C$16="","",Beallitasok!$C$16) -> BK K
A183: =DATE(PENZTAR_ADAT!$F$1,VLOOKUP(PENZTAR_ADAT!$H$1,Beallitasok!$K$2:$L$13,2,FALSE),PENZTAR_ADAT!A59) -> 2021-01-23 | B183: =Beallitasok!$A$14 -> BANKKÁRTYA | C183: =Beallitasok!$B$3&PENZTAR_ADAT!B59 -> BBB-23 | D183: =PENZTAR_ADAT!K59 -> 1150 | E183: =Beallitasok!$B$15 -> 361000 | F183: =Beallitasok!$C$15 -> 381000 | H183: =IF(Beallitasok!$B$16="","",Beallitasok!$B$16) -> BK T | I183: =IF(Beallitasok!$C$16="","",Beallitasok!$C$16) -> BK K
A184: =DATE(PENZTAR_ADAT!$F$1,VLOOKUP(PENZTAR_ADAT!$H$1,Beallitasok!$K$2:$L$13,2,FALSE),PENZTAR_ADAT!A60) -> 2021-01-24 | B184: =Beallitasok!$A$14 -> BANKKÁRTYA | C184: =Beallitasok!$B$3&PENZTAR_ADAT!B60 -> BBB-24 | D184: =PENZTAR_ADAT!K60 -> 1200 | E184: =Beallitasok!$B$15 -> 361000 | F184: =Beallitasok!$C$15 -> 381000 | H184: =IF(Beallitasok!$B$16="","",Beallitasok!$B$16) -> BK T | I184: =IF(Beallitasok!$C$16="","",Beallitasok!$C$16) -> BK K
A185: =DATE(PENZTAR_ADAT!$F$1,VLOOKUP(PENZTAR_ADAT!$H$1,Beallitasok!$K$2:$L$13,2,FALSE),PENZTAR_ADAT!A61) -> 2021-01-25 | B185: =Beallitasok!$A$14 -> BANKKÁRTYA | C185: =Beallitasok!$B$3&PENZTAR_ADAT!B61 -> BBB-25 | D185: =PENZTAR_ADAT!K61 -> 1250 | E185: =Beallitasok!$B$15 -> 361000 | F185: =Beallitasok!$C$15 -> 381000 | H185: =IF(Beallitasok!$B$16="","",Beallitasok!$B$16) -> BK T | I185: =IF(Beallitasok!$C$16="","",Beallitasok!$C$16) -> BK K
A186: =DATE(PENZTAR_ADAT!$F$1,VLOOKUP(PENZTAR_ADAT!$H$1,Beallitasok!$K$2:$L$13,2,FALSE),PENZTAR_ADAT!A62) -> 2021-01-26 | B186: =Beallitasok!$A$14 -> BANKKÁRTYA | C186: =Beallitasok!$B$3&PENZTAR_ADAT!B62 -> BBB-26 | D186: =PENZTAR_ADAT!K62 -> 1300 | E186: =Beallitasok!$B$15 -> 361000 | F186: =Beallitasok!$C$15 -> 381000 | H186: =IF(Beallitasok!$B$16="","",Beallitasok!$B$16) -> BK T | I186: =IF(Beallitasok!$C$16="","",Beallitasok!$C$16) -> BK K
A187: =DATE(PENZTAR_ADAT!$F$1,VLOOKUP(PENZTAR_ADAT!$H$1,Beallitasok!$K$2:$L$13,2,FALSE),PENZTAR_ADAT!A63) -> 2021-01-27 | B187: =Beallitasok!$A$14 -> BANKKÁRTYA | C187: =Beallitasok!$B$3&PENZTAR_ADAT!B63 -> BBB-27 | D187: =PENZTAR_ADAT!K63 -> 1350 | E187: =Beallitasok!$B$15 -> 361000 | F187: =Beallitasok!$C$15 -> 381000 | H187: =IF(Beallitasok!$B$16="","",Beallitasok!$B$16) -> BK T | I187: =IF(Beallitasok!$C$16="","",Beallitasok!$C$16) -> BK K
A188: =DATE(PENZTAR_ADAT!$F$1,VLOOKUP(PENZTAR_ADAT!$H$1,Beallitasok!$K$2:$L$13,2,FALSE),PENZTAR_ADAT!A64) -> 2021-01-28 | B188: =Beallitasok!$A$14 -> BANKKÁRTYA | C188: =Beallitasok!$B$3&PENZTAR_ADAT!B64 -> BBB-28 | D188: =PENZTAR_ADAT!K64 -> 1400 | E188: =Beallitasok!$B$15 -> 361000 | F188: =Beallitasok!$C$15 -> 381000 | H188: =IF(Beallitasok!$B$16="","",Beallitasok!$B$16) -> BK T | I188: =IF(Beallitasok!$C$16="","",Beallitasok!$C$16) -> BK K
A189: =DATE(PENZTAR_ADAT!$F$1,VLOOKUP(PENZTAR_ADAT!$H$1,Beallitasok!$K$2:$L$13,2,FALSE),PENZTAR_ADAT!A65) -> 2021-01-29 | B189: =Beallitasok!$A$14 -> BANKKÁRTYA | C189: =Beallitasok!$B$3&PENZTAR_ADAT!B65 -> BBB-29 | D189: =PENZTAR_ADAT!K65 -> 1450 | E189: =Beallitasok!$B$15 -> 361000 | F189: =Beallitasok!$C$15 -> 381000 | H189: =IF(Beallitasok!$B$16="","",Beallitasok!$B$16) -> BK T | I189: =IF(Beallitasok!$C$16="","",Beallitasok!$C$16) -> BK K
A190: =DATE(PENZTAR_ADAT!$F$1,VLOOKUP(PENZTAR_ADAT!$H$1,Beallitasok!$K$2:$L$13,2,FALSE),PENZTAR_ADAT!A66) -> 2021-01-30 | B190: =Beallitasok!$A$14 -> BANKKÁRTYA | C190: =Beallitasok!$B$3&PENZTAR_ADAT!B66 -> BBB-30 | D190: =PENZTAR_ADAT!K66 -> 1500 | E190: =Beallitasok!$B$15 -> 361000 | F190: =Beallitasok!$C$15 -> 381000 | H190: =IF(Beallitasok!$B$16="","",Beallitasok!$B$16) -> BK T | I190: =IF(Beallitasok!$C$16="","",Beallitasok!$C$16) -> BK K
A191: =DATE(PENZTAR_ADAT!$F$1,VLOOKUP(PENZTAR_ADAT!$H$1,Beallitasok!$K$2:$L$13,2,FALSE),PENZTAR_ADAT!A67) -> 2021-01-31 | B191: =Beallitasok!$A$14 -> BANKKÁRTYA | C191: =Beallitasok!$B$3&PENZTAR_ADAT!B67 -> BBB-31 | D191: =PENZTAR_ADAT!K67 -> 1550 | E191: =Beallitasok!$B$15 -> 361000 | F191: =Beallitasok!$C$15 -> 381000 | H191: =IF(Beallitasok!$B$16="","",Beallitasok!$B$16) -> BK T | I191: =IF(Beallitasok!$C$16="","",Beallitasok!$C$16) -> BK K
A194: =DATE(PENZTAR_ADAT!$F$1,VLOOKUP(PENZTAR_ADAT!$H$1,Beallitasok!$K$2:$L$13,2,FALSE),PENZTAR_ADAT!A37) -> 2021-01-01 | B194: =Beallitasok!$A$18 -> Netpincér | C194: =Beallitasok!$B$3&PENZTAR_ADAT!B37 -> BBB-1 | D194: =PENZTAR_ADAT!L37 -> 55 | E194: =Beallitasok!$B$19 -> 361000 | F194: =Beallitasok!$C$19 -> 381000 | H194: =IF(Beallitasok!$B$20="","",Beallitasok!$B$20) -> NET T | I194: =IF(Beallitasok!$C$20="","",Beallitasok!$C$20) -> NET K
A195: =DATE(PENZTAR_ADAT!$F$1,VLOOKUP(PENZTAR_ADAT!$H$1,Beallitasok!$K$2:$L$13,2,FALSE),PENZTAR_ADAT!A38) -> 2021-01-02 | B195: =Beallitasok!$A$18 -> Netpincér | C195: =Beallitasok!$B$3&PENZTAR_ADAT!B38 -> BBB-2 | D195: =PENZTAR_ADAT!L38 -> 110 | E195: =Beallitasok!$B$19 -> 361000 | F195: =Beallitasok!$C$19 -> 381000 | H195: =IF(Beallitasok!$B$20="","",Beallitasok!$B$20) -> NET T | I195: =IF(Beallitasok!$C$20="","",Beallitasok!$C$20) -> NET K
A196: =DATE(PENZTAR_ADAT!$F$1,VLOOKUP(PENZTAR_ADAT!$H$1,Beallitasok!$K$2:$L$13,2,FALSE),PENZTAR_ADAT!A39) -> 2021-01-03 | B196: =Beallitasok!$A$18 -> Netpincér | C196: =Beallitasok!$B$3&PENZTAR_ADAT!B39 -> BBB-3 | D196: =PENZTAR_ADAT!L39 -> 165 | E196: =Beallitasok!$B$19 -> 361000 | F196: =Beallitasok!$C$19 -> 381000 | H196: =IF(Beallitasok!$B$20="","",Beallitasok!$B$20) -> NET T | I196: =IF(Beallitasok!$C$20="","",Beallitasok!$C$20) -> NET K
A197: =DATE(PENZTAR_ADAT!$F$1,VLOOKUP(PENZTAR_ADAT!$H$1,Beallitasok!$K$2:$L$13,2,FALSE),PENZTAR_ADAT!A40) -> 2021-01-04 | B197: =Beallitasok!$A$18 -> Netpincér | C197: =Beallitasok!$B$3&PENZTAR_ADAT!B40 -> BBB-4 | D197: =PENZTAR_ADAT!L40 -> 220 | E197: =Beallitasok!$B$19 -> 361000 | F197: =Beallitasok!$C$19 -> 381000 | H197: =IF(Beallitasok!$B$20="","",Beallitasok!$B$20) -> NET T | I197: =IF(Beallitasok!$C$20="","",Beallitasok!$C$20) -> NET K
A198: =DATE(PENZTAR_ADAT!$F$1,VLOOKUP(PENZTAR_ADAT!$H$1,Beallitasok!$K$2:$L$13,2,FALSE),PENZTAR_ADAT!A41) -> 2021-01-05 | B198: =Beallitasok!$A$18 -> Netpincér | C198: =Beallitasok!$B$3&PENZTAR_ADAT!B41 -> BBB-5 | D198: =PENZTAR_ADAT!L41 -> 275 | E198: =Beallitasok!$B$19 -> 361000 | F198: =Beallitasok!$C$19 -> 381000 | H198: =IF(Beallitasok!$B$20="","",Beallitasok!$B$20) -> NET T | I198: =IF(Beallitasok!$C$20="","",Beallitasok!$C$20) -> NET K
A199: =DATE(PENZTAR_ADAT!$F$1,VLOOKUP(PENZTAR_ADAT!$H$1,Beallitasok!$K$2:$L$13,2,FALSE),PENZTAR_ADAT!A42) -> 2021-01-06 | B199: =Beallitasok!$A$18 -> Netpincér | C199: =Beallitasok!$B$3&PENZTAR_ADAT!B42 -> BBB-6 | D199: =PENZTAR_ADAT!L42 -> 330 | E199: =Beallitasok!$B$19 -> 361000 | F199: =Beallitasok!$C$19 -> 381000 | H199: =IF(Beallitasok!$B$20="","",Beallitasok!$B$20) -> NET T | I199: =IF(Beallitasok!$C$20="","",Beallitasok!$C$20) -> NET K
A200: =DATE(PENZTAR_ADAT!$F$1,VLOOKUP(PENZTAR_ADAT!$H$1,Beallitasok!$K$2:$L$13,2,FALSE),PENZTAR_ADAT!A43) -> 2021-01-07 | B200: =Beallitasok!$A$18 -> Netpincér | C200: =Beallitasok!$B$3&PENZTAR_ADAT!B43 -> BBB-7 | D200: =PENZTAR_ADAT!L43 -> 385 | E200: =Beallitasok!$B$19 -> 361000 | F200: =Beallitasok!$C$19 -> 381000 | H200: =IF(Beallitasok!$B$20="","",Beallitasok!$B$20) -> NET T | I200: =IF(Beallitasok!$C$20="","",Beallitasok!$C$20) -> NET K
A201: =DATE(PENZTAR_ADAT!$F$1,VLOOKUP(PENZTAR_ADAT!$H$1,Beallitasok!$K$2:$L$13,2,FALSE),PENZTAR_ADAT!A44) -> 2021-01-08 | B201: =Beallitasok!$A$18 -> Netpincér | C201: =Beallitasok!$B$3&PENZTAR_ADAT!B44 -> BBB-8 | D201: =PENZTAR_ADAT!L44 -> 440 | E201: =Beallitasok!$B$19 -> 361000 | F201: =Beallitasok!$C$19 -> 381000 | H201: =IF(Beallitasok!$B$20="","",Beallitasok!$B$20) -> NET T | I201: =IF(Beallitasok!$C$20="","",Beallitasok!$C$20) -> NET K
A202: =DATE(PENZTAR_ADAT!$F$1,VLOOKUP(PENZTAR_ADAT!$H$1,Beallitasok!$K$2:$L$13,2,FALSE),PENZTAR_ADAT!A45) -> 2021-01-09 | B202: =Beallitasok!$A$18 -> Netpincér | C202: =Beallitasok!$B$3&PENZTAR_ADAT!B45 -> BBB-9 | D202: =PENZTAR_ADAT!L45 -> 495 | E202: =Beallitasok!$B$19 -> 361000 | F202: =Beallitasok!$C$19 -> 381000 | H202: =IF(Beallitasok!$B$20="","",Beallitasok!$B$20) -> NET T | I202: =IF(Beallitasok!$C$20="","",Beallitasok!$C$20) -> NET K
A203: =DATE(PENZTAR_ADAT!$F$1,VLOOKUP(PENZTAR_ADAT!$H$1,Beallitasok!$K$2:$L$13,2,FALSE),PENZTAR_ADAT!A46) -> 2021-01-10 | B203: =Beallitasok!$A$18 -> Netpincér | C203: =Beallitasok!$B$3&PENZTAR_ADAT!B46 -> BBB-10 | D203: =PENZTAR_ADAT!L46 -> 550 | E203: =Beallitasok!$B$19 -> 361000 | F203: =Beallitasok!$C$19 -> 381000 | H203: =IF(Beallitasok!$B$20="","",Beallitasok!$B$20) -> NET T | I203: =IF(Beallitasok!$C$20="","",Beallitasok!$C$20) -> NET K
A204: =DATE(PENZTAR_ADAT!$F$1,VLOOKUP(PENZTAR_ADAT!$H$1,Beallitasok!$K$2:$L$13,2,FALSE),PENZTAR_ADAT!A47) -> 2021-01-11 | B204: =Beallitasok!$A$18 -> Netpincér | C204: =Beallitasok!$B$3&PENZTAR_ADAT!B47 -> BBB-11 | D204: =PENZTAR_ADAT!L47 -> 605 | E204: =Beallitasok!$B$19 -> 361000 | F204: =Beallitasok!$C$19 -> 381000 | H204: =IF(Beallitasok!$B$20="","",Beallitasok!$B$20) -> NET T | I204: =IF(Beallitasok!$C$20="","",Beallitasok!$C$20) -> NET K
A205: =DATE(PENZTAR_ADAT!$F$1,VLOOKUP(PENZTAR_ADAT!$H$1,Beallitasok!$K$2:$L$13,2,FALSE),PENZTAR_ADAT!A48) -> 2021-01-12 | B205: =Beallitasok!$A$18 -> Netpincér | C205: =Beallitasok!$B$3&PENZTAR_ADAT!B48 -> BBB-12 | D205: =PENZTAR_ADAT!L48 -> 660 | E205: =Beallitasok!$B$19 -> 361000 | F205: =Beallitasok!$C$19 -> 381000 | H205: =IF(Beallitasok!$B$20="","",Beallitasok!$B$20) -> NET T | I205: =IF(Beallitasok!$C$20="","",Beallitasok!$C$20) -> NET K
A206: =DATE(PENZTAR_ADAT!$F$1,VLOOKUP(PENZTAR_ADAT!$H$1,Beallitasok!$K$2:$L$13,2,FALSE),PENZTAR_ADAT!A49) -> 2021-01-13 | B206: =Beallitasok!$A$18 -> Netpincér | C206: =Beallitasok!$B$3&PENZTAR_ADAT!B49 -> BBB-13 | D206: =PENZTAR_ADAT!L49 -> 715 | E206: =Beallitasok!$B$19 -> 361000 | F206: =Beallitasok!$C$19 -> 381000 | H206: =IF(Beallitasok!$B$20="","",Beallitasok!$B$20) -> NET T | I206: =IF(Beallitasok!$C$20="","",Beallitasok!$C$20) -> NET K
A207: =DATE(PENZTAR_ADAT!$F$1,VLOOKUP(PENZTAR_ADAT!$H$1,Beallitasok!$K$2:$L$13,2,FALSE),PENZTAR_ADAT!A50) -> 2021-01-14 | B207: =Beallitasok!$A$18 -> Netpincér | C207: =Beallitasok!$B$3&PENZTAR_ADAT!B50 -> BBB-14 | D207: =PENZTAR_ADAT!L50 -> 770 | E207: =Beallitasok!$B$19 -> 361000 | F207: =Beallitasok!$C$19 -> 381000 | H207: =IF(Beallitasok!$B$20="","",Beallitasok!$B$20) -> NET T | I207: =IF(Beallitasok!$C$20="","",Beallitasok!$C$20) -> NET K
A208: =DATE(PENZTAR_ADAT!$F$1,VLOOKUP(PENZTAR_ADAT!$H$1,Beallitasok!$K$2:$L$13,2,FALSE),PENZTAR_ADAT!A51) -> 2021-01-15 | B208: =Beallitasok!$A$18 -> Netpincér | C208: =Beallitasok!$B$3&PENZTAR_ADAT!B51 -> BBB-15 | D208: =PENZTAR_ADAT!L51 -> 825 | E208: =Beallitasok!$B$19 -> 361000 | F208: =Beallitasok!$C$19 -> 381000 | H208: =IF(Beallitasok!$B$20="","",Beallitasok!$B$20) -> NET T | I208: =IF(Beallitasok!$C$20="","",Beallitasok!$C$20) -> NET K
A209: =DATE(PENZTAR_ADAT!$F$1,VLOOKUP(PENZTAR_ADAT!$H$1,Beallitasok!$K$2:$L$13,2,FALSE),PENZTAR_ADAT!A52) -> 2021-01-16 | B209: =Beallitasok!$A$18 -> Netpincér | C209: =Beallitasok!$B$3&PENZTAR_ADAT!B52 -> BBB-16 | D209: =PENZTAR_ADAT!L52 -> 880 | E209: =Beallitasok!$B$19 -> 361000 | F209: =Beallitasok!$C$19 -> 381000 | H209: =IF(Beallitasok!$B$20="","",Beallitasok!$B$20) -> NET T | I209: =IF(Beallitasok!$C$20="","",Beallitasok!$C$20) -> NET K
A210: =DATE(PENZTAR_ADAT!$F$1,VLOOKUP(PENZTAR_ADAT!$H$1,Beallitasok!$K$2:$L$13,2,FALSE),PENZTAR_ADAT!A53) -> 2021-01-17 | B210: =Beallitasok!$A$18 -> Netpincér | C210: =Beallitasok!$B$3&PENZTAR_ADAT!B53 -> BBB-17 | D210: =PENZTAR_ADAT!L53 -> 935 | E210: =Beallitasok!$B$19 -> 361000 | F210: =Beallitasok!$C$19 -> 381000 | H210: =IF(Beallitasok!$B$20="","",Beallitasok!$B$20) -> NET T | I210: =IF(Beallitasok!$C$20="","",Beallitasok!$C$20) -> NET K
A211: =DATE(PENZTAR_ADAT!$F$1,VLOOKUP(PENZTAR_ADAT!$H$1,Beallitasok!$K$2:$L$13,2,FALSE),PENZTAR_ADAT!A54) -> 2021-01-18 | B211: =Beallitasok!$A$18 -> Netpincér | C211: =Beallitasok!$B$3&PENZTAR_ADAT!B54 -> BBB-18 | D211: =PENZTAR_ADAT!L54 -> 990 | E211: =Beallitasok!$B$19 -> 361000 | F211: =Beallitasok!$C$19 -> 381000 | H211: =IF(Beallitasok!$B$20="","",Beallitasok!$B$20) -> NET T | I211: =IF(Beallitasok!$C$20="","",Beallitasok!$C$20) -> NET K
A212: =DATE(PENZTAR_ADAT!$F$1,VLOOKUP(PENZTAR_ADAT!$H$1,Beallitasok!$K$2:$L$13,2,FALSE),PENZTAR_ADAT!A55) -> 2021-01-19 | B212: =Beallitasok!$A$18 -> Netpincér | C212: =Beallitasok!$B$3&PENZTAR_ADAT!B55 -> BBB-19 | D212: =PENZTAR_ADAT!L55 -> 1045 | E212: =Beallitasok!$B$19 -> 361000 | F212: =Beallitasok!$C$19 -> 381000 | H212: =IF(Beallitasok!$B$20="","",Beallitasok!$B$20) -> NET T | I212: =IF(Beallitasok!$C$20="","",Beallitasok!$C$20) -> NET K
... 99 more rows

Sheet Beallitasok
F1: Áfa kulcs | K1: Hónap | L1: Sorszám
A2: PTG Bizonylat előtag | B2: AAA- | F2: 0 | G2: 10 | K2: Január | L2: 1
A3: Bank Bizonylat előtag | B3: BBB- | F3: 0.05 | G3: 5.28 | K3: Február | L3: 2
A4: Fizmod KP | B4: Készpénz | F4: 0.18 | G4: 12.26 | K4: Március | L4: 3
A5: Cég neve | B5: Sarki_ABC | F5: 0.27 | G5: 13.1 | K5: Április | L5: 4
A6: Pénztárgép száma | B6: AP_TESZT2 | K6: Május | L6: 5
K7: Június | L7: 6
A8: Bevétel főkönyv | B8: 911000 | E8: =PENZTAR_ADAT!O5 -> Kerekítés | G8: T | H8: K | K8: Július | L8: 7
A9: Pénztár főkönyv | B9: 381000 | E9: Ha plusz | F9: FK szám | G9: 361000 | H9: 381000 | K9: Augusztus | L9: 8
F10: FK név | G10: Kerek+ T | H10: Kerek+ K | K10: Szeptember | L10: 9
A11: PTGbevétel megjegyzés | B11: PTG árbevétel | E11: Ha mínusz | F11: FK szám | G11: 361000 | H11: 381000 | K11: Október | L11: 10
A12: Téves beütés | B12: Téves beütés | F12: FK név | G12: Kerek- T | H12: Kerek- K | K12: November | L12: 11
K13: December | L13: 12
A14: =PENZTAR_ADAT!K5 -> BANKKÁRTYA | B14: T | C14: K | E14: =PENZTAR_ADAT!M5 -> MKB SZÉP KÁRTYA | G14: T | H14: K
A15: Főkönyv számok | B15: 361000 | C15: 381000 | E15: Főkönyv számok | G15: 361000 | H15: 381000
A16: Főkönyv neve | B16: BK T | C16: BK K | E16: Főkönyv neve | G16: UTA T | H16: UTA K
A18: =PENZTAR_ADAT!L5 -> Netpincér | B18: T | C18: K | E18: =PENZTAR_ADAT!N5 -> Szép | G18: T | H18: K
A19: Főkönyv számok | B19: 361000 | C19: 381000 | E19: Főkönyv számok | G19: 361000 | H19: 381000
A20: Főkönyv neve | B20: NET T | C20: NET K | E20: Főkönyv neve | G20: SZÉP T | H20: SZÉP K
